Service Area,Service Division,Expense Type,Expense Code,Detailed Expense Type,Payment Date,Transaction Number,Amount Exc VAT,Supplier Name
Regeneration and Local Services,Culture & Sport,Supplies and Services,312013,Newspapers books and periodicals E312,03/12/2018,3524012-95133923,"16,430.00",(BSI) BRITISH STANDARDS INSTITUTION.
Regeneration and Local Services,Direct Services,Third Party Payments 4THIRD,430115,Rendered by Private Contractors,03/12/2018,3524016-0069,"10,207.56",A WILLEY T/A GREENTECH RECYCLING.
Regeneration and Local Services,Culture & Sport,Premises,108099,Service Repairs and Maintenance,03/12/2018,3524017-116340364,"3,949.00",AC ENTERTAINMENT TECHNOLOGIES.
Regeneration and Local Services,Technical Services,Third Party Payments 4THIRD,410037,Rendered by Other Local Authorities,03/12/2018,3524020-28367801,"4,856.40",AECOM LTD.
Regeneration and Local Services,Technical Services,Supplies and Services,304221,Equipment and Materials,03/12/2018,3524021-27376754,"1,539.52",AGGREGATE INDUSTRIES UK LTD.
Regeneration and Local Services,Technical Services,Supplies and Services,304221,Equipment and Materials,03/12/2018,3524021-27384826,"1,693.04",AGGREGATE INDUSTRIES UK LTD.
Regeneration and Local Services,Technical Services,Supplies and Services,304221,Equipment and Materials,03/12/2018,3524021-27403461,583.80,AGGREGATE INDUSTRIES UK LTD.
Regeneration and Local Services,Technical Services,Supplies and Services,304221,Equipment and Materials,03/12/2018,3524021-27405009,"1,062.96",AGGREGATE INDUSTRIES UK LTD.
Regeneration and Local Services,Technical Services,Supplies and Services,304221,Equipment and Materials,03/12/2018,3524021-27411398,"1,656.56",AGGREGATE INDUSTRIES UK LTD.
Regeneration and Local Services,Technical Services,Supplies and Services,304221,Equipment and Materials,03/12/2018,3524021-27411404,575.18,AGGREGATE INDUSTRIES UK LTD.
Regeneration and Local Services,Technical Services,Supplies and Services,304221,Equipment and Materials,03/12/2018,3524021-27430779,972.80,AGGREGATE INDUSTRIES UK LTD.
Regeneration and Local Services,Technical Services,Supplies and Services,304221,Equipment and Materials,03/12/2018,3524021-27430780,716.52,AGGREGATE INDUSTRIES UK LTD.
Regeneration and Local Services,Technical Services,Supplies and Services,304221,Equipment and Materials,03/12/2018,3524021-27430781,"1,149.56",AGGREGATE INDUSTRIES UK LTD.
Regeneration and Local Services,Technical Services,Supplies and Services,304221,Equipment and Materials,03/12/2018,3524021-27430782,883.44,AGGREGATE INDUSTRIES UK LTD.
Regeneration and Local Services,Technical Services,Supplies and Services,304221,Equipment and Materials,03/12/2018,3524021-27430783,711.34,AGGREGATE INDUSTRIES UK LTD.
Regeneration and Local Services,Technical Services,Supplies and Services,304221,Equipment and Materials,03/12/2018,3524021-27430784,746.12,AGGREGATE INDUSTRIES UK LTD.
Children and Young Peoples Services,"Head of Early Help, Inclusion and Vulnerable Children",Supplies and Services,308011,Furniture,03/12/2018,3524023-163906,540.00,ALBANY OFFICE EQUIPMENT (WHOLESALE) LTD.
Regeneration and Local Services,Culture & Sport,Supplies and Services,308011,Furniture,03/12/2018,3524023-163909,"1,130.00",ALBANY OFFICE EQUIPMENT (WHOLESALE) LTD.
Resources,Legal & Democratic Services,Supplies and Services,338057,Services,03/12/2018,3524024-0000031823,"1,745.00",ALERE FORENSICS.
Resources,Digital and Customer Services,Supplies and Services,304639,Equipment and Materials,03/12/2018,3524025-17025,875.00,AMBIC LTD.
Dedicated Schools Grant,DSG High Needs Block,Central Support and Other Recharges,689996,Unclassified E690,03/12/2018,3524031-CAS-11-2018-297,"52,500.00",APOLLO SCHOOLS TRUST T/A ENDEAVOUR ACADEMY.
Adult and Health Services,Commissioning inc Supporting People,Third Party Payments 4THIRD,479111,Purchase of Care,03/12/2018,3524037-7004,"13,496.00",ASPIRE LEARNING SUPPORT & WELLBEING CIC.
Regeneration and Local Services,Direct Services,Transport,210057,Repair and Maintenance of Vehicles,03/12/2018,3524041-35157276,645.29,BELL TRUCK SALES LTD T/A BELL TRUCK & VAN.
Regeneration and Local Services,Technical Services,Supplies and Services,304221,Equipment and Materials,03/12/2018,3524045-BMPR/216/LW,"2,675.00",BISHOP MIDDLEHAM PLANT & RECYCLING LTD.
Regeneration and Local Services,Technical Services,Supplies and Services,304221,Equipment and Materials,03/12/2018,3524045-BMPR/218/LW,"1,250.00",BISHOP MIDDLEHAM PLANT & RECYCLING LTD.
Children and Young Peoples Services,Head of Education and Skills,Transport,230008,Contract Hire,03/12/2018,3524049-18385,"2,258.64",BLUELINE TAXIS.
Regeneration and Local Services,Culture & Sport,Supplies and Services,384956,Miscellaneous Expenses,03/12/2018,3524053-8330,"3,750.00",BRAMBLE HUB LTD.
Regeneration and Local Services,Culture & Sport,Premises,145023,Cleaning and Domestic Supplies,03/12/2018,3524054-22SI2242435,525.00,BRENNTAG UK LTD.
Regeneration and Local Services,Direct Services,Supplies and Services,304221,Equipment and Materials,03/12/2018,3524057-INV238478,858.90,BROXAP LTD.
Regeneration and Local Services,Direct Services,Transport,210057,Repair and Maintenance of Vehicles,03/12/2018,3524058-143,"3,879.72",BUNCE (ASHBURY) LTD.
Regeneration and Local Services,Direct Services,Transport,210057,Repair and Maintenance of Vehicles,03/12/2018,3524058-165,"2,102.12",BUNCE (ASHBURY) LTD.
Adult and Health Services,Head of Adults,Supplies and Services,338366,Services,03/12/2018,3524060-54430,"1,093.25",CARE ABILITY.
Regeneration and Local Services,Economic Development and Housing,Construction work A908,908105,Construction work,03/12/2018,3524064-5084,781.01,CATHEDRAL LOCK & SAFE SERVICES LTD.
Resources,Finance & Transactional Services,Third Party Payments 4THIRD,479102,Purchase of Care,03/12/2018,3524069-CACD536,"15,000.00",CITIZENS ADVICE COUNTY DURHAM.
Regeneration and Local Services,Technical Services,Premises,150015,Apportioned Exps of Operational Blds,03/12/2018,3524072-103514,779.96,CLEE HILL PLANT LTD.
Resources,Legal & Democratic Services,Supplies and Services,338025,Services,03/12/2018,3524074-S44995-01617,990.00,CO-OPERATIVE FUNERAL CARE.
Resources,Legal & Democratic Services,Supplies and Services,338025,Services,03/12/2018,3524075-S44954-01272,900.00,CO-OPERATIVE FUNERAL CARE.
Adult and Health Services,Head of Adults,Transport,230005,Contract Hire,03/12/2018,3524087-107689,"1,474.80",CROFT BUSINESS SERVICES (UK) LTD T/A CROFT TAXIS.
Resources,Digital and Customer Services,Vehicles Equipment Furniture and Fittings,912701,Computer equipment,03/12/2018,3524093-7402483267,"109,664.00",DELL COMPUTER CORPORATION LTD.
Regeneration and Local Services,Direct Services,Transport,210057,Repair and Maintenance of Vehicles,03/12/2018,3524094-96365519,"1,398.33",DENNIS EAGLE LTD T/A TERBERG MATEC (UK) LTD.
Regeneration and Local Services,Direct Services,Transport,210057,Repair and Maintenance of Vehicles,03/12/2018,3524095-DE11177566,595.90,DENNIS EAGLE LTD.
Resources,Legal & Democratic Services,Supplies and Services,338042,Services,03/12/2018,3524096-340040/INVCM111,750.00,DERE STREET BARRISTERS.
Resources,Legal & Democratic Services,Supplies and Services,338042,Services,03/12/2018,3524096-343088/INVDR578,525.00,DERE STREET BARRISTERS.
Children and Young Peoples Services,Head of Education and Skills,Transport,230007,Contract Hire,03/12/2018,3524098-11/2018-COVER2068,540.00,DIANE GOOCH T/A COLLINS TAXIS.
Adult and Health Services,Head of Adults,Supplies and Services,338066,Services,03/12/2018,3524102-2411201829112018,728.62,DR IMRAN MUNIR.
Children and Young Peoples Services,Head of Childrens Social Care,Supplies and Services,338044,Services,03/12/2018,3524103-SI-332,"1,722.90",DR SUSAN COOPER.
Children and Young Peoples Services,Head of Education and Skills,Third Party Payments 4THIRD,440999,Other third party payments E440,03/12/2018,3524107-AUG18/07,"1,777.50",DURHAM COMMUNITY ACTION LTD.
Children and Young Peoples Services,Head of Education and Skills,Third Party Payments 4THIRD,440999,Other third party payments E440,03/12/2018,3524107-MAR18/01,592.50,DURHAM COMMUNITY ACTION LTD.
Regeneration and Local Services,Spatial Policy Planning Assets & Environment,Supplies and Services,384199,Miscellaneous Expenses,03/12/2018,3524114-001,"1,500.00",EAST DURHAM ARTISTS NETWORK (EDAN) LTD.
Regeneration and Local Services,Direct Services,Third Party Payments 4THIRD,430100,Rendered by Private Contractors,03/12/2018,3524119-R028845,"2,684.90",ECON ENGINEERING LTD.
Regeneration and Local Services,Direct Services,Transport,210057,Repair and Maintenance of Vehicles,03/12/2018,3524119-S201019,"1,488.30",ECON ENGINEERING LTD.
Regeneration and Local Services,Direct Services,Supplies and Services,304221,Equipment and Materials,03/12/2018,3524120-059-234531,"2,816.53",EDMUNDSON ELECTRICAL LTD.
Regeneration and Local Services,Direct Services,Supplies and Services,304221,Equipment and Materials,03/12/2018,3524120-059-234647,"2,937.29",EDMUNDSON ELECTRICAL LTD.
Regeneration and Local Services,Technical Services,Stock A926,926900,Stock in hand-Inventory system,03/12/2018,3524120-059-234584,"1,234.60",EDMUNDSON ELECTRICAL LTD.
Regeneration and Local Services,Technical Services,Stock A926,926900,Stock in hand-Inventory system,03/12/2018,3524120-059-234658,943.74,EDMUNDSON ELECTRICAL LTD.
Regeneration and Local Services,Spatial Policy Planning Assets & Environment,Supplies and Services,384199,Miscellaneous Expenses,03/12/2018,3524135-80216,693.00,FJORDR LTD.
Regeneration and Local Services,Direct Services,Premises,120037,Energy Costs,03/12/2018,3524138-356103,"1,150.44",FOREST FUELS LTD.
Children and Young Peoples Services,Head of Education and Skills,Third Party Payments 4THIRD,440999,Other third party payments E440,03/12/2018,3524139-0000007330,"2,340.00",FOUNDATION OF LIGHT.
Regeneration and Local Services,Culture & Sport,Supplies and Services,338047,Services,03/12/2018,3524150-149,"1,000.00",GEORGE CRERAR (THEATRE CONTRACTOR).
Regeneration and Local Services,Technical Services,Third Party Payments 4THIRD,460254,Contract Payments,03/12/2018,3524154-8828,"12,692.63",GINGER LEHMANN LTD.
Regeneration and Local Services,Culture & Sport,Premises,145023,Cleaning and Domestic Supplies,03/12/2018,3524160-06/769141,508.64,GREENHAM TRADING LTD.
Regeneration and Local Services,Direct Services,Stock A926,926004,Stock,03/12/2018,3524161-149486,"1,788.13",GREENLAY (GRASS MACHINERY) LTD.
Resources,Corporate Finance & Commercial Services,Supplies and Services,338221,Services,03/12/2018,3524167-SF-025752,990.00,HEALTH ASSURED LTD.
Regeneration and Local Services,Culture & Sport,Supplies and Services,338047,Services,03/12/2018,3524169-0121,"2,936.25",HEATHER ROBERTSON.
Dedicated Schools Grant,DSG High Needs Block,Third Party Payments 4THIRD,425005,Rendered by Voluntary Organisations,03/12/2018,3524173-DU01/548/042018,"11,584.20",HILLSIDE SCHOOL (ABERDOUR) LTD.
Regeneration and Local Services,Direct Services,Third Party Payments 4THIRD,430100,Rendered by Private Contractors,03/12/2018,3524175-75374,"1,199.19",HOGARTH COACHWORKS LTD.
Regeneration and Local Services,Direct Services,Stock A926,926004,Stock,03/12/2018,3524180-639874,595.31,HYDRAQUIP HOSE & HYDRAULICS LTD.
Regeneration and Local Services,Technical Services,Third Party Payments 4THIRD,430127,Rendered by Private Contractors,03/12/2018,3524181-2567,762.50,IAN C LIDDLE.
Resources,Digital and Customer Services,Supplies and Services,304303,Equipment and Materials,03/12/2018,3524183-SIN437618,"2,125.00",INFORMATION & DATA NETWORK SUPPLIES LTD (IDN).
Regeneration and Local Services,Technical Services,Construction work A908,908105,Construction work,03/12/2018,3524188-22388,"1,673.03",JACK COUPE & SONS LTD T/A COUPE LINE.
Regeneration and Local Services,Culture & Sport,Supplies and Services,304083,Equipment and Materials,03/12/2018,3524190-39546,640.00,JBL SERVICES LTD.
Regeneration and Local Services,Technical Services,Stock A926,926900,Stock in hand-Inventory system,03/12/2018,3524193-9021,"1,011.50",JG UNIFORMS.
Regeneration and Local Services,Direct Services,Supplies and Services,304221,Equipment and Materials,03/12/2018,3524196-B11273881,"1,216.32",JT DOVE LTD.
Regeneration and Local Services,Direct Services,Supplies and Services,304221,Equipment and Materials,03/12/2018,3524196-BII273857,"3,366.00",JT DOVE LTD.
Regeneration and Local Services,Technical Services,Stock A926,926900,Stock in hand-Inventory system,03/12/2018,3524196-BII273896,539.55,JT DOVE LTD.
Regeneration and Local Services,Technical Services,Stock A926,926900,Stock in hand-Inventory system,03/12/2018,3524196-STI492031,"1,278.00",JT DOVE LTD.
Regeneration and Local Services,Technical Services,Supplies and Services,304221,Equipment and Materials,03/12/2018,3524207-NI041421,977.50,LIGHT & ENERGY DISTRIBUTION LTD.
Regeneration and Local Services,Technical Services,Supplies and Services,384409,Miscellaneous Expenses,03/12/2018,3524212-SIN001952,780.00,LIVING STREETS.
Regeneration and Local Services,Technical Services,Construction work A908,908105,Construction work,03/12/2018,3524216-78947,"2,180.00",LUCION ENVIRONMENTAL LLP LTD.
Regeneration and Local Services,Economic Development and Housing,Construction work A908,908105,Construction work,03/12/2018,3524216-78948,"1,050.00",LUCION ENVIRONMENTAL LLP LTD.
Regeneration and Local Services,Spatial Policy Planning Assets & Environment,Cap Exp on Grants & Other Financial Assistance (REFCUS),918501,Exp assets not owned by authority,03/12/2018,3524218-1080,"39,000.00",MARSDEN AES LTD.
Regeneration and Local Services,Direct Services,Stock A926,926004,Stock,03/12/2018,3524226-7970054811,601.00,MITCHELL POWERSYSTEMS.
Regeneration and Local Services,Direct Services,Stock A926,926004,Stock,03/12/2018,3524236-INVHE39750,541.92,NE TRUCK SPARES LTD (NETS).
Regeneration and Local Services,Direct Services,Stock A926,926004,Stock,03/12/2018,3524236-INVHEIMP225,"1,593.78",NE TRUCK SPARES LTD (NETS).
Regeneration and Local Services,Direct Services,Transport,210057,Repair and Maintenance of Vehicles,03/12/2018,3524236-INVHE39701,843.42,NE TRUCK SPARES LTD (NETS).
Regeneration and Local Services,Technical Services,Supplies and Services,304221,Equipment and Materials,03/12/2018,3524248-179059,708.00,NORTH EAST CONCRETE LTD.
Regeneration and Local Services,Technical Services,Supplies and Services,304221,Equipment and Materials,03/12/2018,3524248-179060,730.00,NORTH EAST CONCRETE LTD.
Children and Young Peoples Services,Head of Education and Skills,Third Party Payments 4THIRD,440999,Other third party payments E440,03/12/2018,3524249-3262,"4,815.33",NORTH EAST DANCE CIC.
Regeneration and Local Services,Technical Services,Third Party Payments 4THIRD,430100,Rendered by Private Contractors,03/12/2018,3524252-DI20303795,"2,692.99",NORTHERN POWERGRID (NORTHEAST) LTD.
Regeneration and Local Services,Technical Services,Third Party Payments 4THIRD,430100,Rendered by Private Contractors,03/12/2018,3524252-DI20306698,"4,795.44",NORTHERN POWERGRID (NORTHEAST) LTD.
Regeneration and Local Services,Technical Services,Third Party Payments 4THIRD,430100,Rendered by Private Contractors,03/12/2018,3524252-DI20306699,"2,777.20",NORTHERN POWERGRID (NORTHEAST) LTD.
Regeneration and Local Services,Technical Services,Construction work A908,908112,Capital - Drainage,03/12/2018,3524256-914407066,"6,271.00",NORTHUMBRIAN WATER LTD.
Regeneration and Local Services,Technical Services,Premises,120009,Energy Costs,03/12/2018,3524257-NNO76CNC,"177,915.41",NPOWER.
Regeneration and Local Services,Technical Services,Premises,120009,Energy Costs,03/12/2018,3524257-NNO76G2T,"20,407.93",NPOWER.
Adult and Health Services,Head of Adults,Premises,120009,Energy Costs,03/12/2018,3524257-NNO7XNNK,544.19,NPOWER.
Adult and Health Services,Head of Adults,Premises,120009,Energy Costs,03/12/2018,3524257-NNO7XNNS,576.08,NPOWER.
Regeneration and Local Services,Direct Services,Transport,215005,Running Costs of Vehicles,03/12/2018,3524260-372047,"14,583.80",OIL NRG LTD.
Regeneration and Local Services,Direct Services,Transport,215022,Running Costs of Vehicles,03/12/2018,3524260-372050,"1,186.20",OIL NRG LTD.
Regeneration and Local Services,Direct Services,Third Party Payments 4THIRD,430100,Rendered by Private Contractors,03/12/2018,3524263-0000710114,"4,887.14",OPENVIEW SECURITY SOLUTIONS LTD.
Regeneration and Local Services,Technical Services,Stock A926,926900,Stock in hand-Inventory system,03/12/2018,3524268-XL231476,"2,099.00",PARK ELECTRICAL DISTRIBUTORS LTD.
Children and Young Peoples Services,"Head of Early Help, Inclusion and Vulnerable Children",Supplies and Services,338042,Services,03/12/2018,3524269-285207-7/9/18,"1,950.00",PARKLANE PLOWDEN CHAMBERS (BARRISTERS).
Dedicated Schools Grant,DSG High Needs Block,Supplies and Services,304259,Equipment and Materials,03/12/2018,3524278-2592223526,"5,407.60",PHONAK UK LTD.
Resources,Digital and Customer Services,Supplies and Services,332029,Printing Stationery and Gen Off Exps,03/12/2018,3524293-16716,"3,640.00",RADECAL SIGNS GRAPHICS & ADVERTISING.
Resources,Digital and Customer Services,Supplies and Services,332029,Printing Stationery and Gen Off Exps,03/12/2018,3524293-16717,960.00,RADECAL SIGNS GRAPHICS & ADVERTISING.
Resources,Digital and Customer Services,Supplies and Services,332029,Printing Stationery and Gen Off Exps,03/12/2018,3524293-16720,"4,390.00",RADECAL SIGNS GRAPHICS & ADVERTISING.
Adult and Health Services,Commissioning inc Supporting People,Supplies and Services,338026,Services,03/12/2018,3524298-592,525.00,RICHARD CORKHILL CONSULTANCY & TRAINING.
Regeneration and Local Services,Direct Services,Supplies and Services,304221,Equipment and Materials,03/12/2018,3524304-292016485,"1,148.25",RS COMPONENTS LTD.
Regeneration and Local Services,Economic Development and Housing,Supplies and Services,328041,Clothing uniforms and laundry E328,03/12/2018,3524309-8011015,556.50,SAGITTARIAN EMBROIDERY.
Children and Young Peoples Services,Head of Education and Skills,Transport,230003,Contract Hire,03/12/2018,3524311-2812,"2,040.00",SCARLET BAND BUS & COACH LTD.
Regeneration and Local Services,Technical Services,Third Party Payments 4THIRD,430100,Rendered by Private Contractors,03/12/2018,3524312-1580,"2,745.00",SCHMUCK WHORLTON LTD.
Regeneration and Local Services,Technical Services,Third Party Payments 4THIRD,430100,Rendered by Private Contractors,03/12/2018,3524312-1585,"4,850.00",SCHMUCK WHORLTON LTD.
Regeneration and Local Services,Technical Services,Third Party Payments 4THIRD,430100,Rendered by Private Contractors,03/12/2018,3524312-1588,507.00,SCHMUCK WHORLTON LTD.
Regeneration and Local Services,Technical Services,Third Party Payments 4THIRD,430100,Rendered by Private Contractors,03/12/2018,3524312-1600,725.00,SCHMUCK WHORLTON LTD.
Regeneration and Local Services,Transport and Contracted Services,Supplies and Services,338078,Services,03/12/2018,3524318-152414,"3,082.24",SHOWSEC INTERNATIONAL LTD.
Regeneration and Local Services,Direct Services,Supplies and Services,304221,Equipment and Materials,03/12/2018,3524321-714560115127,580.04,SIG TRADING LTD.
Regeneration and Local Services,Technical Services,Supplies and Services,304221,Equipment and Materials,03/12/2018,3524322-249837,"5,198.00",SIGNPOST SOLUTIONS LTD.
Regeneration and Local Services,Direct Services,Third Party Payments 4THIRD,430100,Rendered by Private Contractors,03/12/2018,3524333-6459,"5,535.00",ST ASTIER LTD.
Children and Young Peoples Services,Head of Education and Skills,Transport,230009,Contract Hire,03/12/2018,3524334-32358-OCT,672.00,STANLEY TRAVEL (NORTH EAST) LTD.
Regeneration and Local Services,Transport and Contracted Services,Third Party Payments 4THIRD,430106,Rendered by Private Contractors,03/12/2018,3524334-32057,"1,449.95",STANLEY TRAVEL (NORTH EAST) LTD.
Regeneration and Local Services,Technical Services,Supplies and Services,304221,Equipment and Materials,03/12/2018,3524335-112044,572.88,STONEGRAVE AGGREGATES LTD.
Adult and Health Services,Commissioning inc Supporting People,Transport,240045,Car allowances E240,03/12/2018,3524338-8978,"7,348.36",SUPPORTIVE SRC LTD.
Regeneration and Local Services,Technical Services,Supplies and Services,304221,Equipment and Materials,03/12/2018,3524344-9038953296,"1,114.93",TARMAC TRADING LTD.
Regeneration and Local Services,Technical Services,Supplies and Services,304221,Equipment and Materials,03/12/2018,3524344-9039003187,"1,341.55",TARMAC TRADING LTD.
Adult and Health Services,Public Health,Supplies and Services,338094,Services,03/12/2018,3524350-5532,530.50,THE DURHAM CENTRE LTD.
Children and Young Peoples Services,Head of Education and Skills,Transport,230007,Contract Hire,03/12/2018,3524355-5253,545.00,THE WINDMILL SPECIAL NEEDS COMPANY LTD.
Regeneration and Local Services,Technical Services,Stock A926,926900,Stock in hand-Inventory system,03/12/2018,3524357-NSIN00000175,668.00,THOMAS OWEN & SONS (NEWCASTLE) LTD.
Children and Young Peoples Services,"Head of Early Help, Inclusion and Vulnerable Children",Supplies and Services,308011,Furniture,03/12/2018,3524362-15443,"7,030.00",TOUGH FURNITURE LTD.
Resources,Digital and Customer Services,Supplies and Services,304639,Equipment and Materials,03/12/2018,3524363-125358,615.00,TP ELECTRICAL SUPPLIES & FIXINGS LTD.
Children and Young Peoples Services,"Head of Early Help, Inclusion and Vulnerable Children",Supplies and Services,304040,Equipment and Materials,03/12/2018,3524367-LINV021868,"2,238.75",TRINITY MEDICAL PROPERTIES LTD.
Regeneration and Local Services,Direct Services,Supplies and Services,304221,Equipment and Materials,03/12/2018,3524372-04013011,958.80,UK ELECTRIC LTD.
Regeneration and Local Services,Culture & Sport,Supplies and Services,304259,Equipment and Materials,03/12/2018,3524374-US2383,615.00,ULTIMATE SUPPLIES (NORTH) LTD.
Regeneration and Local Services,Culture & Sport,Supplies and Services,304259,Equipment and Materials,03/12/2018,3524376-6547,"1,264.83",UNIVERSAL SERVICES (SPORTS EQUIPMENT) LTD.
Regeneration and Local Services,Culture & Sport,Supplies and Services,304259,Equipment and Materials,03/12/2018,3524376-6549,625.00,UNIVERSAL SERVICES (SPORTS EQUIPMENT) LTD.
Resources,Digital and Customer Services,Supplies and Services,384199,Miscellaneous Expenses,03/12/2018,3524377-R-56764,"1,090.10",UPNORTH ENGINEERING SERVICES LTD.
Regeneration and Local Services,Direct Services,Third Party Payments 4THIRD,430100,Rendered by Private Contractors,03/12/2018,3524385-243355,841.00,VISHAY PM ONBOARD.
Regeneration and Local Services,Technical Services,Third Party Payments 4THIRD,430127,Rendered by Private Contractors,03/12/2018,3524387-46020,"2,134.00",W MARLEY AGRICULTURAL CONTRACTORS LTD.
Regeneration and Local Services,Technical Services,Supplies and Services,304221,Equipment and Materials,03/12/2018,3524387-46019,"1,642.00",W MARLEY AGRICULTURAL CONTRACTORS LTD.
Adult and Health Services,Public Health,Third Party Payments 4THIRD,460803,Contract Payments,03/12/2018,3524391-2232,"4,050.00",WELLMIND MEDIA LTD.
Regeneration and Local Services,Direct Services,Premises,150015,Apportioned Exps of Operational Blds,03/12/2018,3524392-775127,756.06,WERNICK HIRE LTD.
Regeneration and Local Services,Direct Services,Supplies and Services,304245,Equipment and Materials,03/12/2018,3524397-56225675,"1,656.00",WOLSELEY UK LTD.
Regeneration and Local Services,Direct Services,Third Party Payments 4THIRD,430100,Rendered by Private Contractors,03/12/2018,3524405-118885,767.00,ZOELLER WASTE SYSTEMS LTD.
Regeneration and Local Services,Direct Services,Transport,210057,Repair and Maintenance of Vehicles,03/12/2018,3524405-SI103759,"1,047.55",ZOELLER WASTE SYSTEMS LTD.
Regeneration and Local Services,Technical Services,Supplies and Services,304221,Equipment and Materials,04/12/2018,3524413-27361638,680.00,AGGREGATE INDUSTRIES UK LTD.
Regeneration and Local Services,Technical Services,Supplies and Services,304221,Equipment and Materials,04/12/2018,3524413-27437195,678.64,AGGREGATE INDUSTRIES UK LTD.
Regeneration and Local Services,Culture & Sport,Supplies and Services,338047,Services,04/12/2018,3524419-674,"6,268.67",AMANDE CONCERTS LTD.
Regeneration and Local Services,Culture & Sport,Supplies and Services,338047,Services,04/12/2018,3524420-136,"3,595.19",AMICK PRODUCTIONS LTD.
Regeneration and Local Services,Culture & Sport,Supplies and Services,338047,Services,04/12/2018,3524430-1506,"1,716.00",ASH COOPER FREELANCE SERVICES.
Adult and Health Services,Head of Adults,Supplies and Services,304516,Equipment and Materials,04/12/2018,3524444-INV-0200,"1,109.00",BILL SCOTT TAXIS LTD.
Children and Young Peoples Services,Head of Education and Skills,Supplies and Services,304252,Equipment and Materials,04/12/2018,3524459-1,655.00,BRASS (INSTRUMENT REPAIRER).
Adult and Health Services,Public Health,Third Party Payments 4THIRD,460803,Contract Payments,04/12/2018,3524461-DXNF/00000139NRT,631.82,BRITTON & ROBSON LTD.
Regeneration and Local Services,Culture & Sport,Supplies and Services,338047,Services,04/12/2018,3524470-CTS24NO,"1,920.50",CHAPTERHOUSE THEATRE CO.
Adult and Health Services,Public Health,Third Party Payments 4THIRD,460803,Contract Payments,04/12/2018,3524471-DYJV/00000164NRT,637.16,CHILTON CHEMISTS LTD.*
Children and Young Peoples Services,Head of Education and Skills,Transport,230008,Contract Hire,04/12/2018,3524473-INV-023,"1,470.00",CLARE LYNSEY STEWART T/A K&C TAXIS.
Children and Young Peoples Services,Head of Education and Skills,Transfer Payments,510027,School Children,04/12/2018,3524477-CAS-12-2018-004,"1,995.30",CLEVES CROSS ACADEMY.
Dedicated Schools Grant,DSG Early Years Block,Transfer Payments,510030,School Children,04/12/2018,3524481-10881,"1,119.30",CONKERS LIFE LTD (NURSERY SCHOOL).
Resources,Legal & Democratic Services,Supplies and Services,352001,Conference Expenses,04/12/2018,3524486-RES-12-2018-002,750.00,CRYSTALLISED LTD.
Regeneration and Local Services,Direct Services,Supplies and Services,384899,Miscellaneous Expenses,04/12/2018,3524492-NEI-EXP-11-2018-011,500.00,DIOCESE OF HEXHAM & NEWCASTLE CHESTER LE STREET ST CUTHBERT.
Regeneration and Local Services,Direct Services,Third Party Payments 4THIRD,430101,Rendered by Private Contractors,04/12/2018,3524495-IV1057823,"1,812.51",DIRECT TYRE MANAGEMENT LTD (DTM).
Regeneration and Local Services,Direct Services,Transport,210057,Repair and Maintenance of Vehicles,04/12/2018,3524504-S200289/1,"5,635.60",ECON ENGINEERING LTD.
Regeneration and Local Services,Direct Services,Supplies and Services,304221,Equipment and Materials,04/12/2018,3524505-059-234652,825.00,EDMUNDSON ELECTRICAL LTD.
Regeneration and Local Services,Culture & Sport,Supplies and Services,338047,Services,04/12/2018,3524512-4215,"3,000.00",ENGLISH TOURING OPERA LTD.
Adult and Health Services,Public Health,Third Party Payments 4THIRD,460803,Contract Payments,04/12/2018,3524519-FBQJ/00000150NRT,532.70,FARAH CHEMISTS LTD.
Regeneration and Local Services,Culture & Sport,Supplies and Services,336005,Advertising E336,04/12/2018,3524522-2338,597.00,FIREFLY NEW MEDIA UK.
Non-Service Specific,Non Service Specific-Financing,Long Term Debtors,924001,Car loans,04/12/2018,3524531-67810,"2,480.00",GO GATESHEAD LTD.
Regeneration and Local Services,Direct Services,Transport,210057,Repair and Maintenance of Vehicles,04/12/2018,3524536-149485,"1,145.04",GREENLAY (GRASS MACHINERY) LTD.
Regeneration and Local Services,Direct Services,Supplies and Services,304221,Equipment and Materials,04/12/2018,3524550-A38/0098612,"2,692.12",HOWDENS JOINERY LTD.
Regeneration and Local Services,Direct Services,Supplies and Services,338001,Services,04/12/2018,3524553-80697,"2,050.00",INITIAL PROJECTS LTD T/A ENITIAL.
Regeneration and Local Services,Economic Development and Housing,Supplies and Services,338066,Services,04/12/2018,3524577-DBOP11,"17,000.00",LEC CONSULTANCY LTD.
Adult and Health Services,Public Health,Third Party Payments 4THIRD,460803,Contract Payments,04/12/2018,3524586-FPZD/00000128NRT,636.39,LYDON PHARMACY GROUP LTD.
Children and Young Peoples Services,Head of Education and Skills,Transport,230008,Contract Hire,04/12/2018,3524605-INV159,520.00,MICHAEL COBB T/A HAIL TAXIS.
Children and Young Peoples Services,Head of Education and Skills,Transport,230008,Contract Hire,04/12/2018,3524610-42/43,"1,050.00",MR PAUL BOWMAN.
Resources,Finance & Transactional Services,Supplies and Services,340001,Postages E340,04/12/2018,3524617-92518124,898.60,NEOPOST LTD.
Regeneration and Local Services,Economic Development and Housing,Supplies and Services,336005,Advertising E336,04/12/2018,3524619-303,"1,225.00",NEWSMAKER PR & VIDEO PRODUCTION LTD.
Regeneration and Local Services,Spatial Policy Planning Assets & Environment,Supplies and Services,336005,Advertising E336,04/12/2018,3524620-26336980,797.16,NEWSQUEST (YORKSHIRE & NORTH EAST) LTD.
Regeneration and Local Services,Spatial Policy Planning Assets & Environment,Supplies and Services,336005,Advertising E336,04/12/2018,3524620-26685562,690.87,NEWSQUEST (YORKSHIRE & NORTH EAST) LTD.
Regeneration and Local Services,Direct Services,Third Party Payments 4THIRD,430100,Rendered by Private Contractors,04/12/2018,3524636-1799,"2,860.00",PARAMOUNT CEILINGS & PARTITIONS.
Regeneration and Local Services,Direct Services,Third Party Payments 4THIRD,430100,Rendered by Private Contractors,04/12/2018,3524636-1816,560.00,PARAMOUNT CEILINGS & PARTITIONS.
Children and Young Peoples Services,Head of Education and Skills,Supplies and Services,384199,Miscellaneous Expenses,04/12/2018,3524645-18/19-03,500.00,PGI SMITH SOLUTIONS LTD.
Regeneration and Local Services,Technical Services,Third Party Payments 4THIRD,430100,Rendered by Private Contractors,04/12/2018,3524652-5324,"34,334.83",PINKNEY BUILDING CONTRACTORS LTD.
Children and Young Peoples Services,Head of Education and Skills,Supplies and Services,384540,Miscellaneous Expenses,04/12/2018,3524664-INV-6413,"1,012.50",REVOLUTION MARKETING LTD.
Adult and Health Services,Public Health,Third Party Payments 4THIRD,460803,Contract Payments,04/12/2018,3524666-DXGC/00000145NRT,588.17,ROBERTS & ROBERTS LTD T/A BEWICK PHARMACY.*
Regeneration and Local Services,Direct Services,Transport,210057,Repair and Maintenance of Vehicles,04/12/2018,3524671-2019.1000002263,"3,990.62",SCARAB SWEEPERS LTD.
Regeneration and Local Services,Transport and Contracted Services,Third Party Payments 4THIRD,430106,Rendered by Private Contractors,04/12/2018,3524672-2804,"117,241.34",SCARLET BAND BUS & COACH LTD.
Transformation and Partnerships,Partnerships & Community Engagement Div.,Supplies and Services,384086,Miscellaneous Expenses,04/12/2018,3524684-VOUCHERGUNO07-18,500.00,SLAM COMMUNITY DEVELOPMENT TRUST (CDT).
Regeneration and Local Services,Transport and Contracted Services,Third Party Payments 4THIRD,430106,Rendered by Private Contractors,04/12/2018,3524690-32499,"1,485.15",STANLEY TRAVEL (NORTH EAST) LTD.
Regeneration and Local Services,Technical Services,Third Party Payments 4THIRD,430100,Rendered by Private Contractors,04/12/2018,3524693-111762,"2,777.88",STONEGRAVE AGGREGATES LTD.
Regeneration and Local Services,Technical Services,Third Party Payments 4THIRD,430100,Rendered by Private Contractors,04/12/2018,3524693-111810,"4,144.80",STONEGRAVE AGGREGATES LTD.
Regeneration and Local Services,Technical Services,Third Party Payments 4THIRD,430100,Rendered by Private Contractors,04/12/2018,3524693-111871,"1,313.40",STONEGRAVE AGGREGATES LTD.
Regeneration and Local Services,Technical Services,Third Party Payments 4THIRD,430100,Rendered by Private Contractors,04/12/2018,3524693-111931,"3,583.80",STONEGRAVE AGGREGATES LTD.
Regeneration and Local Services,Technical Services,Third Party Payments 4THIRD,430100,Rendered by Private Contractors,04/12/2018,3524693-111991,"1,676.08",STONEGRAVE AGGREGATES LTD.
Regeneration and Local Services,Technical Services,Third Party Payments 4THIRD,430100,Rendered by Private Contractors,04/12/2018,3524693-112041,"3,979.00",STONEGRAVE AGGREGATES LTD.
Regeneration and Local Services,Technical Services,Third Party Payments 4THIRD,430100,Rendered by Private Contractors,04/12/2018,3524693-112094,"3,612.56",STONEGRAVE AGGREGATES LTD.
Children and Young Peoples Services,Head of Education and Skills,Supplies and Services,336005,Advertising E336,04/12/2018,3524697-IN149606,"1,464.00",SWIFT INDUSTRIAL SUPPLIES LTD.
Regeneration and Local Services,Culture & Sport,Supplies and Services,338047,Services,04/12/2018,3524701-1447,"3,950.00",TALEGATE THEATRE PRODUCTIONS.
Regeneration and Local Services,Technical Services,Supplies and Services,304221,Equipment and Materials,04/12/2018,3524702-9038967503,589.38,TARMAC TRADING LTD.
Regeneration and Local Services,Direct Services,Supplies and Services,304245,Equipment and Materials,04/12/2018,3524711-117045,"1,026.00",TOMMY WARDLE.
Regeneration and Local Services,Culture & Sport,Supplies and Services,338047,Services,04/12/2018,3524713-00047921,695.84,TRAFALGAR RELEASING LTD.
Children and Young Peoples Services,Head of Education and Skills,Transport,230008,Contract Hire,04/12/2018,3524715-GAPINVOICE109,"1,650.00",TRIDENT TAXIS.
Regeneration and Local Services,Direct Services,Transport,210057,Repair and Maintenance of Vehicles,04/12/2018,3524723-INV486099,"2,727.01",VERSALIFT DISTRIBUTORS (UK) LTD.
Regeneration and Local Services,Culture & Sport,Supplies and Services,338047,Services,04/12/2018,3524729-22694822,"1,531.13",WARNER BROS ENTERTAINMENT UK LTD.
Children and Young Peoples Services,Head of Education and Skills,Transport,230007,Contract Hire,05/12/2018,3525496-8,"2,378.00",A & C TAXIS.
Children and Young Peoples Services,Head of Education and Skills,Transport,230008,Contract Hire,05/12/2018,3525497-46A,742.00,A HJ JOBLING T/A CASTLE TAXIS.
Dedicated Schools Grant,DSG Early Years Block,Transfer Payments,510030,School Children,05/12/2018,3525500-10920,"2,400.00",ABIGAIL SPENSLEY (CHILDMINDER).
Regeneration and Local Services,Direct Services,Third Party Payments 4THIRD,430100,Rendered by Private Contractors,05/12/2018,3525503-39502115-61,863.55,ADT FIRE & SECURITY PLC.
Children and Young Peoples Services,Head of Education and Skills,Transport,230008,Contract Hire,05/12/2018,3525504-25/18A,"1,680.00",ADVANCE TRAVEL.
Regeneration and Local Services,Culture & Sport,Supplies and Services,384199,Miscellaneous Expenses,05/12/2018,3525506-28367932,"1,050.00",AECOM LTD.
Regeneration and Local Services,Technical Services,Supplies and Services,304221,Equipment and Materials,05/12/2018,3525507-27438842,"1,050.96",AGGREGATE INDUSTRIES UK LTD.
Regeneration and Local Services,Technical Services,Supplies and Services,304221,Equipment and Materials,05/12/2018,3525507-27438843,937.18,AGGREGATE INDUSTRIES UK LTD.
Regeneration and Local Services,Technical Services,Supplies and Services,304221,Equipment and Materials,05/12/2018,3525507-27438845,"1,120.56",AGGREGATE INDUSTRIES UK LTD.
Regeneration and Local Services,Technical Services,Supplies and Services,304221,Equipment and Materials,05/12/2018,3525507-27438846,"1,604.44",AGGREGATE INDUSTRIES UK LTD.
Children and Young Peoples Services,Head of Education and Skills,Transport,230008,Contract Hire,05/12/2018,3525509-38895870,"1,840.00",ALAN SOUTHERN T/A ALANS TAXIS PELTON FELL.
Resources,Legal & Democratic Services,Supplies and Services,338057,Services,05/12/2018,3525510-0000031833,"1,980.00",ALERE FORENSICS.
Children and Young Peoples Services,Head of Education and Skills,Transport,230008,Contract Hire,05/12/2018,3525512-0068,"1,782.00",ANDREW SIMPSON T/A ANDY`S CABS.
Regeneration and Local Services,Technical Services,Construction work A908,908105,Construction work,05/12/2018,3525517-71582402,"1,730.00",APEX ACOUSTICS LTD.
Regeneration and Local Services,Technical Services,Stock A926,926900,Stock in hand-Inventory system,05/12/2018,3525522-INV126534,500.00,AZTEC CHEMICALS LTD.
Regeneration and Local Services,Direct Services,Supplies and Services,304359,Equipment and Materials,05/12/2018,3525531-BMPR/141/LWA,614.05,BISHOP MIDDLEHAM PLANT & RECYCLING LTD.
Regeneration and Local Services,Transport and Contracted Services,Supplies and Services,338066,Services,05/12/2018,3525533-SIN003278,"71,251.74",BLOOM PROCUREMENT SERVICES LTD (FORMERLY NEPRO LTD).
Children and Young Peoples Services,Head of Education and Skills,Transport,230008,Contract Hire,05/12/2018,3525536-7026-E026NOV18,"3,285.00",BOBBY DOVE.
Adult and Health Services,Head of Adults,Transport,230005,Contract Hire,05/12/2018,3525536-7075-EAS093NOV18,"1,189.00",BOBBY DOVE.
Children and Young Peoples Services,Head of Education and Skills,Transport,230008,Contract Hire,05/12/2018,3525538-DC03,"2,268.00",BOWES TRAVEL.
Regeneration and Local Services,Culture & Sport,Premises,145023,Cleaning and Domestic Supplies,05/12/2018,3525539-22SI2242515,789.80,BRENNTAG UK LTD.
Dedicated Schools Grant,DSG Early Years Block,Transfer Payments,510030,School Children,05/12/2018,3525543-10921,861.00,BUDDIES CHILDCARE CENTRE.
Regeneration and Local Services,Transport and Contracted Services,Construction work A908,908105,Construction work,05/12/2018,3525545-25289,"2,866.02",BUS SHELTERS LTD.
Regeneration and Local Services,Economic Development and Housing,Third Party Payments 4THIRD,460305,Contract Payments,05/12/2018,3525546-13070,"39,087.50",BUSINESS & ENTERPRISE COMMERCIAL LTD T/A BE GROUP.
Dedicated Schools Grant,DSG Early Years Block,Transfer Payments,510032,School Children,05/12/2018,3525548-10959,520.20,BUTTERFLIES DAY CARE.
Dedicated Schools Grant,DSG Early Years Block,Transfer Payments,510030,School Children,05/12/2018,3525549-10923,861.00,BYERLEY ROAD PRE SCHOOL.
Children and Young Peoples Services,Head of Education and Skills,Transport,230009,Contract Hire,05/12/2018,3525550-BIL0143,"1,040.00",CA MUSGROVE.
Children and Young Peoples Services,Head of Education and Skills,Transport,230008,Contract Hire,05/12/2018,3525550-BIL0142,"1,050.00",CA MUSGROVE.
Dedicated Schools Grant,DSG Early Years Block,Transfer Payments,510032,School Children,05/12/2018,3525556-10960,612.00,CASTLE KINDERGARTEN LTD.
Children and Young Peoples Services,Head of Education and Skills,Transport,230007,Contract Hire,05/12/2018,3525564-03-2060,"1,308.00",CHAPMAN TRAVEL.
Children and Young Peoples Services,Head of Education and Skills,Transport,230007,Contract Hire,05/12/2018,3525564-22,"1,320.00",CHAPMAN TRAVEL.
Dedicated Schools Grant,DSG Early Years Block,Transfer Payments,510030,School Children,05/12/2018,3525577-10926,592.50,CLEVER CLOGS DAY NURSERY (DURHAM) LTD.
Children and Young Peoples Services,Head of Education and Skills,Transport,230007,Contract Hire,05/12/2018,3525578-1076,"1,760.00",CLIVE HUBERY.
Children and Young Peoples Services,Head of Education and Skills,Transport,230008,Contract Hire,05/12/2018,3525586-1504,"1,932.00",CONNORS MINI BUSES.*
Children and Young Peoples Services,Head of Education and Skills,Transport,230008,Contract Hire,05/12/2018,3525586-1505,"2,058.00",CONNORS MINI BUSES.*
Children and Young Peoples Services,Head of Education and Skills,Transport,230008,Contract Hire,05/12/2018,3525586-1506,"1,974.00",CONNORS MINI BUSES.*
Children and Young Peoples Services,Head of Education and Skills,Transport,230008,Contract Hire,05/12/2018,3525586-1507,"2,520.00",CONNORS MINI BUSES.*
Dedicated Schools Grant,DSG Early Years Block,Transfer Payments,510032,School Children,05/12/2018,3525589-10966,"1,055.70",CORECARE NA LTD.
Regeneration and Local Services,Economic Development and Housing,Supplies and Services,384999,Miscellaneous Expenses,05/12/2018,3525593-DHS-009,696.00,COUNTY DURHAM FURNITURE HELP SCHEME (CDFHS).
Children and Young Peoples Services,Head of Education and Skills,Transport,230006,Contract Hire,05/12/2018,3525600-107976,"1,654.04",CROFT BUSINESS SERVICES (UK) LTD T/A CROFT TAXIS.
Regeneration and Local Services,Direct Services,Supplies and Services,304259,Equipment and Materials,05/12/2018,3525601-0005194548,"1,130.94",CROMWELL GROUP (HOLDINGS) LTD.
Transformation and Partnerships,Partnerships & Community Engagement Div.,Supplies and Services,384086,Miscellaneous Expenses,05/12/2018,3525602-VOUCHER18NB-3TWN011,"4,999.00",CROOK CHRISTMAS COMMITTEE.
Children and Young Peoples Services,Head of Education and Skills,Transport,230007,Contract Hire,05/12/2018,3525608-17,880.00,D CROOK T/A CK TAXIS.
Children and Young Peoples Services,Head of Education and Skills,Transport,230008,Contract Hire,05/12/2018,3525608-16,"1,680.00",D CROOK T/A CK TAXIS.
Adult and Health Services,Head of Adults,Transport,230005,Contract Hire,05/12/2018,3525609-THOR1118,877.07,D IRVING T/A BJ TAXIS.
Children and Young Peoples Services,Head of Education and Skills,Transport,230009,Contract Hire,05/12/2018,3525612-3373,500.00,DAVES MINIBUSES.
Children and Young Peoples Services,Head of Education and Skills,Transport,230008,Contract Hire,05/12/2018,3525612-3368,"1,785.00",DAVES MINIBUSES.
Children and Young Peoples Services,Head of Education and Skills,Transport,230008,Contract Hire,05/12/2018,3525612-3369,"2,706.00",DAVES MINIBUSES.
Children and Young Peoples Services,Head of Education and Skills,Transport,230008,Contract Hire,05/12/2018,3525612-3370,"1,870.00",DAVES MINIBUSES.
Children and Young Peoples Services,Head of Education and Skills,Transport,230008,Contract Hire,05/12/2018,3525612-3371,"2,420.00",DAVES MINIBUSES.
Children and Young Peoples Services,Head of Education and Skills,Transport,230008,Contract Hire,05/12/2018,3525612-3372,"1,890.00",DAVES MINIBUSES.
Children and Young Peoples Services,Head of Education and Skills,Transport,230008,Contract Hire,05/12/2018,3525613-A141-NOV,980.00,DAVES TAXIS (BLACKHALL).
Adult and Health Services,Head of Adults,Transport,230005,Contract Hire,05/12/2018,3525613-NCL017-NOV,"1,632.00",DAVES TAXIS (BLACKHALL).
Dedicated Schools Grant,DSG Early Years Block,Transfer Payments,510032,School Children,05/12/2018,3525615-10985,"2,351.10",DAYPARK LTD T/A YELLOW WELLIES.
Resources,Legal & Democratic Services,Supplies and Services,338042,Services,05/12/2018,3525620-337815/INVTD593,"15,250.00",DERE STREET BARRISTERS.
Regeneration and Local Services,Direct Services,Third Party Payments 4THIRD,430101,Rendered by Private Contractors,05/12/2018,3525622-IV1057825,"2,268.09",DIRECT TYRE MANAGEMENT LTD (DTM).
Regeneration and Local Services,Culture & Sport,Supplies and Services,384199,Miscellaneous Expenses,05/12/2018,3525624-46831,"2,000.00",DR LEO JOHN DE FREITAS T/A GRAPHICUS TOURING.
Resources,Legal & Democratic Services,Supplies and Services,338057,Services,05/12/2018,3525625-OCTOBER-18U,"1,936.00",DR SREE MUSSUNOOR.
Resources,Legal & Democratic Services,Supplies and Services,338057,Services,05/12/2018,3525626-OCTOBER-18D,"1,350.00",DR SREE MUSSUNOOR.
Dedicated Schools Grant,DSG Early Years Block,Transfer Payments,510030,School Children,05/12/2018,3525628-10928,840.00,DUCKLINGS DAY NURSERY.
Children and Young Peoples Services,Head of Education and Skills,Transport,230003,Contract Hire,05/12/2018,3525630-27267,"2,970.00",DURHAM CITY COACHES.
Children and Young Peoples Services,Head of Education and Skills,Transport,230003,Contract Hire,05/12/2018,3525630-7584-4015,"2,981.00",DURHAM CITY COACHES.
Children and Young Peoples Services,Head of Education and Skills,Transport,230003,Contract Hire,05/12/2018,3525630-7584-4019,"3,531.00",DURHAM CITY COACHES.
Children and Young Peoples Services,Head of Education and Skills,Transport,230003,Contract Hire,05/12/2018,3525630-7584-4023,"2,849.00",DURHAM CITY COACHES.
Regeneration and Local Services,Direct Services,Supplies and Services,304221,Equipment and Materials,05/12/2018,3525638-059-234325,805.46,EDMUNDSON ELECTRICAL LTD.
Regeneration and Local Services,Direct Services,Supplies and Services,304221,Equipment and Materials,05/12/2018,3525638-059-234519,797.69,EDMUNDSON ELECTRICAL LTD.
Resources,Digital and Customer Services,Supplies and Services,332029,Printing Stationery and Gen Off Exps,05/12/2018,3525644-113528,"2,472.00",ELANDERS UK.
Dedicated Schools Grant,DSG Early Years Block,Transfer Payments,510030,School Children,05/12/2018,3525648-10930,"3,561.15",EMERALDS LITTLE GEMS DAYCARE LTD.
Regeneration and Local Services,Transport and Contracted Services,Supplies and Services,384899,Miscellaneous Expenses,05/12/2018,3525659-RED-11-2018-083,"2,489.00",FERRYHILL TOWN COUNCIL.
Regeneration and Local Services,Direct Services,Supplies and Services,304221,Equipment and Materials,05/12/2018,3525664-1811-117751,501.31,FLAME HEATING SPARES LTD.
Adult and Health Services,Head of Adults,Transport,230005,Contract Hire,05/12/2018,3525671-002-WV130,840.00,GAIL MADDISON T/A CENTRAL TAXIS.
Regeneration and Local Services,Technical Services,Supplies and Services,304357,Equipment and Materials,05/12/2018,3525672-DCC041118,"18,430.10",GAP GROUP LTD.
Regeneration and Local Services,Technical Services,Supplies and Services,304357,Equipment and Materials,05/12/2018,3525672-DCC121118,"21,856.95",GAP GROUP LTD.
Children and Young Peoples Services,Head of Childrens Social Care,Employees,080025,Agency Staff,05/12/2018,3525676-1159054,"106,053.04",GEOMETRIC RESULTS INTERNATIONAL.
Dedicated Schools Grant,DSG Early Years Block,Transfer Payments,510030,School Children,05/12/2018,3525679-10932,678.00,GIANT STEPS LTD.
Dedicated Schools Grant,DSG Early Years Block,Transfer Payments,510030,School Children,05/12/2018,3525680-10933,882.00,GIANT STEPS LTD.
Dedicated Schools Grant,DSG Early Years Block,Transfer Payments,510032,School Children,05/12/2018,3525681-10963,657.90,GILLIAN MCKENNA (CHILDMINDER).
Dedicated Schools Grant,DSG Early Years Block,Transfer Payments,510032,School Children,05/12/2018,3525689-10964,"1,683.00",GREEN LANE NURSERY & CHILDCARE CENTRE.
Regeneration and Local Services,Direct Services,Supplies and Services,304221,Equipment and Materials,05/12/2018,3525692-J6802,"1,040.00",GROVE REED.
Regeneration and Local Services,Direct Services,Supplies and Services,304221,Equipment and Materials,05/12/2018,3525692-J6813,"1,940.00",GROVE REED.
Children and Young Peoples Services,Head of Education and Skills,Transport,230006,Contract Hire,05/12/2018,3525694-24,705.60,HARDIP SINGH MAHIL T/A AMBER CARS.
Regeneration and Local Services,Technical Services,Third Party Payments 4THIRD,430100,Rendered by Private Contractors,05/12/2018,3525698-2849,"5,744.46",HIGHWAY CONSTRUCTION SERVICES LTD.
Regeneration and Local Services,Technical Services,Third Party Payments 4THIRD,430100,Rendered by Private Contractors,05/12/2018,3525698-2850,"5,442.12",HIGHWAY CONSTRUCTION SERVICES LTD.
Dedicated Schools Grant,DSG High Needs Block,Central Support and Other Recharges,689996,Unclassified E690,05/12/2018,3525702-CAS-12-2018-015,"80,903.69",HOPE WOOD ACADEMY.
Dedicated Schools Grant,DSG Early Years Block,Transfer Payments,510032,School Children,05/12/2018,3525705-10965,550.80,HOUSE OF EDEN CHILDRENS NURSERY.
Dedicated Schools Grant,DSG Early Years Block,Transfer Payments,510030,School Children,05/12/2018,3525705-10934,924.60,HOUSE OF EDEN CHILDRENS NURSERY.
Regeneration and Local Services,Direct Services,Supplies and Services,304221,Equipment and Materials,05/12/2018,3525706-A38/0099124,626.23,HOWDENS JOINERY LTD.
Transformation and Partnerships,Partnerships & Community Engagement Div.,Cap Exp on Grants & Other Financial Assistance (REFCUS),918004,Contributions to other bodies 918004,05/12/2018,3525712-VOUCHER18NB-SPEN005,"1,176.00",INSIDE OUTSIDE COMMUNITY DEVELOPMENT CIC.
Regeneration and Local Services,Technical Services,Construction work A908,908105,Construction work,05/12/2018,3525719-22400,"2,661.10",JACK COUPE & SONS LTD T/A COUPE LINE.
Regeneration and Local Services,Technical Services,Construction work A908,908105,Construction work,05/12/2018,3525719-22407,739.33,JACK COUPE & SONS LTD T/A COUPE LINE.
Transformation and Partnerships,Communications Management,Supplies and Services,336005,Advertising E336,05/12/2018,3525722-SF/I102552,500.00,JCDECAUX UK LTD.
Transformation and Partnerships,Communications Management,Supplies and Services,336005,Advertising E336,05/12/2018,3525722-SF/I104783,500.00,JCDECAUX UK LTD.
Regeneration and Local Services,Direct Services,Construction work A908,908105,Construction work,05/12/2018,3525729-INS1LANCHESTER-ROAD-CEMETERY,"8,508.00",JOHN WADE (HAULAGE) LTD.
Regeneration and Local Services,Direct Services,Construction work A908,908105,Construction work,05/12/2018,3525729-INS1LANGLEYPARK-CEMETERY,"8,616.00",JOHN WADE (HAULAGE) LTD.
Dedicated Schools Grant,DSG Early Years Block,Transfer Payments,510032,School Children,05/12/2018,3525737-10967,581.40,KATHERINE ELIZABETH EDEN (CHILDMINDER).
Dedicated Schools Grant,DSG Early Years Block,Transfer Payments,510030,School Children,05/12/2018,3525737-10937,809.76,KATHERINE ELIZABETH EDEN (CHILDMINDER).
Children and Young Peoples Services,Head of Education and Skills,Transport,230006,Contract Hire,05/12/2018,3525740-2104,937.00,KEN HINDS.
Regeneration and Local Services,Technical Services,Third Party Payments 4THIRD,430100,Rendered by Private Contractors,05/12/2018,3525747-19074,"20,070.15",KIELY BROS LTD.
Dedicated Schools Grant,DSG Early Years Block,Transfer Payments,510030,School Children,05/12/2018,3525761-10939,923.40,LITTLE ACORNS NORTH EAST LTD.
Children and Young Peoples Services,Head of Education and Skills,Transport,230008,Contract Hire,05/12/2018,3525773-46,"1,520.00",MALCOLM CARR T/A CARLY CABS.
Children and Young Peoples Services,Head of Education and Skills,Transport,230008,Contract Hire,05/12/2018,3525778-0006,"1,445.00",MARK WATSON T/A MARK`S TAXIS.
Regeneration and Local Services,Spatial Policy Planning Assets & Environment,Cap Exp on Grants & Other Financial Assistance (REFCUS),918501,Exp assets not owned by authority,05/12/2018,3525780-1083,"76,423.00",MARSDEN AES LTD.
Dedicated Schools Grant,DSG Early Years Block,Transfer Payments,510032,School Children,05/12/2018,3525785-10970,"1,071.00",MELANIE PARKIN (CHILDMINDER).
Children and Young Peoples Services,Head of Education and Skills,Transport,230007,Contract Hire,05/12/2018,3525790-GP211-18,657.80,MR CT WALKER T/A CW TAXIS.
Children and Young Peoples Services,Head of Education and Skills,Transport,230006,Contract Hire,05/12/2018,3525790-COLL11-18,"1,696.32",MR CT WALKER T/A CW TAXIS.
Children and Young Peoples Services,Head of Education and Skills,Transport,230012,Contract Hire,05/12/2018,3525790-CHPK11-18,"2,164.80",MR CT WALKER T/A CW TAXIS.
Children and Young Peoples Services,Head of Education and Skills,Transport,230006,Contract Hire,05/12/2018,3525791-95,"1,598.00",MR JOHN ALLINSON T/A AALPHA TAXIS.
Regeneration and Local Services,Culture & Sport,Supplies and Services,338047,Services,05/12/2018,3525803-025/18-19,"3,213.33",MTD PRODUCTIONS LTD.
Transformation and Partnerships,Communications Management,Supplies and Services,336005,Advertising E336,05/12/2018,3525808-27108150,"1,000.00",NEWSQUEST (YORKSHIRE & NORTH EAST) LTD.
Adult and Health Services,Head of Adults,Third Party Payments 4THIRD,470101,Purchase of Care,05/12/2018,3525812-0000036196,"56,698.80",NORTH EAST AUTISM SOCIETY.
Regeneration and Local Services,Technical Services,Premises,120009,Energy Costs,05/12/2018,3525817-NNO76G97,"4,887.11",NPOWER.
Dedicated Schools Grant,DSG Early Years Block,Transfer Payments,510032,School Children,05/12/2018,3525818-10971,841.50,NURSERY TIME.
Regeneration and Local Services,Direct Services,Transport,215005,Running Costs of Vehicles,05/12/2018,3525822-373140,"15,625.50",OIL NRG LTD.
Regeneration and Local Services,Direct Services,Transport,215005,Running Costs of Vehicles,05/12/2018,3525822-373142,"6,274.20",OIL NRG LTD.
Regeneration and Local Services,Direct Services,Transport,215022,Running Costs of Vehicles,05/12/2018,3525822-373141,"1,756.80",OIL NRG LTD.
Regeneration and Local Services,Technical Services,Stock A926,926900,Stock in hand-Inventory system,05/12/2018,3525833-XL231589,810.00,PARK ELECTRICAL DISTRIBUTORS LTD.
Regeneration and Local Services,Technical Services,Stock A926,926900,Stock in hand-Inventory system,05/12/2018,3525833-XL231591,780.00,PARK ELECTRICAL DISTRIBUTORS LTD.
Regeneration and Local Services,Technical Services,Stock A926,926900,Stock in hand-Inventory system,05/12/2018,3525833-XL231593,"1,850.00",PARK ELECTRICAL DISTRIBUTORS LTD.
Regeneration and Local Services,Technical Services,Stock A926,926900,Stock in hand-Inventory system,05/12/2018,3525833-XL231595,594.80,PARK ELECTRICAL DISTRIBUTORS LTD.
Children and Young Peoples Services,Head of Childrens Social Care,Supplies and Services,338044,Services,05/12/2018,3525837-6110,596.70,PARSONS MARSHALL PYSCHOLOGY LTD.
Children and Young Peoples Services,Head of Education and Skills,Transport,230007,Contract Hire,05/12/2018,3525846-600A,880.00,PETERLEE EXECUTIVE CARS.
Dedicated Schools Grant,DSG Early Years Block,Transfer Payments,510032,School Children,05/12/2018,3525848-10972,657.90,PETRA FURLONG (CHILDMINDER).
Regeneration and Local Services,Direct Services,Supplies and Services,304221,Equipment and Materials,05/12/2018,3525849-314954,798.14,PEW ELECTRICAL DISTRIBUTORS LTD.
Dedicated Schools Grant,DSG Early Years Block,Transfer Payments,510030,School Children,05/12/2018,3525856-10943,850.50,PLAYDAY NURSERY.
Children and Young Peoples Services,Head of Education and Skills,Transport,230012,Contract Hire,05/12/2018,3525857-1300,"1,364.00",PODA TAXIS LTD.
Regeneration and Local Services,Spatial Policy Planning Assets & Environment,Supplies and Services,338066,Services,05/12/2018,3525861-10366,582.00,PRINTING SERVICES (NORTH EAST) LTD.
Regeneration and Local Services,Technical Services,Third Party Payments 4THIRD,430100,Rendered by Private Contractors,05/12/2018,3525863-115579,550.00,PROTECTOR SECURITY GROUP LTD.
Dedicated Schools Grant,DSG Early Years Block,Transfer Payments,510030,School Children,05/12/2018,3525865-10944,808.50,RACHEL GRAY.
Dedicated Schools Grant,DSG Early Years Block,Transfer Payments,510032,School Children,05/12/2018,3525868-10973,"1,683.00",RAINBOW NURSERY LTD (MIDDLESTONE MOOR).
Dedicated Schools Grant,DSG Early Years Block,Transfer Payments,510030,School Children,05/12/2018,3525871-10946,777.00,REBECCA DUNN (CHILDMINDER).
Regeneration and Local Services,Culture & Sport,Supplies and Services,304259,Equipment and Materials,05/12/2018,3525874-141476,"1,005.90",REPLICA LTD.
Regeneration and Local Services,Business Support,Supplies and Services,340001,Postages E340,05/12/2018,3525881-9057687049,"1,420.28",ROYAL MAIL GROUP PLC.
Resources,Legal & Democratic Services,Supplies and Services,340001,Postages E340,05/12/2018,3525881-9057700247,"1,453.91",ROYAL MAIL GROUP PLC.
Dedicated Schools Grant,DSG High Needs Block,Third Party Payments 4THIRD,410037,Rendered by Other Local Authorities,05/12/2018,311381-SKS1819-054,"5,007.60",SAMUEL KINGS SCHOOL.
Dedicated Schools Grant,DSG Early Years Block,Transfer Payments,510030,School Children,05/12/2018,3525883-10947,829.50,SARAH FARRELL.
Regeneration and Local Services,Culture & Sport,Supplies and Services,324117,Provisions E324,05/12/2018,3525902-53498,919.60,SNOWSHOCK LTD.
Regeneration and Local Services,Direct Services,Third Party Payments 4THIRD,430100,Rendered by Private Contractors,05/12/2018,3525906-6466,"2,150.00",ST ASTIER LTD.
Dedicated Schools Grant,DSG Early Years Block,Transfer Payments,510032,School Children,05/12/2018,3525908-10976,504.90,ST OSWALD`S PRE SCHOOL LEARNING CENTRE.
Dedicated Schools Grant,DSG Early Years Block,Transfer Payments,510030,School Children,05/12/2018,3525911-10948,679.05,STANLEY LEARNING PARTNERSHIP.
Children and Young Peoples Services,Head of Education and Skills,Transport,230031,Contract Hire,05/12/2018,3525912-52017,"1,493.70",STANLEY TRAVEL (NORTH EAST) LTD.
Children and Young Peoples Services,Head of Education and Skills,Transport,230031,Contract Hire,05/12/2018,3525912-52020,"1,334.32",STANLEY TRAVEL (NORTH EAST) LTD.
Dedicated Schools Grant,DSG Early Years Block,Transfer Payments,510032,School Children,05/12/2018,3525916-10977,963.90,STEPHENSON WAY ACADEMY & NURSERY SCHOOL.
Regeneration and Local Services,Technical Services,Third Party Payments 4THIRD,430100,Rendered by Private Contractors,05/12/2018,3525917-112148,"2,060.92",STONEGRAVE AGGREGATES LTD.
Dedicated Schools Grant,DSG Early Years Block,Transfer Payments,510030,School Children,05/12/2018,3525918-10950,577.50,STUART FORSTER.
Dedicated Schools Grant,DSG Early Years Block,Transfer Payments,510032,School Children,05/12/2018,3525943-10980,"6,693.75",THE LAURELS CHILD CARE COMPANY LTD.
Dedicated Schools Grant,DSG Early Years Block,Transfer Payments,510030,School Children,05/12/2018,3525943-10951,"3,444.00",THE LAURELS CHILD CARE COMPANY LTD.
Dedicated Schools Grant,DSG Early Years Block,Transfer Payments,510030,School Children,05/12/2018,3525945-10952,922.70,THE NURSERY.
Children and Young Peoples Services,Head of Education and Skills,Transport,230006,Contract Hire,05/12/2018,3525948-22,"1,278.00",THOMAS GLEN.
Dedicated Schools Grant,DSG Early Years Block,Transfer Payments,510032,School Children,05/12/2018,3525950-10981,612.00,TILLY MINTS CHERUBS DAY NURSERY LTD.
Dedicated Schools Grant,DSG Early Years Block,Transfer Payments,510030,School Children,05/12/2018,3525950-10953,"1,185.00",TILLY MINTS CHERUBS DAY NURSERY LTD.
Children and Young Peoples Services,"Head of Early Help, Inclusion and Vulnerable Children",Supplies and Services,344033,Telephones,05/12/2018,3525970-205044,572.70,UNIFY BUSINESS SOLUTIONS LTD.
Dedicated Schools Grant,DSG Early Years Block,Transfer Payments,510030,School Children,05/12/2018,3525974-10954,850.50,USHAW MOOR PRE SCHOOL.
Dedicated Schools Grant,DSG Early Years Block,Transfer Payments,510030,School Children,05/12/2018,3525976-10955,787.50,VALERIE ELLIS.
Dedicated Schools Grant,DSG Early Years Block,Transfer Payments,510032,School Children,05/12/2018,3525979-10982,612.00,VIKKIE ELTRINGHAM (CHILDMINDER).
Regeneration and Local Services,Culture & Sport,Supplies and Services,338047,Services,05/12/2018,3525984-5922,"7,000.00",VORTEX LIGHTING LTD.
Dedicated Schools Grant,DSG Early Years Block,Transfer Payments,510032,School Children,05/12/2018,3525987-10962,994.50,WAYMAN DEVELOPMENTS LTD T/A CHILDSPLAY PRIVATE NURSERY.
Dedicated Schools Grant,DSG Early Years Block,Transfer Payments,510032,School Children,05/12/2018,3525992-10983,918.00,WESTFIELD HOUSE NURSERY.
Dedicated Schools Grant,DSG Early Years Block,Transfer Payments,510030,School Children,05/12/2018,3525993-10922,"2,892.00",WESTMINSTER DAY NURSERIES LTD T/A BUSY BEES NURSERY.
Children and Young Peoples Services,Head of Education and Skills,Transport,230007,Contract Hire,06/12/2018,3526004-111801,"1,980.00",24/7 TAXI SERVICES LTD.
Children and Young Peoples Services,Head of Education and Skills,Transport,230009,Contract Hire,06/12/2018,3526004-111803,770.00,24/7 TAXI SERVICES LTD.
Children and Young Peoples Services,Head of Education and Skills,Transport,230006,Contract Hire,06/12/2018,3526004-111811,"1,870.00",24/7 TAXI SERVICES LTD.
Children and Young Peoples Services,Head of Education and Skills,Transport,230008,Contract Hire,06/12/2018,3526004-111804,"1,922.40",24/7 TAXI SERVICES LTD.
Children and Young Peoples Services,Head of Education and Skills,Transport,230008,Contract Hire,06/12/2018,3526004-111808,"1,308.00",24/7 TAXI SERVICES LTD.
Children and Young Peoples Services,Head of Education and Skills,Transport,230008,Contract Hire,06/12/2018,3526004-111813,"2,068.00",24/7 TAXI SERVICES LTD.
Adult and Health Services,Head of Adults,Transport,230005,Contract Hire,06/12/2018,3526004-111809,510.00,24/7 TAXI SERVICES LTD.
Children and Young Peoples Services,Head of Education and Skills,Transport,230007,Contract Hire,06/12/2018,3526005-NOVEMBER02-3365,"2,200.00",A & P TAXIS.
Children and Young Peoples Services,Head of Education and Skills,Transport,230009,Contract Hire,06/12/2018,3526005-NOVEMBER03-7357,"1,100.00",A & P TAXIS.
Children and Young Peoples Services,Head of Education and Skills,Transport,230007,Contract Hire,06/12/2018,3526006-573,836.00,A BARKER.
Children and Young Peoples Services,Head of Education and Skills,Transport,230006,Contract Hire,06/12/2018,3526006-571/F757,624.00,A BARKER.
Children and Young Peoples Services,Head of Education and Skills,Transport,230012,Contract Hire,06/12/2018,3526008-1/11/18,"1,540.00",ABA TAXIS.
Children and Young Peoples Services,Head of Education and Skills,Supplies and Services,304259,Equipment and Materials,06/12/2018,3526011-DCCS20180007,723.24,ADDED BRASS T/A DURHAM MUSIC SHOP.
Children and Young Peoples Services,Head of Education and Skills,Supplies and Services,304252,Equipment and Materials,06/12/2018,3526011-DCCI20180001-A,531.49,ADDED BRASS T/A DURHAM MUSIC SHOP.
Children and Young Peoples Services,"Head of Early Help, Inclusion and Vulnerable Children",Premises,108251,Service Repairs and Maintenance,06/12/2018,3526012-39493283-61,706.50,ADT FIRE & SECURITY PLC.
Regeneration and Local Services,Technical Services,Supplies and Services,304221,Equipment and Materials,06/12/2018,3526013-27445265,"1,641.20",AGGREGATE INDUSTRIES UK LTD.
Adult and Health Services,Head of Adults,Transport,230005,Contract Hire,06/12/2018,3526014-0015,"1,540.00",AIRPORT TAXIS 4U.
Regeneration and Local Services,Direct Services,Supplies and Services,308011,Furniture,06/12/2018,3526015-163897,"5,110.00",ALBANY OFFICE EQUIPMENT (WHOLESALE) LTD.
Regeneration and Local Services,Direct Services,Supplies and Services,304221,Equipment and Materials,06/12/2018,3526019-16853,"12,089.67",AMBIC LTD.
Children and Young Peoples Services,Head of Education and Skills,Transport,230008,Contract Hire,06/12/2018,3526024-E053-NOV,"1,980.00",ANDREW PYGALL T/A ARP TAXIS.
Children and Young Peoples Services,Head of Education and Skills,Transport,230008,Contract Hire,06/12/2018,3526025-153,"2,640.00",ANDY CABS.
Children and Young Peoples Services,"Head of Early Help, Inclusion and Vulnerable Children",Supplies and Services,338035,Services,06/12/2018,3526031-89076,"1,461.55",AQA EDUCATION.
Transformation and Partnerships,Communications Management,Supplies and Services,336005,Advertising E336,06/12/2018,3526039-DURHRL/19,790.00,AUTHORISED PUBLICATIONS LTD.
Children and Young Peoples Services,Head of Education and Skills,Transport,230008,Contract Hire,06/12/2018,3526040-301118,"1,760.00",AVALON TAXIS.
Regeneration and Local Services,Transport and Contracted Services,Third Party Payments 4THIRD,440999,Other third party payments E440,06/12/2018,3526046-62159,"6,514.32",BAYDALE CONTROL SYSTEMS LTD.
Children and Young Peoples Services,Head of Education and Skills,Transport,230008,Contract Hire,06/12/2018,3526048-810,"1,648.46",BEELINE MINI BUSES.
Children and Young Peoples Services,Head of Education and Skills,Transport,230008,Contract Hire,06/12/2018,3526048-811,768.02,BEELINE MINI BUSES.
Children and Young Peoples Services,Head of Education and Skills,Transport,230008,Contract Hire,06/12/2018,3526048-812,734.58,BEELINE MINI BUSES.
Children and Young Peoples Services,Head of Education and Skills,Transport,230008,Contract Hire,06/12/2018,3526048-813,678.70,BEELINE MINI BUSES.
Children and Young Peoples Services,Head of Education and Skills,Transport,230016,Contract Hire,06/12/2018,3526049-SMITH2/NOVEMBER18,819.00,BEELINE PRIVATE HIRE.
Children and Young Peoples Services,Head of Education and Skills,Transport,230008,Contract Hire,06/12/2018,3526049-SMITH1/NOVEMBER18,"2,106.00",BEELINE PRIVATE HIRE.
Children and Young Peoples Services,Head of Education and Skills,Transport,230003,Contract Hire,06/12/2018,3526050-STJOHNSRC1118-3003,"2,688.00",BELL BROTHERS TRAVEL.
Children and Young Peoples Services,Head of Education and Skills,Transport,230003,Contract Hire,06/12/2018,3526050-STJOHNSRC1118-3005,"5,208.00",BELL BROTHERS TRAVEL.
Children and Young Peoples Services,Head of Education and Skills,Transport,230008,Contract Hire,06/12/2018,3526057-18,"1,780.00",BL CARS.
Children and Young Peoples Services,Head of Education and Skills,Transport,230009,Contract Hire,06/12/2018,3526061-002-G006,"1,760.00",BOWBURN TAXIS.
Children and Young Peoples Services,Head of Education and Skills,Transport,230008,Contract Hire,06/12/2018,3526065-BZ00282,"1,078.00",BREZ`S TAXIS.
Adult and Health Services,Head of Adults,Transport,230005,Contract Hire,06/12/2018,3526065-BZ00280,616.00,BREZ`S TAXIS.
Adult and Health Services,Head of Adults,Transport,230005,Contract Hire,06/12/2018,3526065-BZ00283,816.00,BREZ`S TAXIS.
Children and Young Peoples Services,Head of Education and Skills,Transport,230008,Contract Hire,06/12/2018,3526073-A028014,"1,235.00",C & R TAXIS.
Children and Young Peoples Services,Head of Education and Skills,Transport,230008,Contract Hire,06/12/2018,3526073-S026014,"1,610.00",C & R TAXIS.
Children and Young Peoples Services,Head of Education and Skills,Transport,230008,Contract Hire,06/12/2018,3526073-W04001,500.00,C & R TAXIS.
Children and Young Peoples Services,Head of Education and Skills,Transport,230008,Contract Hire,06/12/2018,3526073-W078014,"2,640.00",C & R TAXIS.
Regeneration and Local Services,Culture & Sport,Supplies and Services,338047,Services,06/12/2018,3526082-002,979.73,CBS THEATRE GROUP.
Children and Young Peoples Services,Head of Education and Skills,Transport,230008,Contract Hire,06/12/2018,3526088-ES03,"1,595.00",CHIPPERS TAXIS.
Dedicated Schools Grant,DSG High Needs Block,Transport,230010,Contract Hire,06/12/2018,3526090-B023-NOV,"2,064.64",CHRISTOPHER GILL T/A CG TAXIS.
Children and Young Peoples Services,Head of Education and Skills,Transport,230007,Contract Hire,06/12/2018,3526091-46511,"2,640.00",CHRISTOPHER JAMES GRIERSON T/A GRIERSONS COACHES.
Children and Young Peoples Services,Head of Education and Skills,Transport,230003,Contract Hire,06/12/2018,3526091-46509,"3,278.00",CHRISTOPHER JAMES GRIERSON T/A GRIERSONS COACHES.
Children and Young Peoples Services,Head of Education and Skills,Transport,230003,Contract Hire,06/12/2018,3526091-46512,"8,184.00",CHRISTOPHER JAMES GRIERSON T/A GRIERSONS COACHES.
Children and Young Peoples Services,Head of Education and Skills,Transport,230003,Contract Hire,06/12/2018,3526091-46513,"3,080.00",CHRISTOPHER JAMES GRIERSON T/A GRIERSONS COACHES.
Children and Young Peoples Services,Head of Education and Skills,Transport,230003,Contract Hire,06/12/2018,3526091-46514,"2,860.00",CHRISTOPHER JAMES GRIERSON T/A GRIERSONS COACHES.
Children and Young Peoples Services,Head of Education and Skills,Transport,230008,Contract Hire,06/12/2018,3526093-014,"2,584.00",CJ COACHES.
Children and Young Peoples Services,Head of Education and Skills,Transport,230008,Contract Hire,06/12/2018,3526093-015,"3,021.00",CJ COACHES.
Adult and Health Services,Head of Adults,Transport,230005,Contract Hire,06/12/2018,3526099-WV104/1118,836.00,COLVIN`S CABS.
Children and Young Peoples Services,Head of Education and Skills,Supplies and Services,338094,Services,06/12/2018,3526105-3016,782.00,CORNERSTONES CENTRE FOR THE COMMUNITY.
Children and Young Peoples Services,Head of Education and Skills,Transport,230007,Contract Hire,06/12/2018,3526107-DCC/4003/NOV18,"2,002.00",COUNTY COACHES.
Children and Young Peoples Services,Head of Education and Skills,Transport,230007,Contract Hire,06/12/2018,3526107-DCC/4118/NOV,"5,192.00",COUNTY COACHES.
Children and Young Peoples Services,Head of Education and Skills,Transport,230003,Contract Hire,06/12/2018,3526107-DCC/4016/NOV18,"2,420.00",COUNTY COACHES.
Children and Young Peoples Services,Head of Education and Skills,Transport,230003,Contract Hire,06/12/2018,3526107-DCC/4021/NOV,"2,728.00",COUNTY COACHES.
Children and Young Peoples Services,Head of Education and Skills,Transport,230003,Contract Hire,06/12/2018,3526107-DCC/4025/NOV18,"2,376.00",COUNTY COACHES.
Children and Young Peoples Services,Head of Education and Skills,Transport,230008,Contract Hire,06/12/2018,3526111-108412,805.38,CROFT BUSINESS SERVICES (UK) LTD T/A CROFT TAXIS.
Children and Young Peoples Services,Head of Education and Skills,Transport,230008,Contract Hire,06/12/2018,3526111-108412-M051,"2,787.81",CROFT BUSINESS SERVICES (UK) LTD T/A CROFT TAXIS.
Children and Young Peoples Services,Head of Education and Skills,Transport,230008,Contract Hire,06/12/2018,3526111-108534,"1,997.40",CROFT BUSINESS SERVICES (UK) LTD T/A CROFT TAXIS.
Children and Young Peoples Services,Head of Education and Skills,Transport,230008,Contract Hire,06/12/2018,3526111-108540,"3,394.82",CROFT BUSINESS SERVICES (UK) LTD T/A CROFT TAXIS.
Adult and Health Services,Head of Adults,Transport,230005,Contract Hire,06/12/2018,3526111-108539,"1,596.30",CROFT BUSINESS SERVICES (UK) LTD T/A CROFT TAXIS.
Children and Young Peoples Services,Head of Education and Skills,Transport,230007,Contract Hire,06/12/2018,3526114-1602,710.50,DA TAXIS.
Children and Young Peoples Services,Head of Education and Skills,Transport,230007,Contract Hire,06/12/2018,3526114-1603,840.00,DA TAXIS.
Children and Young Peoples Services,Head of Education and Skills,Transport,230006,Contract Hire,06/12/2018,3526114-1605,"2,960.00",DA TAXIS.
Children and Young Peoples Services,Head of Education and Skills,Transport,230008,Contract Hire,06/12/2018,3526114-1604,"1,518.00",DA TAXIS.
Children and Young Peoples Services,Head of Education and Skills,Transport,230008,Contract Hire,06/12/2018,3526115-306,"1,364.00",DA TRAVEL.
Children and Young Peoples Services,Head of Education and Skills,Transport,230008,Contract Hire,06/12/2018,3526118-A84,"2,090.00",DAVID FOREMAN T/A DAVES TAXIS.
Children and Young Peoples Services,Head of Education and Skills,Transport,230008,Contract Hire,06/12/2018,3526118-A85,"1,365.00",DAVID FOREMAN T/A DAVES TAXIS.
Children and Young Peoples Services,Head of Education and Skills,Transport,230008,Contract Hire,06/12/2018,3526118-A86,770.00,DAVID FOREMAN T/A DAVES TAXIS.
Children and Young Peoples Services,Head of Education and Skills,Transport,230008,Contract Hire,06/12/2018,3526120-1118-001,"1,840.00",DCM TAXIS.
Adult and Health Services,Head of Adults,Supplies and Services,338066,Services,06/12/2018,3526128-3011201805122018,716.70,DR DAVID NEILL T/A NOBAS LTD.
Resources,Legal & Democratic Services,Supplies and Services,338057,Services,06/12/2018,3526129-13/11/2018,"1,650.00",DR DCA SENADHIRA.
Adult and Health Services,Head of Adults,Supplies and Services,338066,Services,06/12/2018,3526131-3011201805122018,900.76,DR IBRAHAM ZURMI.
Adult and Health Services,Head of Adults,Supplies and Services,338066,Services,06/12/2018,3526133-3011201805122018,932.24,DR IPSITA MITRA T/A AIT MITRA LTD.
Resources,Legal & Democratic Services,Supplies and Services,384199,Miscellaneous Expenses,06/12/2018,3526134-18P0032270,500.00,DR SCOTT PHILLIPS T/A GENTLE DENTAL CENTRE.
Adult and Health Services,Head of Adults,Supplies and Services,338066,Services,06/12/2018,3526135-3011201805122018,"1,054.77",DR STEPHEN WILKINSON.
Children and Young Peoples Services,Head of Education and Skills,Transport,230009,Contract Hire,06/12/2018,3526142-31112018/04,546.00,EAST DURHAM TAXIS.
Dedicated Schools Grant,DSG High Needs Block,Transport,230010,Contract Hire,06/12/2018,3526142-31112018/06,"2,579.20",EAST DURHAM TAXIS.
Children and Young Peoples Services,Head of Education and Skills,Transport,230008,Contract Hire,06/12/2018,3526142-31112018/01,"2,728.00",EAST DURHAM TAXIS.
Children and Young Peoples Services,Head of Education and Skills,Transport,230008,Contract Hire,06/12/2018,3526142-31112018/02,"2,508.00",EAST DURHAM TAXIS.
Children and Young Peoples Services,Head of Education and Skills,Transport,230008,Contract Hire,06/12/2018,3526142-31112018/03,"3,168.00",EAST DURHAM TAXIS.
Children and Young Peoples Services,Head of Education and Skills,Transport,230008,Contract Hire,06/12/2018,3526142-31112018/05,"3,146.00",EAST DURHAM TAXIS.
Children and Young Peoples Services,Head of Education and Skills,Transport,230006,Contract Hire,06/12/2018,3526155-N220/NOV/180,892.08,EMMA RAMSHAW T/A EMMA`S CABS.
Dedicated Schools Grant,DSG High Needs Block,Transport,230010,Contract Hire,06/12/2018,3526161-B001-003,"1,600.00",FERRYHILL VILLAGE TRAVEL.
Children and Young Peoples Services,Head of Education and Skills,Transport,230008,Contract Hire,06/12/2018,3526161-M107-003,"2,376.00",FERRYHILL VILLAGE TRAVEL.
Children and Young Peoples Services,Head of Education and Skills,Transport,230008,Contract Hire,06/12/2018,3526161-N060-025,"1,260.00",FERRYHILL VILLAGE TRAVEL.
Children and Young Peoples Services,Head of Education and Skills,Transport,230008,Contract Hire,06/12/2018,3526161-W053-025,"1,655.50",FERRYHILL VILLAGE TRAVEL.
Children and Young Peoples Services,Head of Education and Skills,Transport,230008,Contract Hire,06/12/2018,3526161-W063-003,"3,344.00",FERRYHILL VILLAGE TRAVEL.
Children and Young Peoples Services,Head of Childrens Social Care,Third Party Payments 4THIRD,440038,Other third party payments E440,06/12/2018,3526168-484,"14,000.00",FOREVER CARE.
Regeneration and Local Services,Technical Services,Supplies and Services,304358,Equipment and Materials,06/12/2018,3526172-25739,831.00,GA SMITH LTD (PLANT HIRE).
Children and Young Peoples Services,Head of Education and Skills,Transport,230007,Contract Hire,06/12/2018,3526175-20995,"3,058.00",GARNETTS LTD (COACHES).
Children and Young Peoples Services,Head of Education and Skills,Transport,230007,Contract Hire,06/12/2018,3526175-20998,"2,478.00",GARNETTS LTD (COACHES).
Children and Young Peoples Services,Head of Education and Skills,Transport,230007,Contract Hire,06/12/2018,3526175-20999-3182,"3,024.00",GARNETTS LTD (COACHES).
Children and Young Peoples Services,Head of Education and Skills,Transport,230007,Contract Hire,06/12/2018,3526175-21006,"3,748.50",GARNETTS LTD (COACHES).
Children and Young Peoples Services,Head of Education and Skills,Transport,230007,Contract Hire,06/12/2018,3526175-21007,"2,563.00",GARNETTS LTD (COACHES).
Children and Young Peoples Services,Head of Education and Skills,Transport,230007,Contract Hire,06/12/2018,3526175-21009-4034,"2,620.80",GARNETTS LTD (COACHES).
Children and Young Peoples Services,Head of Education and Skills,Transport,230007,Contract Hire,06/12/2018,3526175-21009-4035,"2,410.80",GARNETTS LTD (COACHES).
Children and Young Peoples Services,Head of Education and Skills,Transport,230007,Contract Hire,06/12/2018,3526175-21009-4036,"2,620.80",GARNETTS LTD (COACHES).
Children and Young Peoples Services,Head of Education and Skills,Transport,230007,Contract Hire,06/12/2018,3526175-21009-4037,"4,821.60",GARNETTS LTD (COACHES).
Children and Young Peoples Services,Head of Education and Skills,Transport,230007,Contract Hire,06/12/2018,3526175-21009-4038,"2,410.80",GARNETTS LTD (COACHES).
Children and Young Peoples Services,Head of Education and Skills,Transport,230003,Contract Hire,06/12/2018,3526175-20999-3255,"3,129.00",GARNETTS LTD (COACHES).
Children and Young Peoples Services,Head of Education and Skills,Transport,230008,Contract Hire,06/12/2018,3526175-21002,"1,760.00",GARNETTS LTD (COACHES).
Children and Young Peoples Services,Head of Education and Skills,Employees,080025,Agency Staff,06/12/2018,3526176-41692,"3,596.00",GATENBY SANDERSON LTD.
Dedicated Schools Grant,DSG High Needs Block,Transport,230010,Contract Hire,06/12/2018,3526178-BW001,"1,630.00",GAVIN ELLIOTT T/A LOCATION TAXIS.
Children and Young Peoples Services,Head of Education and Skills,Transport,230008,Contract Hire,06/12/2018,3526178-BW002,500.00,GAVIN ELLIOTT T/A LOCATION TAXIS.
Regeneration and Local Services,Technical Services,Third Party Payments 4THIRD,430127,Rendered by Private Contractors,06/12/2018,3526181-10116,"2,286.00",GJ CONTRACTORS.
Regeneration and Local Services,Technical Services,Stock A926,926900,Stock in hand-Inventory system,06/12/2018,3526182-SI762428,"1,242.50",GLASDON UK LTD.
Children and Young Peoples Services,Head of Education and Skills,Transport,230008,Contract Hire,06/12/2018,3526183-068,"1,540.00",GMC TAXIS NORTH EAST.
Regeneration and Local Services,Technical Services,Stock A926,926900,Stock in hand-Inventory system,06/12/2018,3526193-6240,640.00,HALT HIRE LTD.
Children and Young Peoples Services,Head of Childrens Social Care,Third Party Payments 4THIRD,425021,Rendered by Voluntary Organisations,06/12/2018,3526195-182,"29,403.90",HENNESSY GROUP.
Children and Young Peoples Services,Head of Childrens Social Care,Third Party Payments 4THIRD,425021,Rendered by Voluntary Organisations,06/12/2018,3526195-185,"19,602.60",HENNESSY GROUP.
Children and Young Peoples Services,Head of Education and Skills,Transport,230008,Contract Hire,06/12/2018,3526196-24/W075,990.00,HENRY FOREMAN T/A HENRY`S TAXIS.
Children and Young Peoples Services,Head of Education and Skills,Transport,230006,Contract Hire,06/12/2018,3526202-14825,763.00,HODGSONS COACH OPERATORS LTD.
Adult and Health Services,Head of Adults,Transport,230005,Contract Hire,06/12/2018,3526202-14828,714.00,HODGSONS COACH OPERATORS LTD.
Transformation and Partnerships,Partnerships & Community Engagement Div.,Cap Exp on Grants & Other Financial Assistance (REFCUS),918004,Contributions to other bodies 918004,06/12/2018,3526204-VOUCHER18NB-EDUR028,"3,000.00",HORDEN METHODIST CHURCH.
Children and Young Peoples Services,Head of Education and Skills,Transport,230007,Contract Hire,06/12/2018,3526206-15,"1,430.00",HORNDALE TAXIS LTD.
Children and Young Peoples Services,Head of Education and Skills,Transport,230006,Contract Hire,06/12/2018,3526206-17,"1,340.40",HORNDALE TAXIS LTD.
Children and Young Peoples Services,Head of Education and Skills,Transport,230008,Contract Hire,06/12/2018,3526206-16,"1,716.00",HORNDALE TAXIS LTD.
Adult and Health Services,Head of Adults,Transport,230005,Contract Hire,06/12/2018,3526206-19,759.04,HORNDALE TAXIS LTD.
Children and Young Peoples Services,Head of Education and Skills,Transport,230008,Contract Hire,06/12/2018,3526210-IR1811001,"2,222.00",I & R EXECUTIVE TRAVEL.
Children and Young Peoples Services,Head of Education and Skills,Transport,230008,Contract Hire,06/12/2018,3526210-IR1811002,"2,024.00",I & R EXECUTIVE TRAVEL.
Adult and Health Services,Head of Adults,Transport,230005,Contract Hire,06/12/2018,3526210-IR1811004,"1,510.00",I & R EXECUTIVE TRAVEL.
Dedicated Schools Grant,DSG High Needs Block,Transport,230010,Contract Hire,06/12/2018,3526211-WOOD003,"3,339.00",IAN SOULSBY.
Children and Young Peoples Services,Head of Education and Skills,Construction work A908,908105,Construction work,06/12/2018,3526220-180903-682-01,"3,170.00",ITRANSPORT PLANNING LTD.
Regeneration and Local Services,Technical Services,Construction work A908,908105,Construction work,06/12/2018,3526222-22399,"2,284.17",JACK COUPE & SONS LTD T/A COUPE LINE.
Children and Young Peoples Services,Head of Education and Skills,Transport,230006,Contract Hire,06/12/2018,3526224-DCC0003,869.00,JANICE BRADSHAW T/A JAN PRIVATE HIRE.
Children and Young Peoples Services,Head of Education and Skills,Transport,230007,Contract Hire,06/12/2018,3526227-30/11/18G,"1,320.00",JL EBDON. T/A DIAL-A-CAB.
Children and Young Peoples Services,Head of Education and Skills,Transport,230012,Contract Hire,06/12/2018,3526227-29/11/18F,"1,260.00",JL EBDON. T/A DIAL-A-CAB.
Children and Young Peoples Services,Head of Education and Skills,Transport,230008,Contract Hire,06/12/2018,3526227-30/11/18A,"2,760.00",JL EBDON. T/A DIAL-A-CAB.
Children and Young Peoples Services,Head of Education and Skills,Transport,230008,Contract Hire,06/12/2018,3526227-30/11/18B,"2,404.82",JL EBDON. T/A DIAL-A-CAB.
Children and Young Peoples Services,Head of Education and Skills,Transport,230008,Contract Hire,06/12/2018,3526227-30/11/18C,"1,320.00",JL EBDON. T/A DIAL-A-CAB.
Children and Young Peoples Services,Head of Education and Skills,Transport,230008,Contract Hire,06/12/2018,3526227-30/11/18D,"2,156.00",JL EBDON. T/A DIAL-A-CAB.
Children and Young Peoples Services,Head of Education and Skills,Transport,230008,Contract Hire,06/12/2018,3526227-30/11/18E,"1,936.00",JL EBDON. T/A DIAL-A-CAB.
Children and Young Peoples Services,Head of Education and Skills,Transport,230007,Contract Hire,06/12/2018,3526230-69-30/11/18,"1,980.00",JOHN CRAKE & SONS MINI BUSES LTD.
Children and Young Peoples Services,Head of Education and Skills,Transport,230007,Contract Hire,06/12/2018,3526231-0004-NOV,"2,886.00",JOHN GARLAND.
Dedicated Schools Grant,DSG High Needs Block,Transport,230010,Contract Hire,06/12/2018,3526231-0003-PL008,"2,640.00",JOHN GARLAND.
Adult and Health Services,Head of Adults,Transport,230005,Contract Hire,06/12/2018,3526232-01112018,815.00,JOHN HUBBLE T/A HUBB`S TAXIS.
Regeneration and Local Services,Technical Services,Supplies and Services,304358,Equipment and Materials,06/12/2018,3526234-28916,"1,259.50",JOHN R BUTTERFIELD LTD.
Regeneration and Local Services,Technical Services,Supplies and Services,304358,Equipment and Materials,06/12/2018,3526234-28933,"1,077.00",JOHN R BUTTERFIELD LTD.
Regeneration and Local Services,Technical Services,Supplies and Services,304358,Equipment and Materials,06/12/2018,3526234-28939,"1,068.00",JOHN R BUTTERFIELD LTD.
Regeneration and Local Services,Technical Services,Supplies and Services,304358,Equipment and Materials,06/12/2018,3526234-28960,851.00,JOHN R BUTTERFIELD LTD.
Regeneration and Local Services,Technical Services,Supplies and Services,304358,Equipment and Materials,06/12/2018,3526234-28962,992.00,JOHN R BUTTERFIELD LTD.
Children and Young Peoples Services,Head of Education and Skills,Transport,230008,Contract Hire,06/12/2018,3526235-CORPTRAVNOV18,780.00,JOHN W CROOK T/A CORPORATE TRAVEL.
Regeneration and Local Services,Direct Services,Supplies and Services,304358,Equipment and Materials,06/12/2018,3526236-0000081802,508.00,JOHN WADE (HAULAGE) LTD.
Regeneration and Local Services,Direct Services,Supplies and Services,304221,Equipment and Materials,06/12/2018,3526239-BII274248,"4,137.28",JT DOVE LTD.
Regeneration and Local Services,Direct Services,Supplies and Services,304221,Equipment and Materials,06/12/2018,3526239-BII274257,"2,403.65",JT DOVE LTD.
Regeneration and Local Services,Technical Services,Supplies and Services,304221,Equipment and Materials,06/12/2018,3526239-G0I1318/D,"4,175.00",JT DOVE LTD.
Children and Young Peoples Services,Head of Education and Skills,Transport,230006,Contract Hire,06/12/2018,3526240-F782-NOV,"2,880.00",K & R TAXIS (STANLEY).
Children and Young Peoples Services,Head of Education and Skills,Transport,230008,Contract Hire,06/12/2018,3526240-N307-NOV,"3,797.86",K & R TAXIS (STANLEY).
Adult and Health Services,Head of Adults,Transport,230005,Contract Hire,06/12/2018,3526240-NCL014-NOV,"2,420.00",K & R TAXIS (STANLEY).
Regeneration and Local Services,Culture & Sport,Supplies and Services,384199,Miscellaneous Expenses,06/12/2018,3526242-1807,500.00,KAREN BARKER T/A ANTIQUITIES CONSERVATION SERVICE.
Children and Young Peoples Services,Head of Education and Skills,Transport,230008,Contract Hire,06/12/2018,3526244-NOS027,"1,932.62",KEITH GIBSON T/A KEITH`S TAXIS.
Regeneration and Local Services,Direct Services,Supplies and Services,304358,Equipment and Materials,06/12/2018,3526246-2444,819.00,KEVIN SNOWDON GROUNDWORKS LTD.
Regeneration and Local Services,Direct Services,Supplies and Services,304358,Equipment and Materials,06/12/2018,3526246-2449,819.00,KEVIN SNOWDON GROUNDWORKS LTD.
Regeneration and Local Services,Technical Services,Supplies and Services,304358,Equipment and Materials,06/12/2018,3526246-2500,777.00,KEVIN SNOWDON GROUNDWORKS LTD.
Regeneration and Local Services,Technical Services,Supplies and Services,304358,Equipment and Materials,06/12/2018,3526246-2501,829.50,KEVIN SNOWDON GROUNDWORKS LTD.
Regeneration and Local Services,Technical Services,Supplies and Services,304358,Equipment and Materials,06/12/2018,3526246-2517,666.00,KEVIN SNOWDON GROUNDWORKS LTD.
Regeneration and Local Services,Technical Services,Supplies and Services,304358,Equipment and Materials,06/12/2018,3526246-2518,666.00,KEVIN SNOWDON GROUNDWORKS LTD.
Regeneration and Local Services,Technical Services,Supplies and Services,304358,Equipment and Materials,06/12/2018,3526246-2523,"1,076.00",KEVIN SNOWDON GROUNDWORKS LTD.
Regeneration and Local Services,Technical Services,Supplies and Services,304358,Equipment and Materials,06/12/2018,3526246-2525,706.00,KEVIN SNOWDON GROUNDWORKS LTD.
Regeneration and Local Services,Technical Services,Supplies and Services,304358,Equipment and Materials,06/12/2018,3526246-2532,"1,145.00",KEVIN SNOWDON GROUNDWORKS LTD.
Regeneration and Local Services,Technical Services,Supplies and Services,304358,Equipment and Materials,06/12/2018,3526246-2536,"1,145.00",KEVIN SNOWDON GROUNDWORKS LTD.
Regeneration and Local Services,Technical Services,Supplies and Services,304358,Equipment and Materials,06/12/2018,3526246-2537,884.00,KEVIN SNOWDON GROUNDWORKS LTD.
Regeneration and Local Services,Technical Services,Supplies and Services,304358,Equipment and Materials,06/12/2018,3526246-2539,884.00,KEVIN SNOWDON GROUNDWORKS LTD.
Regeneration and Local Services,Technical Services,Supplies and Services,304358,Equipment and Materials,06/12/2018,3526246-2540,510.00,KEVIN SNOWDON GROUNDWORKS LTD.
Regeneration and Local Services,Technical Services,Supplies and Services,304358,Equipment and Materials,06/12/2018,3526246-2541,736.25,KEVIN SNOWDON GROUNDWORKS LTD.
Regeneration and Local Services,Technical Services,Supplies and Services,304358,Equipment and Materials,06/12/2018,3526246-2542,"1,046.00",KEVIN SNOWDON GROUNDWORKS LTD.
Regeneration and Local Services,Technical Services,Supplies and Services,304358,Equipment and Materials,06/12/2018,3526246-2543,"1,099.00",KEVIN SNOWDON GROUNDWORKS LTD.
Regeneration and Local Services,Direct Services,Stock A926,926900,Stock in hand-Inventory system,06/12/2018,3526247-SI02-0207385,931.20,KILLGERM CHEMICALS LTD.
Children and Young Peoples Services,Head of Education and Skills,Transport,230009,Contract Hire,06/12/2018,3526249-003,"1,576.20",KULDEEP MAHIL T/A KOLARS CAB.
Children and Young Peoples Services,Head of Education and Skills,Transport,230008,Contract Hire,06/12/2018,3526250-3F,"2,640.00",L & R PRIVATE HIRE.
Regeneration and Local Services,Direct Services,Supplies and Services,304221,Equipment and Materials,06/12/2018,3526255-72202,550.00,LEISURETEQ.
Regeneration and Local Services,Technical Services,Supplies and Services,304221,Equipment and Materials,06/12/2018,3526258-NI041455,922.50,LIGHT & ENERGY DISTRIBUTION LTD.
Children and Young Peoples Services,Head of Education and Skills,Transport,230007,Contract Hire,06/12/2018,3526259-3895,"1,903.00",LINCAB TAXIS.
Children and Young Peoples Services,Head of Education and Skills,Transport,230007,Contract Hire,06/12/2018,3526259-3898,921.00,LINCAB TAXIS.
Dedicated Schools Grant,DSG High Needs Block,Transport,230010,Contract Hire,06/12/2018,3526259-3893,"2,063.36",LINCAB TAXIS.
Children and Young Peoples Services,Head of Education and Skills,Transport,230008,Contract Hire,06/12/2018,3526259-3897,"2,361.80",LINCAB TAXIS.
Adult and Health Services,Head of Adults,Transport,230005,Contract Hire,06/12/2018,3526259-3899,700.18,LINCAB TAXIS.
Children and Young Peoples Services,Head of Education and Skills,Transport,230009,Contract Hire,06/12/2018,3526269-301119,"1,034.00",MARK MUSGROVE T/A MARKS TAXIS.
Children and Young Peoples Services,Head of Education and Skills,Transport,230006,Contract Hire,06/12/2018,3526269-281118,540.00,MARK MUSGROVE T/A MARKS TAXIS.
Children and Young Peoples Services,Head of Education and Skills,Transport,230008,Contract Hire,06/12/2018,3526270-26-NOV,"1,965.00",MARK SUMMERS T/A MARK`S TAXI.
Regeneration and Local Services,Technical Services,Supplies and Services,304358,Equipment and Materials,06/12/2018,3526272-2104,"2,416.00",MARTIN JEWITT PLANT HIRE.
Regeneration and Local Services,Economic Development and Housing,Supplies and Services,384199,Miscellaneous Expenses,06/12/2018,3526274-8892,"1,500.00",MASKERADE DESIGN LTD.
Regeneration and Local Services,Transport and Contracted Services,Supplies and Services,342053,Computers and Communications,06/12/2018,3526282-4666,"4,177.25",MICROCOPY SYSTEMS LTD.
Children and Young Peoples Services,Head of Education and Skills,Transport,230012,Contract Hire,06/12/2018,3526286-KDC-011118,"2,420.00",MJ TIMNEY T/A KDC & C&M TAXIS.
Children and Young Peoples Services,Head of Education and Skills,Transport,230008,Contract Hire,06/12/2018,3526288-003,590.00,MOLLY`S TAXIS LTD.
Children and Young Peoples Services,Head of Education and Skills,Transport,230008,Contract Hire,06/12/2018,3526288-003-M118,"2,530.00",MOLLY`S TAXIS LTD.
Children and Young Peoples Services,Head of Education and Skills,Transport,230008,Contract Hire,06/12/2018,3526288-003-N030,"2,460.00",MOLLY`S TAXIS LTD.
Children and Young Peoples Services,Head of Education and Skills,Transport,230007,Contract Hire,06/12/2018,3526290-AT164,"1,320.00",MR AG WILSON T/A ALAN`S TAXIS (DURHAM CITY).
Children and Young Peoples Services,Head of Education and Skills,Transport,230006,Contract Hire,06/12/2018,3526292-3,"1,036.00",MR BRIAN HANN T/A BRY`S TAXIS (BOWBURN).
Children and Young Peoples Services,Head of Education and Skills,Transport,230008,Contract Hire,06/12/2018,3526293-14W028,"1,320.00",MR BW YOUNG T/A ESH TAXIS.
Children and Young Peoples Services,Head of Education and Skills,Transport,230008,Contract Hire,06/12/2018,3526294-DT111-18,755.76,MR CT WALKER T/A CW TAXIS.
Children and Young Peoples Services,Head of Education and Skills,Transport,230008,Contract Hire,06/12/2018,3526294-DT211-18,909.30,MR CT WALKER T/A CW TAXIS.
Children and Young Peoples Services,Head of Education and Skills,Transport,230008,Contract Hire,06/12/2018,3526294-EL111-18,"1,614.45",MR CT WALKER T/A CW TAXIS.
Children and Young Peoples Services,Head of Education and Skills,Transport,230008,Contract Hire,06/12/2018,3526294-EL211-18,"2,145.60",MR CT WALKER T/A CW TAXIS.
Children and Young Peoples Services,Head of Education and Skills,Transport,230008,Contract Hire,06/12/2018,3526294-EL311-18,"2,067.70",MR CT WALKER T/A CW TAXIS.
Adult and Health Services,Head of Adults,Transport,230005,Contract Hire,06/12/2018,3526294-EDB111-18,"1,095.60",MR CT WALKER T/A CW TAXIS.
Children and Young Peoples Services,Head of Education and Skills,Transport,230008,Contract Hire,06/12/2018,3526296-016,"1,540.00",MR GN ROBBINS T/A GNR MINIBUS HIRE.
Children and Young Peoples Services,Head of Education and Skills,Transport,230008,Contract Hire,06/12/2018,3526297-KDK/NOV18,"1,430.00",MR IAN KELSEY T/A KDK TAXIS.
Children and Young Peoples Services,Head of Education and Skills,Transport,230008,Contract Hire,06/12/2018,3526298-87,"2,400.00",MR JOHN KNIGHTON T/A JK TAXIS.
Children and Young Peoples Services,Head of Education and Skills,Transport,230007,Contract Hire,06/12/2018,3526300-5239-NOV,"1,200.00",MR MARK WILE T/A HARRY`S TAXIS.
Children and Young Peoples Services,Head of Education and Skills,Transport,230012,Contract Hire,06/12/2018,3526301-025,"1,804.00",MR NEIL LEONARD T/A LENNY`S TAXIS.
Children and Young Peoples Services,Head of Education and Skills,Transport,230008,Contract Hire,06/12/2018,3526301-024,"1,795.50",MR NEIL LEONARD T/A LENNY`S TAXIS.
Children and Young Peoples Services,Head of Education and Skills,Transport,230008,Contract Hire,06/12/2018,3526303-0030-N071,"2,640.00",MR PM MULLEN T/A CATHEDRAL TAXIS.
Children and Young Peoples Services,Head of Education and Skills,Transport,230008,Contract Hire,06/12/2018,3526304-12A-NOV18,"1,710.00",MR RAYMOND RENWICK T/A RAY`S TAXIS & MINIBUSES.
Children and Young Peoples Services,Head of Education and Skills,Transport,230008,Contract Hire,06/12/2018,3526304-12B-NOV18,"1,680.00",MR RAYMOND RENWICK T/A RAY`S TAXIS & MINIBUSES.
Children and Young Peoples Services,Head of Education and Skills,Transport,230007,Contract Hire,06/12/2018,3526306-010,855.00,MR SHAUN NAUNTON T/A FONACAB DURHAM.
Children and Young Peoples Services,Head of Education and Skills,Transport,230007,Contract Hire,06/12/2018,3526306-011,760.00,MR SHAUN NAUNTON T/A FONACAB DURHAM.
Children and Young Peoples Services,Head of Education and Skills,Transport,230007,Contract Hire,06/12/2018,3526307-SJS03,"1,050.00",MR THOMAS G GRIFFITHS T/A TNL TAXIS.
Regeneration and Local Services,Technical Services,Supplies and Services,304358,Equipment and Materials,06/12/2018,3526320-NC/054/BW,"2,447.50",NEDCO CONTRACTS (NE) LTD.
Regeneration and Local Services,Technical Services,Supplies and Services,304358,Equipment and Materials,06/12/2018,3526320-NC/055/BW,"2,035.00",NEDCO CONTRACTS (NE) LTD.
Children and Young Peoples Services,Head of Education and Skills,Transport,230008,Contract Hire,06/12/2018,3526321-47,"1,912.50",NEIL PASSMOOR T/A NEIL`S TAXI.
Children and Young Peoples Services,Head of Education and Skills,Transport,230008,Contract Hire,06/12/2018,3526323-238,"1,760.00",NEVILLE FORBES T/A FORBES TAXIS.
Transformation and Partnerships,Communications Management,Supplies and Services,336005,Advertising E336,06/12/2018,3526328-25788670,595.00,NEWSQUEST (YORKSHIRE & NORTH EAST) LTD.
Regeneration and Local Services,EnvironmentHealth & Consumer Protection,Supplies and Services,384540,Miscellaneous Expenses,06/12/2018,3526328-27134792,797.16,NEWSQUEST (YORKSHIRE & NORTH EAST) LTD.
Regeneration and Local Services,Technical Services,Supplies and Services,304358,Equipment and Materials,06/12/2018,3526330-NPSL781,"5,797.58",NORDIC PRODUCTS & SERVICES LTD.
Regeneration and Local Services,Technical Services,Supplies and Services,304221,Equipment and Materials,06/12/2018,3526333-172966,592.00,NORTH EAST CONCRETE LTD.
Regeneration and Local Services,Technical Services,Supplies and Services,304221,Equipment and Materials,06/12/2018,3526333-179311,586.50,NORTH EAST CONCRETE LTD.
Children and Young Peoples Services,"Head of Early Help, Inclusion and Vulnerable Children",Construction work A908,908105,Construction work,06/12/2018,3526336-NEI-EXP-11-2018-005,840.21,NORTHERN POWERGRID (NORTHEAST) LTD.
Regeneration and Local Services,Technical Services,Third Party Payments 4THIRD,430100,Rendered by Private Contractors,06/12/2018,3526336-DI20306838,"1,110.35",NORTHERN POWERGRID (NORTHEAST) LTD.
Regeneration and Local Services,Technical Services,Third Party Payments 4THIRD,430100,Rendered by Private Contractors,06/12/2018,3526339-20859,"4,860.00",OLIVERS TREE SERVICES LTD.
Regeneration and Local Services,Technical Services,Stock A926,926900,Stock in hand-Inventory system,06/12/2018,3526345-XL231680,"1,012.80",PARK ELECTRICAL DISTRIBUTORS LTD.
Regeneration and Local Services,Technical Services,Stock A926,926900,Stock in hand-Inventory system,06/12/2018,3526345-XL231711,674.44,PARK ELECTRICAL DISTRIBUTORS LTD.
Children and Young Peoples Services,Head of Education and Skills,Transport,230007,Contract Hire,06/12/2018,3526349-3-NOV,"2,046.00",PAUL ROSE T/A PAUL`S TAXIS.
Children and Young Peoples Services,Head of Education and Skills,Transport,230006,Contract Hire,06/12/2018,3526350-F675-NOV18,"1,542.00",PAUL WILSON.
Dedicated Schools Grant,DSG High Needs Block,Transport,230010,Contract Hire,06/12/2018,3526355-598,"1,645.00",PETERLEE EXECUTIVE CARS.
Children and Young Peoples Services,Head of Education and Skills,Transport,230008,Contract Hire,06/12/2018,3526358-PT3,"1,003.00",PHILLY`S TAXI.
Regeneration and Local Services,EnvironmentHealth & Consumer Protection,Third Party Payments 4THIRD,430100,Rendered by Private Contractors,06/12/2018,3526370-IN-18-WP-002545,619.20,PUBLIC ANALYST SCIENTIFIC SERVICES LTD.
Regeneration and Local Services,Spatial Policy Planning Assets & Environment,Supplies and Services,384199,Miscellaneous Expenses,06/12/2018,3526374-474077,"3,641.67",RADISSON BLUE HOTEL DURHAM.
Regeneration and Local Services,Technical Services,Supplies and Services,304358,Equipment and Materials,06/12/2018,3526377-10091,"1,730.00",RD KEARTON & SONS LTD.
Children and Young Peoples Services,Head of Education and Skills,Transport,230008,Contract Hire,06/12/2018,3526387-003/N050,"2,422.50",RONS TAXI (CHESTER LE ST).
Adult and Health Services,Head of Adults,Transport,230005,Contract Hire,06/12/2018,3526387-003/DM149,"1,190.00",RONS TAXI (CHESTER LE ST).
Children and Young Peoples Services,Head of Education and Skills,Transport,230010,Contract Hire,06/12/2018,3526408-L001-NOV,"1,430.00",SHAUN MILLS T/A ASM TRAVEL.
Children and Young Peoples Services,Head of Education and Skills,Transport,230008,Contract Hire,06/12/2018,3526410-74385,"2,283.60",SHOTTON PRIVATE HIRE.
Regeneration and Local Services,Technical Services,Stock A926,926900,Stock in hand-Inventory system,06/12/2018,3526416-192518,"2,345.04",SNAPFAST.
Resources,Digital and Customer Services,Construction work A908,908105,Construction work,06/12/2018,3526417-INV02067593,"324,545.99",SOFTCAT LTD.
Children and Young Peoples Services,Head of Education and Skills,Transport,230009,Contract Hire,06/12/2018,3526423-62,528.00,STEVEN HENDERSON T/A HENDYS TAXIS.
Adult and Health Services,Head of Adults,Transport,230005,Contract Hire,06/12/2018,3526423-61,836.00,STEVEN HENDERSON T/A HENDYS TAXIS.
Regeneration and Local Services,Technical Services,Third Party Payments 4THIRD,430100,Rendered by Private Contractors,06/12/2018,3526425-112187,"3,148.20",STONEGRAVE AGGREGATES LTD.
Children and Young Peoples Services,Head of Education and Skills,Transport,230003,Contract Hire,06/12/2018,3526426-STNE0923,"1,738.00",STYLE TRAVEL NORTH EAST.
Children and Young Peoples Services,Head of Education and Skills,Transport,230003,Contract Hire,06/12/2018,3526426-STNE0924,"1,518.00",STYLE TRAVEL NORTH EAST.
Transformation and Partnerships,Partnerships & Community Engagement Div.,Supplies and Services,384086,Miscellaneous Expenses,06/12/2018,3526434-VOUCHERMILO07-18,650.00,TANFIELD LEA COMMUNITY PRIMARY SCHOOL.
Regeneration and Local Services,Culture & Sport,Supplies and Services,338047,Services,06/12/2018,3526444-SINRNT1003089,745.04,THE ROYAL NATIONAL THEATRE.
Transformation and Partnerships,Partnerships & Community Engagement Div.,Supplies and Services,384086,Miscellaneous Expenses,06/12/2018,3526445-VOUCHERSTEB02-18,999.00,THE SALVATION ARMY.
Children and Young Peoples Services,Head of Education and Skills,Transport,230004,Contract Hire,06/12/2018,3526447-20,"1,404.00",THOMAS GLEN.
Children and Young Peoples Services,Head of Education and Skills,Transport,230007,Contract Hire,06/12/2018,3526453-031118,660.00,TRANSPORT.ADVENTURE.XI.
Children and Young Peoples Services,Head of Education and Skills,Transport,230012,Contract Hire,06/12/2018,3526453-021118,525.00,TRANSPORT.ADVENTURE.XI.
Adult and Health Services,Head of Adults,Transport,230005,Contract Hire,06/12/2018,3526453-071118,560.00,TRANSPORT.ADVENTURE.XI.
Regeneration and Local Services,Culture & Sport,Supplies and Services,304259,Equipment and Materials,06/12/2018,3526459-US2388,"4,600.00",ULTIMATE SUPPLIES (NORTH) LTD.
Regeneration and Local Services,Technical Services,Supplies and Services,304221,Equipment and Materials,06/12/2018,3526471-22358,950.93,WARD TIMBER LTD.
Regeneration and Local Services,Technical Services,Supplies and Services,304221,Equipment and Materials,06/12/2018,3526471-22361,776.20,WARD TIMBER LTD.
Regeneration and Local Services,Spatial Policy Planning Assets & Environment,Supplies and Services,384899,Miscellaneous Expenses,06/12/2018,3526472-137,"6,000.00",WEAR RIVERS TRUST.
Transformation and Partnerships,Partnerships & Community Engagement Div.,Cap Exp on Grants & Other Financial Assistance (REFCUS),918004,Contributions to other bodies 918004,06/12/2018,3526478-VOUCHER18NB-3TWN007,"4,000.00",WILLINGTON CRICKET CLUB.
Regeneration and Local Services,Direct Services,Third Party Payments 4THIRD,430100,Rendered by Private Contractors,06/12/2018,3526479-47262,"1,460.52",WILLOWCRETE MANUFACTURING COMPANY LTD (MFG).
Transformation and Partnerships,Partnerships & Community Engagement Div.,Cap Exp on Grants & Other Financial Assistance (REFCUS),918004,Contributions to other bodies 918004,06/12/2018,3526482-VOUCHER18NB-GAMP010,"1,700.00",WOODHAM VILLAGE COMMUNITY ASSOCIATION.
Regeneration and Local Services,Direct Services,Supplies and Services,304259,Equipment and Materials,07/12/2018,3526500-008348,"1,697.00",A HILL & SONS LTD.
Regeneration and Local Services,Direct Services,Premises,108099,Service Repairs and Maintenance,07/12/2018,3526504-IN5078,"20,655.28",ACROL AIR CONDITIONING CO LTD.
Resources,Legal & Democratic Services,Supplies and Services,340001,Postages E340,07/12/2018,3526505-PSI0074031,"3,315.00",ADARE INSPIRED COMMUNICATIONS.
Resources,Legal & Democratic Services,Supplies and Services,332029,Printing Stationery and Gen Off Exps,07/12/2018,3526505-PSI0074033,892.00,ADARE INSPIRED COMMUNICATIONS.
Children and Young Peoples Services,Head of Education and Skills,Construction work A908,908105,Construction work,07/12/2018,3526506-39994243-61,914.00,ADT FIRE & SECURITY PLC.
Regeneration and Local Services,Technical Services,Supplies and Services,304221,Equipment and Materials,07/12/2018,3526507-27369518,"1,443.52",AGGREGATE INDUSTRIES UK LTD.
Regeneration and Local Services,Technical Services,Supplies and Services,304221,Equipment and Materials,07/12/2018,3526507-27445266,"1,127.52",AGGREGATE INDUSTRIES UK LTD.
Regeneration and Local Services,Technical Services,Supplies and Services,304221,Equipment and Materials,07/12/2018,3526507-27445272,"3,737.44",AGGREGATE INDUSTRIES UK LTD.
Regeneration and Local Services,Technical Services,Supplies and Services,304221,Equipment and Materials,07/12/2018,3526507-27445273,"1,903.50",AGGREGATE INDUSTRIES UK LTD.
Regeneration and Local Services,Technical Services,Supplies and Services,304221,Equipment and Materials,07/12/2018,3526507-27452517,"1,528.32",AGGREGATE INDUSTRIES UK LTD.
Regeneration and Local Services,Technical Services,Supplies and Services,304221,Equipment and Materials,07/12/2018,3526507-27452518,"1,054.44",AGGREGATE INDUSTRIES UK LTD.
Regeneration and Local Services,Technical Services,Supplies and Services,304221,Equipment and Materials,07/12/2018,3526507-27452519,579.62,AGGREGATE INDUSTRIES UK LTD.
Regeneration and Local Services,Technical Services,Supplies and Services,304221,Equipment and Materials,07/12/2018,3526507-27452520,"1,158.84",AGGREGATE INDUSTRIES UK LTD.
Regeneration and Local Services,Technical Services,Supplies and Services,304221,Equipment and Materials,07/12/2018,3526507-27452522,662.72,AGGREGATE INDUSTRIES UK LTD.
Regeneration and Local Services,Technical Services,Supplies and Services,304221,Equipment and Materials,07/12/2018,3526507-27452523,"3,441.72",AGGREGATE INDUSTRIES UK LTD.
Regeneration and Local Services,Technical Services,Supplies and Services,304221,Equipment and Materials,07/12/2018,3526507-27452524,946.58,AGGREGATE INDUSTRIES UK LTD.
Regeneration and Local Services,Technical Services,Supplies and Services,304221,Equipment and Materials,07/12/2018,3526507-27452525,922.14,AGGREGATE INDUSTRIES UK LTD.
Regeneration and Local Services,Technical Services,Supplies and Services,304221,Equipment and Materials,07/12/2018,3526507-27459727,840.32,AGGREGATE INDUSTRIES UK LTD.
Regeneration and Local Services,Technical Services,Supplies and Services,304221,Equipment and Materials,07/12/2018,3526507-27459728,"1,097.52",AGGREGATE INDUSTRIES UK LTD.
Regeneration and Local Services,Technical Services,Supplies and Services,304221,Equipment and Materials,07/12/2018,3526507-27459729,584.80,AGGREGATE INDUSTRIES UK LTD.
Regeneration and Local Services,Technical Services,Supplies and Services,304221,Equipment and Materials,07/12/2018,3526507-27459730,"1,140.28",AGGREGATE INDUSTRIES UK LTD.
Regeneration and Local Services,Technical Services,Supplies and Services,304221,Equipment and Materials,07/12/2018,3526507-27459731,940.00,AGGREGATE INDUSTRIES UK LTD.
Regeneration and Local Services,Technical Services,Supplies and Services,304221,Equipment and Materials,07/12/2018,3526507-27459732,"2,292.16",AGGREGATE INDUSTRIES UK LTD.
Regeneration and Local Services,Technical Services,Supplies and Services,304221,Equipment and Materials,07/12/2018,3526507-27466109,"1,565.44",AGGREGATE INDUSTRIES UK LTD.
Regeneration and Local Services,Technical Services,Supplies and Services,304221,Equipment and Materials,07/12/2018,3526507-27466110,"1,080.24",AGGREGATE INDUSTRIES UK LTD.
Regeneration and Local Services,Technical Services,Supplies and Services,304221,Equipment and Materials,07/12/2018,3526507-27466112,"1,142.60",AGGREGATE INDUSTRIES UK LTD.
Regeneration and Local Services,Technical Services,Supplies and Services,304221,Equipment and Materials,07/12/2018,3526507-27466113,"2,270.12",AGGREGATE INDUSTRIES UK LTD.
Regeneration and Local Services,Technical Services,Supplies and Services,304221,Equipment and Materials,07/12/2018,3526507-27466114,577.40,AGGREGATE INDUSTRIES UK LTD.
Regeneration and Local Services,Direct Services,Vehicles Equipment Furniture and Fittings,912521,Purchase-furniture and fittings,07/12/2018,3526510-163895,"14,562.08",ALBANY OFFICE EQUIPMENT (WHOLESALE) LTD.
Regeneration and Local Services,Direct Services,Vehicles Equipment Furniture and Fittings,912521,Purchase-furniture and fittings,07/12/2018,3526510-163962,"14,812.08",ALBANY OFFICE EQUIPMENT (WHOLESALE) LTD.
Regeneration and Local Services,Culture & Sport,Supplies and Services,384199,Miscellaneous Expenses,07/12/2018,3526519-227818,"1,048.00",APEX RADIO SYSTEMS LTD.
Regeneration and Local Services,Direct Services,Premises,108099,Service Repairs and Maintenance,07/12/2018,3526523-31243,600.00,AQUAJET DRAIN CLEANING LTD.
Regeneration and Local Services,Culture & Sport,Premises,106082,Centrally Controlled Rep and Maint,07/12/2018,3526523-31225,595.00,AQUAJET DRAIN CLEANING LTD.
Regeneration and Local Services,Economic Development and Housing,Supplies and Services,348037,Subsistence E348,07/12/2018,3526526-114669,637.10,ARRIVA NORTH EAST LTD.
Regeneration and Local Services,Culture & Sport,Construction work A908,908105,Construction work,07/12/2018,3526529-18045060,"3,900.00",ATKINS GLOBAL.
Children and Young Peoples Services,Head of Education and Skills,Construction work A908,908105,Construction work,07/12/2018,3526529-18045071,"2,153.34",ATKINS GLOBAL.
Regeneration and Local Services,Technical Services,Supplies and Services,338027,Services,07/12/2018,3526529-18044950,"5,000.00",ATKINS GLOBAL.
Regeneration and Local Services,Technical Services,Supplies and Services,338027,Services,07/12/2018,3526529-18045059,"2,025.00",ATKINS GLOBAL.
Regeneration and Local Services,Technical Services,Supplies and Services,384199,Miscellaneous Expenses,07/12/2018,3526529-18045058,"2,175.60",ATKINS GLOBAL.
Regeneration and Local Services,Culture & Sport,Supplies and Services,304252,Equipment and Materials,07/12/2018,3526537-14029,"1,177.50",BATSON GROUNDCARE LTD.
Regeneration and Local Services,Culture & Sport,Supplies and Services,324117,Provisions E324,07/12/2018,3526545-83920442,590.60,BIDFOOD.
Regeneration and Local Services,Culture & Sport,Supplies and Services,324117,Provisions E324,07/12/2018,3526545-83992961,504.91,BIDFOOD.
Regeneration and Local Services,Culture & Sport,Supplies and Services,324117,Provisions E324,07/12/2018,3526545-84104564,687.85,BIDFOOD.
Regeneration and Local Services,Transport and Contracted Services,Supplies and Services,338066,Services,07/12/2018,3526552-SIN003470,"113,404.23",BLOOM PROCUREMENT SERVICES LTD (FORMERLY NEPRO LTD).
Regeneration and Local Services,Transport and Contracted Services,Supplies and Services,304245,Equipment and Materials,07/12/2018,3526556-54418,900.00,BUDDI.
Adult and Health Services,Head of Adults,Supplies and Services,338366,Services,07/12/2018,3526564-54480,760.95,CARE ABILITY.
Adult and Health Services,Head of Adults,Supplies and Services,338366,Services,07/12/2018,3526564-54481,"1,149.05",CARE ABILITY.
Adult and Health Services,Head of Adults,Supplies and Services,338366,Services,07/12/2018,3526564-54482,"1,030.25",CARE ABILITY.
Adult and Health Services,Head of Adults,Supplies and Services,338366,Services,07/12/2018,3526564-54530,"1,252.35",CARE ABILITY.
Adult and Health Services,Head of Adults,Supplies and Services,338366,Services,07/12/2018,3526564-54533,503.99,CARE ABILITY.
Children and Young Peoples Services,Head of Childrens Social Care,Supplies and Services,338044,Services,07/12/2018,3526566-18524,895.80,CARTLIDGE & STEWART LTD.
Regeneration and Local Services,Culture & Sport,Supplies and Services,384237,Miscellaneous Expenses,07/12/2018,3526573-4100636965,"1,500.00",CHRIS COOK LTD.
Regeneration and Local Services,Culture & Sport,Supplies and Services,338047,Services,07/12/2018,3526574-2D/3DANIMATION,700.00,CHRISTOPHER MCQUILLAN.
Regeneration and Local Services,Spatial Policy Planning Assets & Environment,Supplies and Services,342053,Computers and Communications,07/12/2018,3526576-3139328,"32,340.00",CIPFA BUSINESS LTD.
Regeneration and Local Services,Economic Development and Housing,Supplies and Services,338035,Services,07/12/2018,3526577-805035045,"1,064.00",CITY & GUILDS OF LONDON INSTITUTE.
Adult and Health Services,Head of Adults,Supplies and Services,338365,Services,07/12/2018,3526586-OP/I149300,"2,970.00",CLOSOMAT LTD.
Adult and Health Services,Public Health,Third Party Payments 4THIRD,460803,Contract Payments,07/12/2018,3526589-3910015040,800.00,CO DURHAM & DARLINGTON NHS FOUNDATION TRUST.
Regeneration and Local Services,Spatial Policy Planning Assets & Environment,Supplies and Services,338027,Services,07/12/2018,3526590-SI/021789,"7,700.00",COAL AUTHORITY.
Regeneration and Local Services,Culture & Sport,Supplies and Services,384199,Miscellaneous Expenses,07/12/2018,3526600-DEC-FEB,"1,575.00",CRAIG DUGGAN.
Resources,Digital and Customer Services,Supplies and Services,332029,Printing Stationery and Gen Off Exps,07/12/2018,3526611-INV-11408,"1,950.00",DATA DESIGN SERVICES LTD.
Resources,Digital and Customer Services,Vehicles Equipment Furniture and Fittings,912701,Computer equipment,07/12/2018,3526615-7402484890,907.60,DELL COMPUTER CORPORATION LTD.
Resources,Digital and Customer Services,Vehicles Equipment Furniture and Fittings,912701,Computer equipment,07/12/2018,3526615-7402485453,810.45,DELL COMPUTER CORPORATION LTD.
Resources,Legal & Democratic Services,Supplies and Services,338042,Services,07/12/2018,3526617-343225/INVSU305,900.00,DERE STREET BARRISTERS.
Resources,Legal & Democratic Services,Supplies and Services,338057,Services,07/12/2018,3526620-16/11/2018,"1,936.00",DR L NAIR.
Regeneration and Local Services,Direct Services,Third Party Payments 4THIRD,430100,Rendered by Private Contractors,07/12/2018,3526624-1023,980.00,DUNNINGHAM DECORATORS LTD.
Transformation and Partnerships,Communications Management,Supplies and Services,384199,Miscellaneous Expenses,07/12/2018,3526633-107872,"5,228.00",E3 ECOLOGY LTD.
Regeneration and Local Services,Direct Services,Supplies and Services,304221,Equipment and Materials,07/12/2018,3526639-059-234832,939.98,EDMUNDSON ELECTRICAL LTD.
Transformation and Partnerships,Partnerships & Community Engagement Div.,Premises,106082,Centrally Controlled Rep and Maint,07/12/2018,3526650-SI-68,"2,500.00",ENVIROROD LTD.
Regeneration and Local Services,Direct Services,Construction work A908,908105,Construction work,07/12/2018,3526655-14658,"8,199.00",EXOVA (UK) LTD.
Regeneration and Local Services,Technical Services,Supplies and Services,338027,Services,07/12/2018,3526658-128026/02,"1,150.00",FAIRHURST.
Children and Young Peoples Services,Head of Education and Skills,Fees,901002,Consultants fees 901002,07/12/2018,3526658-126333/06,"1,245.00",FAIRHURST.
Regeneration and Local Services,Direct Services,Supplies and Services,304221,Equipment and Materials,07/12/2018,3526661-1811-119608,992.34,FLAME HEATING SPARES LTD.
Regeneration and Local Services,Technical Services,Supplies and Services,304221,Equipment and Materials,07/12/2018,3526676-SI762686,"1,292.20",GLASDON UK LTD.
Non-Service Specific,Non Service Specific-Financing,Long Term Debtors,924001,Car loans,07/12/2018,3526678-66734,700.00,GO GATESHEAD LTD.
Adult and Health Services,Head of Adults,Supplies and Services,328041,Clothing uniforms and laundry E328,07/12/2018,3526684-06/770199,611.00,GREENHAM TRADING LTD.
Transformation and Partnerships,Partnerships & Community Engagement Div.,Supplies and Services,384086,Miscellaneous Expenses,07/12/2018,3526686-VOUCHER18NB-BASH023,"2,582.00",GROUNDWORK NE & CUMBRIA.
Regeneration and Local Services,Technical Services,Third Party Payments 4THIRD,430100,Rendered by Private Contractors,07/12/2018,3526689-1811\028,"10,919.62",HALL CONSTRUCTION SERVICES LTD.
Regeneration and Local Services,Technical Services,Stock A926,926900,Stock in hand-Inventory system,07/12/2018,3526690-5311,640.00,HALT HIRE LTD.
Regeneration and Local Services,Technical Services,Supplies and Services,338027,Services,07/12/2018,3526696-0040287286,"3,497.24",HARTLEPOOL BOROUGH COUNCIL.
Regeneration and Local Services,Culture & Sport,Supplies and Services,338047,Services,07/12/2018,3526702-000478,700.00,HILARITY BITES COMEDY CLUB.
Regeneration and Local Services,Direct Services,Supplies and Services,304221,Equipment and Materials,07/12/2018,3526712-0000015170,"2,329.60",HOLME DODSWORTH (ROCK SALT) LTD.
Regeneration and Local Services,Direct Services,Premises,108099,Service Repairs and Maintenance,07/12/2018,3526715-7080717275,"2,394.12",HONEYWELL NOVAR SYSTEMS LTD.
Children and Young Peoples Services,Head of Childrens Social Care,Third Party Payments 4THIRD,425021,Rendered by Voluntary Organisations,07/12/2018,3526718-4800,"3,520.00",HOWARD HOUSE CARE LTD.
Dedicated Schools Grant,DSG High Needs Block,Third Party Payments 4THIRD,425005,Rendered by Voluntary Organisations,07/12/2018,3526722-4140000961,"11,950.50",HURWORTH HOUSE PRIORY.
Resources,Digital and Customer Services,Supplies and Services,304303,Equipment and Materials,07/12/2018,3526725-SIN437979,750.00,INFORMATION & DATA NETWORK SUPPLIES LTD (IDN).
Resources,Digital and Customer Services,Supplies and Services,304303,Equipment and Materials,07/12/2018,3526725-SIN437980,"6,648.00",INFORMATION & DATA NETWORK SUPPLIES LTD (IDN).
Regeneration and Local Services,Culture & Sport,Supplies and Services,304259,Equipment and Materials,07/12/2018,3526726-4615,729.08,INGRAM AV LTD T/A INGRAMSOUNDS.
Regeneration and Local Services,Technical Services,Supplies and Services,342033,Computers and Communications,07/12/2018,3526727-4143809,"1,120.00",INSIGHT DIRECT (UK) LTD.
Resources,Digital and Customer Services,Stock A926,926900,Stock in hand-Inventory system,07/12/2018,3526727-4143833,780.00,INSIGHT DIRECT (UK) LTD.
Regeneration and Local Services,Technical Services,Construction work A908,908105,Construction work,07/12/2018,3526734-22234,754.64,JACK COUPE & SONS LTD T/A COUPE LINE.
Regeneration and Local Services,Technical Services,Construction work A908,908105,Construction work,07/12/2018,3526734-22398,"2,222.14",JACK COUPE & SONS LTD T/A COUPE LINE.
Regeneration and Local Services,Technical Services,Supplies and Services,338027,Services,07/12/2018,3526736-BL000000-007,"1,135.00",JACOBS UK LTD.
Regeneration and Local Services,Technical Services,Supplies and Services,338027,Services,07/12/2018,3526736-BL000000-008,"4,995.42",JACOBS UK LTD.
Regeneration and Local Services,Direct Services,Third Party Payments 4THIRD,430100,Rendered by Private Contractors,07/12/2018,3526738-7031,"5,733.00",JAMES INGLEFORD SCAFFOLDING LTD.
Regeneration and Local Services,Direct Services,Premises,108099,Service Repairs and Maintenance,07/12/2018,3526742-18473,"8,775.89",JC MAINTENANCE SERVICES LTD.
Regeneration and Local Services,Direct Services,Supplies and Services,304221,Equipment and Materials,07/12/2018,3526751-BII274550,691.44,JT DOVE LTD.
Regeneration and Local Services,Direct Services,Supplies and Services,304221,Equipment and Materials,07/12/2018,3526751-DAI22674,"1,227.00",JT DOVE LTD.
Regeneration and Local Services,Technical Services,Supplies and Services,304221,Equipment and Materials,07/12/2018,3526751-GOI1326/D,"1,250.00",JT DOVE LTD.
Regeneration and Local Services,Direct Services,Supplies and Services,304221,Equipment and Materials,07/12/2018,3526751-GOI1327/D,"1,392.41",JT DOVE LTD.
Regeneration and Local Services,Direct Services,Supplies and Services,304221,Equipment and Materials,07/12/2018,3526751-PHBII41920,706.53,JT DOVE LTD.
Regeneration and Local Services,Direct Services,Supplies and Services,304245,Equipment and Materials,07/12/2018,3526751-GOI1323/D,"9,138.40",JT DOVE LTD.
Regeneration and Local Services,Direct Services,Supplies and Services,304245,Equipment and Materials,07/12/2018,3526751-GOI1328/D,"1,878.34",JT DOVE LTD.
Regeneration and Local Services,Technical Services,Stock A926,926900,Stock in hand-Inventory system,07/12/2018,3526751-STI492580,828.00,JT DOVE LTD.
Children and Young Peoples Services,Head of Education and Skills,Transfer Payments,510027,School Children,07/12/2018,3526759-16/11/2018,648.00,KIDZONE.
Regeneration and Local Services,Direct Services,Supplies and Services,342214,Computers and Communications,07/12/2018,3526761-1140919697,"7,646.70",KONICA MINOLTA BUSINESS SOLUTIONS (UK) LTD.
Regeneration and Local Services,Culture & Sport,Supplies and Services,384237,Miscellaneous Expenses,07/12/2018,3526770-INV-0308,"1,000.00",LEE DOBSON PHOTOGRAPHY LTD.
Regeneration and Local Services,Technical Services,Supplies and Services,304221,Equipment and Materials,07/12/2018,3526775-CINV-073471,"2,988.00",LIMELIGHT SIGNS LTD.
Regeneration and Local Services,Technical Services,Supplies and Services,304221,Equipment and Materials,07/12/2018,3526775-CINV-073495,"1,068.80",LIMELIGHT SIGNS LTD.
Regeneration and Local Services,Direct Services,Supplies and Services,304221,Equipment and Materials,07/12/2018,3526776-INV-5826594,"1,191.87",LINDAB LTD.
Children and Young Peoples Services,"Head of Early Help, Inclusion and Vulnerable Children",Premises,150005,Apportioned Exps of Operational Blds,07/12/2018,3526780-47935,"13,687.50",LONDON & SCOTTISH INVESTMENTS LTD.
Children and Young Peoples Services,"Head of Early Help, Inclusion and Vulnerable Children",Premises,150005,Apportioned Exps of Operational Blds,07/12/2018,3526781-34446,"1,967.50",LONDON & SCOTTISH INVESTMENTS LTD.
Children and Young Peoples Services,"Head of Early Help, Inclusion and Vulnerable Children",Premises,150005,Apportioned Exps of Operational Blds,07/12/2018,3526781-39466,"1,967.50",LONDON & SCOTTISH INVESTMENTS LTD.
Children and Young Peoples Services,"Head of Early Help, Inclusion and Vulnerable Children",Premises,150005,Apportioned Exps of Operational Blds,07/12/2018,3526781-47936,"2,653.75",LONDON & SCOTTISH INVESTMENTS LTD.
Resources,Finance & Transactional Services,Supplies and Services,384180,Miscellaneous Expenses,07/12/2018,3526782-0173652,"5,749.74",LOOMIS UK LTD.
Children and Young Peoples Services,"Head of Early Help, Inclusion and Vulnerable Children",Construction work A908,908105,Construction work,07/12/2018,3526783-79142,"2,625.00",LUCION ENVIRONMENTAL LLP LTD.
Adult and Health Services,Public Health,Supplies and Services,384199,Miscellaneous Expenses,07/12/2018,3526788-MSP00096,612.48,MARTIN SEC.COM LTD.
Regeneration and Local Services,Culture & Sport,Supplies and Services,372009,Subscriptions E372,07/12/2018,3526792-4100637173,"1,200.00",METAFIT LTD.
Regeneration and Local Services,Culture & Sport,Supplies and Services,324001,Provisions E324,07/12/2018,3526795-904903029,806.06,MOLSON COORS BREWING COMPANY (UK) LTD.
Regeneration and Local Services,Culture & Sport,Supplies and Services,384199,Miscellaneous Expenses,07/12/2018,3526803-GTSSJUNIORSVOCALLESSONSSEPT/OCT18BALANCE,525.00,REDACTED - PAYMENT TO INDIVIDUAL
Regeneration and Local Services,Economic Development and Housing,Supplies and Services,384999,Miscellaneous Expenses,07/12/2018,3526806-SIN001543,500.00,MUSIC NORTH LTD.*
Children and Young Peoples Services,Head of Education and Skills,Supplies and Services,372009,Subscriptions E372,07/12/2018,3526812-62006,950.00,NATIONAL GOVERNORS ASSOCIATION (NGA).
Transformation and Partnerships,Partnerships & Community Engagement Div.,Supplies and Services,312010,Newspapers books and periodicals E312,07/12/2018,3526813-349437/0,847.51,NATIONAL LEAFLET CO LTD.
Non-Service Specific,Non Service Specific-Financing,Long Term Debtors,924028,Long Term Loan - NE First Credit Union Ltd,07/12/2018,3526815-RES-12-2018-023,"25,000.00",NE FIRST CREDIT UNION FOR DURHAM COUNTY & GATESHEAD.
Resources,Digital and Customer Services,Supplies and Services,344033,Telephones,07/12/2018,3526817-202636,"1,134.97",NETWORKS 2 BUSINESS LTD.
Regeneration and Local Services,Culture & Sport,Supplies and Services,312013,Newspapers books and periodicals E312,07/12/2018,3526818-006875,730.82,NEWSMARKET.
Adult and Health Services,Public Health,Supplies and Services,384155,Miscellaneous Expenses,07/12/2018,3526820-1000058104,"73,694.23",NHS BUSINESS SERVICES AUTHORITY (NHSBSA).
Resources,Digital and Customer Services,Supplies and Services,342051,Computers and Communications,07/12/2018,3526822-898952,"4,381.49",NITRO SOFTWARE INC.
Regeneration and Local Services,Spatial Policy Planning Assets & Environment,Supplies and Services,338027,Services,07/12/2018,3526823-739443,"1,500.00",NO 5 BARRISTERS CHAMBERS LTD.
Regeneration and Local Services,Technical Services,Supplies and Services,304221,Equipment and Materials,07/12/2018,3526826-179316,534.00,NORTH EAST CONCRETE LTD.
Resources,People & Talent Management,Supplies and Services,352001,Conference Expenses,07/12/2018,3526830-22427,650.00,NORTH EAST REGIONAL EMPLOYERS ORGANISATION (NEREO).
Regeneration and Local Services,Direct Services,Supplies and Services,304221,Equipment and Materials,07/12/2018,3526832-45876,"1,620.20",NORTHERN TOOLS & ACCESSORIES.
Regeneration and Local Services,Spatial Policy Planning Assets & Environment,Construction work A908,908105,Construction work,07/12/2018,3526835-914414054,934.00,NORTHUMBRIAN WATER LTD.
Regeneration and Local Services,Culture & Sport,Supplies and Services,338047,Services,07/12/2018,3526836-L016,695.00,NTC TOURING THEATRE CO.
Regeneration and Local Services,Direct Services,Transport,215005,Running Costs of Vehicles,07/12/2018,3526838-373797,"18,274.17",OIL NRG LTD.
Regeneration and Local Services,Direct Services,Transport,215005,Running Costs of Vehicles,07/12/2018,3526838-374119,"12,176.40",OIL NRG LTD.
Regeneration and Local Services,Direct Services,Transport,215005,Running Costs of Vehicles,07/12/2018,3526838-375399,"10,148.01",OIL NRG LTD.
Regeneration and Local Services,Direct Services,Transport,215022,Running Costs of Vehicles,07/12/2018,3526838-373143,593.10,OIL NRG LTD.
Regeneration and Local Services,Direct Services,Transport,215022,Running Costs of Vehicles,07/12/2018,3526838-375406,"2,188.93",OIL NRG LTD.
Children and Young Peoples Services,Head of Education and Skills,Supplies and Services,384199,Miscellaneous Expenses,07/12/2018,3526841-2018/19-61,500.00,ORCHESTRAS LIVE.
Regeneration and Local Services,Direct Services,Supplies and Services,304221,Equipment and Materials,07/12/2018,3526847-XL231721,703.81,PARK ELECTRICAL DISTRIBUTORS LTD.
Regeneration and Local Services,Technical Services,Stock A926,926900,Stock in hand-Inventory system,07/12/2018,3526847-XL231797,"3,724.80",PARK ELECTRICAL DISTRIBUTORS LTD.
Regeneration and Local Services,Direct Services,Premises,106082,Centrally Controlled Rep and Maint,07/12/2018,3526863-10860,525.00,PREMIER CELL FIT T/A LIVEWIRE GATES & DOORS.
Resources,Legal & Democratic Services,Supplies and Services,384965,Miscellaneous Expenses,07/12/2018,3526864-156232,560.00,PREMIER TRAFFIC MANAGEMENT LTD.
Dedicated Schools Grant,DSG High Needs Block,Employees,080025,Agency Staff,07/12/2018,3526870-51342449,925.15,PROTOCOL EDUCATION LTD.
Dedicated Schools Grant,DSG High Needs Block,Employees,080025,Agency Staff,07/12/2018,3526870-51342451,512.48,PROTOCOL EDUCATION LTD.
Dedicated Schools Grant,DSG High Needs Block,Employees,080025,Agency Staff,07/12/2018,3526870-51342452,527.63,PROTOCOL EDUCATION LTD.
Regeneration and Local Services,Direct Services,Supplies and Services,338078,Services,07/12/2018,3526873-115652,"2,570.88",QW SECURITY LTD.
Regeneration and Local Services,Economic Development and Housing,Supplies and Services,377015,County Durham Development,07/12/2018,3526875-INV54410,"2,373.17",RAMSIDE ESTATES LTD T/A RAMSIDE HALL HOTEL.
Regeneration and Local Services,Culture & Sport,Supplies and Services,384302,Miscellaneous Expenses,07/12/2018,3526876-0000004097,"1,027.08",RAMSIDE EVENT CATERING.
Children and Young Peoples Services,Head of Childrens Social Care,Third Party Payments 4THIRD,440038,Other third party payments E440,07/12/2018,3526888-4697,"17,254.94",ROC FAMILY SUPPORT LTD.
Resources,Digital and Customer Services,Supplies and Services,340001,Postages E340,07/12/2018,3526890-9057692244,"12,522.25",ROYAL MAIL GROUP PLC.
Resources,Digital and Customer Services,Supplies and Services,342051,Computers and Communications,07/12/2018,3526894-I18110036,"2,750.00",SAPPHIRE TECHNOLOGIES LTD.*
Transformation and Partnerships,Partnerships & Community Engagement Div.,Supplies and Services,384086,Miscellaneous Expenses,07/12/2018,3526897-VOUCHER18NB-EDUR032,"3,000.00",SEAHAM GOLF CLUB.
Children and Young Peoples Services,Head of Education and Skills,Supplies and Services,384199,Miscellaneous Expenses,07/12/2018,3526898-1117,"3,021.20",SEDGEFIELD SCHOOL SPORT PARTNERSHIP CIC.
Regeneration and Local Services,Economic Development and Housing,Supplies and Services,336005,Advertising E336,07/12/2018,3526904-01112018,553.00,SHE`S GOTT IT.
Regeneration and Local Services,Direct Services,Supplies and Services,304221,Equipment and Materials,07/12/2018,3526903-CD970715500,"1,305.08",SHERRIFF AMENITY.
Dedicated Schools Grant,DSG High Needs Block,Supplies and Services,352001,Conference Expenses,07/12/2018,3526907-16709,598.00,SISRA LTD.
Regeneration and Local Services,Economic Development and Housing,Construction work A908,908105,Construction work,07/12/2018,3526909-0000106826,"12,950.00",SMITH OF DERBY LTD.
Regeneration and Local Services,Technical Services,Stock A926,926900,Stock in hand-Inventory system,07/12/2018,3526911-SI18008734,789.00,SOLON SECURITY LTD.
Regeneration and Local Services,Spatial Policy Planning Assets & Environment,Supplies and Services,384199,Miscellaneous Expenses,07/12/2018,3526917-RED-12-2018-007,"2,416.96",STANLEY LEARNING PARTNERSHIP.
Children and Young Peoples Services,Head of Education and Skills,Supplies and Services,384159,Miscellaneous Expenses,07/12/2018,3526919-13524,"8,401.72",STEADFAST SECURITY SYSTEMS LTD.
Regeneration and Local Services,Technical Services,Third Party Payments 4THIRD,430100,Rendered by Private Contractors,07/12/2018,3526923-112235,977.76,STONEGRAVE AGGREGATES LTD.
Regeneration and Local Services,Culture & Sport,Supplies and Services,328041,Clothing uniforms and laundry E328,07/12/2018,3526929-IN149767,671.45,SWIFT INDUSTRIAL SUPPLIES LTD.
Regeneration and Local Services,Technical Services,Construction work A908,908105,Construction work,07/12/2018,3526930-18003094,"37,900.00",SYSTRA LTD.
Regeneration and Local Services,Direct Services,Supplies and Services,304245,Equipment and Materials,07/12/2018,3526931-39158,"1,999.75",T CROSSLING & CO LTD.
Regeneration and Local Services,Technical Services,Supplies and Services,304221,Equipment and Materials,07/12/2018,3526933-9038953297,654.30,TARMAC TRADING LTD.
Transformation and Partnerships,Communications Management,Supplies and Services,336005,Advertising E336,07/12/2018,3526941-121270,"1,500.00",TEESDALE MERCURY LTD.
Regeneration and Local Services,EnvironmentHealth & Consumer Protection,Supplies and Services,352001,Conference Expenses,07/12/2018,3526944-INV-1084,"1,600.00",THE BIG BANG PARTNERSHIP LTD.
Transformation and Partnerships,Partnerships & Community Engagement Div.,Cap Exp on Grants & Other Financial Assistance (REFCUS),918004,Contributions to other bodies 918004,07/12/2018,3526948-VOUCHER18NB-CHES026,"5,317.20",THE CYRENIANS LTD T/A CHANGING LIVES.
Regeneration and Local Services,Culture & Sport,Supplies and Services,338047,Services,07/12/2018,3526953-LW/27141,"2,828.10",THE NARROW ROAD COMPANY.
Regeneration and Local Services,Direct Services,Supplies and Services,304221,Equipment and Materials,07/12/2018,3526959-SIP-210758,"1,225.95",THYSSENKRUPP ENCASA A DIVISION OF THYSSENKRUPP ACCESS LTD.
Regeneration and Local Services,Technical Services,Supplies and Services,304221,Equipment and Materials,07/12/2018,3526965-125351,"2,685.00",TP ELECTRICAL SUPPLIES & FIXINGS LTD.
Regeneration and Local Services,Transport and Contracted Services,Supplies and Services,304245,Equipment and Materials,07/12/2018,3526971-3IN/10327483,"1,400.00",TUNSTALL HEALTHCARE (UK) LTD.
Regeneration and Local Services,Direct Services,Supplies and Services,304221,Equipment and Materials,07/12/2018,3526976-04013147,"2,180.10",UK ELECTRIC LTD.
Regeneration and Local Services,Direct Services,Supplies and Services,304221,Equipment and Materials,07/12/2018,3526976-04013158,781.70,UK ELECTRIC LTD.
Regeneration and Local Services,Technical Services,Supplies and Services,342215,Computers and Communications,07/12/2018,3526978-40918,"2,689.96",UK TELEMATICS LTD.
Regeneration and Local Services,Technical Services,Supplies and Services,342215,Computers and Communications,07/12/2018,3526978-41113,"13,725.00",UK TELEMATICS LTD.
Regeneration and Local Services,Culture & Sport,Supplies and Services,338047,Services,07/12/2018,3526980-22314248711-1,849.87,UNIVERSAL PICTURES INTERNATIONAL UK & EIRE LTD.
Regeneration and Local Services,Culture & Sport,Supplies and Services,338047,Services,07/12/2018,3526980-22314248712-1,"1,035.31",UNIVERSAL PICTURES INTERNATIONAL UK & EIRE LTD.
Regeneration and Local Services,Culture & Sport,Supplies and Services,338047,Services,07/12/2018,3526980-22314248981-1,848.75,UNIVERSAL PICTURES INTERNATIONAL UK & EIRE LTD.
Children and Young Peoples Services,Childrens Services Operational Support,Supplies and Services,338099,Services,07/12/2018,3526984-10649584,"5,000.00",UNIVERSITY OF TEESSIDE.
Transformation and Partnerships,Partnerships & Community Engagement Div.,Cap Exp on Grants & Other Financial Assistance (REFCUS),918004,Contributions to other bodies 918004,07/12/2018,3526985-VOUCHER16NB-MDUR004,"2,421.50",USHAW MOOR CRICKET CLUB.
Regeneration and Local Services,Direct Services,Premises,108099,Service Repairs and Maintenance,07/12/2018,3526986-2478,"1,025.00",VENTILATION HYGIENE SPECIALISTS (VHS) LTD.
Regeneration and Local Services,Direct Services,Premises,108099,Service Repairs and Maintenance,07/12/2018,3526986-2484,535.00,VENTILATION HYGIENE SPECIALISTS (VHS) LTD.
Regeneration and Local Services,Culture & Sport,Premises,106082,Centrally Controlled Rep and Maint,07/12/2018,3526986-2475,670.00,VENTILATION HYGIENE SPECIALISTS (VHS) LTD.
Regeneration and Local Services,Technical Services,Third Party Payments 4THIRD,460503,Contract Payments,07/12/2018,3526987-OP/I531355,"1,200.00",VEOLIA ENVIRONMENTAL SERVICES ES (UK) LTD.
Regeneration and Local Services,Technical Services,Third Party Payments 4THIRD,430100,Rendered by Private Contractors,07/12/2018,3526989-562,"1,443.51",VINOVIUM ASSOCIATES LTD.
Regeneration and Local Services,Technical Services,Third Party Payments 4THIRD,430100,Rendered by Private Contractors,07/12/2018,3526989-563,"1,449.11",VINOVIUM ASSOCIATES LTD.
Children and Young Peoples Services,"Head of Early Help, Inclusion and Vulnerable Children",Employees,080025,Agency Staff,07/12/2018,3526990-344517,551.25,VISION FOR EDUCATION LTD.
Regeneration and Local Services,Technical Services,Fees,901002,Consultants fees 901002,07/12/2018,3526992-HK/MC/NT13851/0004,787.50,WARDELL ARMSTRONG LLP.
Regeneration and Local Services,Culture & Sport,Supplies and Services,338047,Services,07/12/2018,3526993-22704309,"3,673.00",WARNER BROS ENTERTAINMENT UK LTD.
Regeneration and Local Services,Technical Services,Stock A926,926900,Stock in hand-Inventory system,07/12/2018,3526999-56412811,834.70,WOLSELEY UK LTD.
Resources,Digital and Customer Services,Stock A926,926900,Stock in hand-Inventory system,07/12/2018,3527003-KN18837,"3,066.54",XMA LTD.
Regeneration and Local Services,Culture & Sport,Supplies and Services,304337,Equipment and Materials,07/12/2018,3527007-I-0540239,600.30,ZOGGS INTERNATIONAL LTD.
Children and Young Peoples Services,Head of Education and Skills,Transport,230008,Contract Hire,10/12/2018,3527012-111806,"3,110.00",24/7 TAXI SERVICES LTD.
Dedicated Schools Grant,DSG High Needs Block,Transport,230010,Contract Hire,10/12/2018,3527013-01-BL015,"1,380.62",A & P TAXIS.
Children and Young Peoples Services,Head of Education and Skills,Transport,230006,Contract Hire,10/12/2018,3527014-HA220805,"1,089.00",A MURRAY TRAVEL.
Children and Young Peoples Services,Head of Education and Skills,Transport,230008,Contract Hire,10/12/2018,3527014-A220803,"1,518.00",A MURRAY TRAVEL.
Children and Young Peoples Services,Head of Education and Skills,Transport,230008,Contract Hire,10/12/2018,3527014-EA220799,"2,618.00",A MURRAY TRAVEL.
Children and Young Peoples Services,Head of Education and Skills,Transport,230008,Contract Hire,10/12/2018,3527014-GC013,"1,089.00",A MURRAY TRAVEL.
Dedicated Schools Grant,DSG High Needs Block,Transfer Payments,510034,School Children,10/12/2018,3527018-LACPP1819AUTUMN,"1,800.00",ACRE RIGG ACADEMY.
Dedicated Schools Grant,DSG High Needs Block,Transfer Payments,510034,School Children,10/12/2018,3527020-LACPP1819AUTUMN,"2,400.00",ADVANCE LEARNING PARTNERSHIP.
Regeneration and Local Services,Technical Services,Supplies and Services,304221,Equipment and Materials,10/12/2018,3527021-27393375,"1,154.20",AGGREGATE INDUSTRIES UK LTD.
Regeneration and Local Services,Direct Services,Third Party Payments 4THIRD,430100,Rendered by Private Contractors,10/12/2018,3527024-54940,"1,526.18",ALAN REED LTD.
Regeneration and Local Services,Direct Services,Transport,210057,Repair and Maintenance of Vehicles,10/12/2018,3527031-25187,558.00,ARBOR TIMBER & BUILDERS MERCHANTS LTD.
Children and Young Peoples Services,Head of Education and Skills,Transport,230012,Contract Hire,10/12/2018,3527033-E136/NOV,"1,183.60",ARMSTRONG`S TAXIS.
Children and Young Peoples Services,Head of Education and Skills,Transport,230008,Contract Hire,10/12/2018,3527033-M039/NOV,"1,474.00",ARMSTRONG`S TAXIS.
Regeneration and Local Services,Direct Services,Transport,210057,Repair and Maintenance of Vehicles,10/12/2018,3527034-822337,671.30,ARNDALE GROUP OF COMPANIES.
Non-Service Specific,Non Service Specific-Financing,Long Term Debtors,924001,Car loans,10/12/2018,3527035-114656,"1,240.00",ARRIVA NORTH EAST LTD.
Non-Service Specific,Non Service Specific-Financing,Long Term Debtors,924001,Car loans,10/12/2018,3527035-114674,620.00,ARRIVA NORTH EAST LTD.
Children and Young Peoples Services,Head of Education and Skills,Transport,230007,Contract Hire,10/12/2018,3527036-679,"1,089.00",AT TAXIS LTD.
Children and Young Peoples Services,Head of Education and Skills,Transport,230007,Contract Hire,10/12/2018,3527036-680,"2,398.00",AT TAXIS LTD.
Children and Young Peoples Services,Head of Education and Skills,Transport,230008,Contract Hire,10/12/2018,3527036-676,"2,398.00",AT TAXIS LTD.
Children and Young Peoples Services,Head of Education and Skills,Transport,230008,Contract Hire,10/12/2018,3527036-677,"2,688.00",AT TAXIS LTD.
Adult and Health Services,Head of Adults,Transport,230005,Contract Hire,10/12/2018,3527036-678,"2,618.00",AT TAXIS LTD.
Children and Young Peoples Services,Head of Education and Skills,Transport,230007,Contract Hire,10/12/2018,3527037-DCC11NOV18,"1,680.00",ATLAS TAXIS BISHOP AUCKLAND.
Children and Young Peoples Services,Head of Education and Skills,Transport,230008,Contract Hire,10/12/2018,3527037-DCC05NOV18,"2,079.00",ATLAS TAXIS BISHOP AUCKLAND.
Children and Young Peoples Services,Head of Education and Skills,Transport,230008,Contract Hire,10/12/2018,3527037-DCC13NOV18,"2,860.00",ATLAS TAXIS BISHOP AUCKLAND.
Children and Young Peoples Services,Head of Education and Skills,Transport,230008,Contract Hire,10/12/2018,3527037-DCC15NOV18,"1,760.00",ATLAS TAXIS BISHOP AUCKLAND.
Children and Young Peoples Services,Head of Education and Skills,Transport,230008,Contract Hire,10/12/2018,3527037-DCC1NOV18,"2,249.00",ATLAS TAXIS BISHOP AUCKLAND.
Children and Young Peoples Services,Head of Education and Skills,Transport,230008,Contract Hire,10/12/2018,3527037-DCC4NOV18,"1,958.00",ATLAS TAXIS BISHOP AUCKLAND.
Children and Young Peoples Services,Head of Education and Skills,Transport,230008,Contract Hire,10/12/2018,3527037-DCC6NOV18,"2,640.00",ATLAS TAXIS BISHOP AUCKLAND.
Adult and Health Services,Head of Adults,Transport,230005,Contract Hire,10/12/2018,3527037-DCC14NOV18,"1,890.00",ATLAS TAXIS BISHOP AUCKLAND.
Adult and Health Services,Head of Adults,Transport,230005,Contract Hire,10/12/2018,3527037-DCC2NOV18,"1,760.00",ATLAS TAXIS BISHOP AUCKLAND.
Children and Young Peoples Services,Head of Education and Skills,Transport,230007,Contract Hire,10/12/2018,3527038-03858,509.20,ATLAS TAXIS CONSETT.
Children and Young Peoples Services,Head of Education and Skills,Transport,230007,Contract Hire,10/12/2018,3527038-03860,740.00,ATLAS TAXIS CONSETT.
Children and Young Peoples Services,Head of Education and Skills,Transport,230007,Contract Hire,10/12/2018,3527038-03862,824.00,ATLAS TAXIS CONSETT.
Children and Young Peoples Services,Head of Education and Skills,Transport,230007,Contract Hire,10/12/2018,3527038-03864,"1,221.44",ATLAS TAXIS CONSETT.
Children and Young Peoples Services,Head of Education and Skills,Transport,230007,Contract Hire,10/12/2018,3527038-03866,665.60,ATLAS TAXIS CONSETT.
Adult and Health Services,Head of Adults,Transport,230005,Contract Hire,10/12/2018,3527038-03863,714.00,ATLAS TAXIS CONSETT.
Regeneration and Local Services,Direct Services,Transport,210057,Repair and Maintenance of Vehicles,10/12/2018,3527044-15139964,863.58,BELL TRUCK SALES LTD T/A BELL TRUCK & VAN.
Children and Young Peoples Services,Head of Childrens Social Care,Third Party Payments 4THIRD,425020,Rendered by Voluntary Organisations,10/12/2018,3527059-199/19,"1,110.00",BUTTERWICK LTD..
Children and Young Peoples Services,Head of Childrens Social Care,Third Party Payments 4THIRD,425020,Rendered by Voluntary Organisations,10/12/2018,3527059-204/19,"1,110.00",BUTTERWICK LTD..
Children and Young Peoples Services,Head of Childrens Social Care,Third Party Payments 4THIRD,425020,Rendered by Voluntary Organisations,10/12/2018,3527059-206/19,"1,480.00",BUTTERWICK LTD..
Children and Young Peoples Services,Head of Childrens Social Care,Third Party Payments 4THIRD,425020,Rendered by Voluntary Organisations,10/12/2018,3527059-209/19,"1,480.00",BUTTERWICK LTD..
Adult and Health Services,Head of Adults,Third Party Payments 4THIRD,470101,Purchase of Care,10/12/2018,3527059-205/19,"1,480.00",BUTTERWICK LTD..
Children and Young Peoples Services,Head of Education and Skills,Transport,230006,Contract Hire,10/12/2018,3527072-F763/03,"1,408.00",CHRISTOPHER MADDISON (TAXI).
Regeneration and Local Services,Technical Services,Premises,150015,Apportioned Exps of Operational Blds,10/12/2018,3527075-108171,857.96,CLEE HILL PLANT LTD.
Regeneration and Local Services,Technical Services,Premises,150015,Apportioned Exps of Operational Blds,10/12/2018,3527075-108172,526.88,CLEE HILL PLANT LTD.
Dedicated Schools Grant,DSG High Needs Block,Transfer Payments,510034,School Children,10/12/2018,3527076-LACPP1819AUTUMN,600.00,CLEVES CROSS LEARNING TRUST T/A ROSA STREET PRIMARY SCHOOL.
Dedicated Schools Grant,DSG High Needs Block,Transfer Payments,510034,School Children,10/12/2018,3527077-LACPP1819AUTUMN,"1,800.00",CLEVES CROSS LEARNING TRUST.
Regeneration and Local Services,Technical Services,Supplies and Services,384956,Miscellaneous Expenses,10/12/2018,3527082-NEI-EXP-12-2018-003,"2,476.10",CONQUEST LTD.
Dedicated Schools Grant,DSG High Needs Block,Transfer Payments,510034,School Children,10/12/2018,3527101-LACPP1819AUTUMN,600.00,DENE HOUSE PRIMARY SCHOOL (ACADEMY).
Regeneration and Local Services,Direct Services,Transport,210057,Repair and Maintenance of Vehicles,10/12/2018,3527102-DE11176804,931.63,DENNIS EAGLE LTD.
Dedicated Schools Grant,DSG High Needs Block,Transfer Payments,510034,School Children,10/12/2018,3527110-LACPP1819AUTUMN,"2,400.00",DURHAM MARTYRS MULTI ACADEMY TRUST T/A ST LEONARD`S CATHOLIC SCHOOL.
Dedicated Schools Grant,DSG High Needs Block,Transfer Payments,510034,School Children,10/12/2018,3527113-LACPP1819AUTUMN,"2,400.00",EDEN LEARNING TRUST T/A FERRYHILL BUSINESS & ENTERPRISE COLLEGE.
Dedicated Schools Grant,DSG High Needs Block,Transfer Payments,510034,School Children,10/12/2018,3527114-LACPP1819AUTUMN,"3,600.00",EDEN LEARNING TRUST T/A WOODHAM ACADEMY.
Dedicated Schools Grant,DSG High Needs Block,Transfer Payments,510034,School Children,10/12/2018,3527123-LACPP1819AUTUMN,"4,200.00",EXCEL ACADEMY PARTNERSHIP T/A FRAMWELLGATE SCHOOL DURHAM.
Children and Young Peoples Services,Head of Education and Skills,Transport,230007,Contract Hire,10/12/2018,3527128-0441,770.00,FMR SILVA PITA.
Children and Young Peoples Services,Head of Education and Skills,Transport,230007,Contract Hire,10/12/2018,3527128-0442,758.00,FMR SILVA PITA.
Children and Young Peoples Services,Head of Education and Skills,Transport,230008,Contract Hire,10/12/2018,3527128-0440,"1,628.00",FMR SILVA PITA.
Children and Young Peoples Services,Head of Education and Skills,Transport,230007,Contract Hire,10/12/2018,3527130-101053,"1,144.00",G & P JOHNSON LTD T/A NIGHTINGALE COACHES.
Children and Young Peoples Services,Head of Education and Skills,Transport,230009,Contract Hire,10/12/2018,3527130-101052,"1,365.00",G & P JOHNSON LTD T/A NIGHTINGALE COACHES.
Children and Young Peoples Services,Head of Education and Skills,Transport,230008,Contract Hire,10/12/2018,3527130-101047,"2,156.00",G & P JOHNSON LTD T/A NIGHTINGALE COACHES.
Children and Young Peoples Services,Head of Education and Skills,Transport,230008,Contract Hire,10/12/2018,3527130-101057,"2,310.00",G & P JOHNSON LTD T/A NIGHTINGALE COACHES.
Children and Young Peoples Services,Head of Education and Skills,Transport,230008,Contract Hire,10/12/2018,3527130-101058,"1,716.00",G & P JOHNSON LTD T/A NIGHTINGALE COACHES.
Children and Young Peoples Services,Head of Education and Skills,Transport,230008,Contract Hire,10/12/2018,3527130-101059,"1,870.00",G & P JOHNSON LTD T/A NIGHTINGALE COACHES.
Children and Young Peoples Services,Head of Education and Skills,Transport,230008,Contract Hire,10/12/2018,3527130-101060,"1,958.00",G & P JOHNSON LTD T/A NIGHTINGALE COACHES.
Children and Young Peoples Services,Head of Education and Skills,Transport,230008,Contract Hire,10/12/2018,3527130-101061,"1,012.00",G & P JOHNSON LTD T/A NIGHTINGALE COACHES.
Children and Young Peoples Services,Head of Education and Skills,Transport,230008,Contract Hire,10/12/2018,3527130-101062,"1,232.00",G & P JOHNSON LTD T/A NIGHTINGALE COACHES.
Children and Young Peoples Services,Head of Education and Skills,Transport,230008,Contract Hire,10/12/2018,3527130-101063,990.00,G & P JOHNSON LTD T/A NIGHTINGALE COACHES.
Children and Young Peoples Services,Head of Education and Skills,Transport,230008,Contract Hire,10/12/2018,3527130-101065,"1,166.15",G & P JOHNSON LTD T/A NIGHTINGALE COACHES.
Children and Young Peoples Services,Head of Education and Skills,Transport,230008,Contract Hire,10/12/2018,3527130-101066,"1,914.00",G & P JOHNSON LTD T/A NIGHTINGALE COACHES.
Children and Young Peoples Services,Head of Education and Skills,Transport,230008,Contract Hire,10/12/2018,3527130-101067,"1,232.00",G & P JOHNSON LTD T/A NIGHTINGALE COACHES.
Children and Young Peoples Services,Head of Education and Skills,Transport,230008,Contract Hire,10/12/2018,3527130-101068,"1,540.00",G & P JOHNSON LTD T/A NIGHTINGALE COACHES.
Children and Young Peoples Services,Head of Education and Skills,Transport,230008,Contract Hire,10/12/2018,3527130-101069,"1,078.00",G & P JOHNSON LTD T/A NIGHTINGALE COACHES.
Children and Young Peoples Services,Head of Education and Skills,Transport,230008,Contract Hire,10/12/2018,3527130-101070,"1,540.00",G & P JOHNSON LTD T/A NIGHTINGALE COACHES.
Adult and Health Services,Head of Adults,Transport,230005,Contract Hire,10/12/2018,3527130-101040,"1,337.00",G & P JOHNSON LTD T/A NIGHTINGALE COACHES.
Adult and Health Services,Head of Adults,Transport,230005,Contract Hire,10/12/2018,3527130-101041,"1,276.00",G & P JOHNSON LTD T/A NIGHTINGALE COACHES.
Adult and Health Services,Head of Adults,Transport,230005,Contract Hire,10/12/2018,3527130-101042,858.00,G & P JOHNSON LTD T/A NIGHTINGALE COACHES.
Adult and Health Services,Head of Adults,Transport,230005,Contract Hire,10/12/2018,3527130-101043,880.00,G & P JOHNSON LTD T/A NIGHTINGALE COACHES.
Adult and Health Services,Head of Adults,Transport,230005,Contract Hire,10/12/2018,3527130-101045,"1,352.00",G & P JOHNSON LTD T/A NIGHTINGALE COACHES.
Adult and Health Services,Head of Adults,Transport,230005,Contract Hire,10/12/2018,3527130-101046,"1,628.00",G & P JOHNSON LTD T/A NIGHTINGALE COACHES.
Adult and Health Services,Head of Adults,Transport,230005,Contract Hire,10/12/2018,3527130-101048,"1,848.00",G & P JOHNSON LTD T/A NIGHTINGALE COACHES.
Adult and Health Services,Head of Adults,Transport,230005,Contract Hire,10/12/2018,3527130-101050,"2,104.00",G & P JOHNSON LTD T/A NIGHTINGALE COACHES.
Children and Young Peoples Services,Head of Education and Skills,Transport,230007,Contract Hire,10/12/2018,3527131-21003-3029,"3,024.00",GARNETTS LTD (COACHES).
Children and Young Peoples Services,Head of Education and Skills,Transport,230003,Contract Hire,10/12/2018,3527131-20993-3301,"3,498.00",GARNETTS LTD (COACHES).
Children and Young Peoples Services,Head of Education and Skills,Transport,230003,Contract Hire,10/12/2018,3527131-20993-3303,"4,048.00",GARNETTS LTD (COACHES).
Children and Young Peoples Services,Head of Education and Skills,Transport,230003,Contract Hire,10/12/2018,3527131-20993-3335,"3,905.00",GARNETTS LTD (COACHES).
Children and Young Peoples Services,Head of Education and Skills,Transport,230003,Contract Hire,10/12/2018,3527131-21003-3020,"3,045.00",GARNETTS LTD (COACHES).
Children and Young Peoples Services,Head of Education and Skills,Transport,230003,Contract Hire,10/12/2018,3527131-21003-3024,"2,919.00",GARNETTS LTD (COACHES).
Children and Young Peoples Services,Head of Education and Skills,Transport,230003,Contract Hire,10/12/2018,3527131-21003-3026,"2,709.00",GARNETTS LTD (COACHES).
Children and Young Peoples Services,Head of Education and Skills,Transport,230003,Contract Hire,10/12/2018,3527131-21003-3027,"2,919.00",GARNETTS LTD (COACHES).
Children and Young Peoples Services,Head of Education and Skills,Transport,230003,Contract Hire,10/12/2018,3527131-21003-3028,"3,024.00",GARNETTS LTD (COACHES).
Dedicated Schools Grant,DSG High Needs Block,Transfer Payments,510034,School Children,10/12/2018,3527141-LACPP1819AUTUMN,"6,600.00",HERMITAGE ACADEMY.
Regeneration and Local Services,Direct Services,Third Party Payments 4THIRD,430100,Rendered by Private Contractors,10/12/2018,3527144-75387,552.94,HOGARTH COACHWORKS LTD.
Regeneration and Local Services,Direct Services,Third Party Payments 4THIRD,430100,Rendered by Private Contractors,10/12/2018,3527144-75389,"2,724.40",HOGARTH COACHWORKS LTD.
Regeneration and Local Services,Direct Services,Third Party Payments 4THIRD,430100,Rendered by Private Contractors,10/12/2018,3527144-75474,741.53,HOGARTH COACHWORKS LTD.
Adult and Health Services,Commissioning inc Supporting People,Third Party Payments 4THIRD,479111,Purchase of Care,10/12/2018,3527146-CES045,"2,833.33",HOMECARE SUPPORT LTD T/A THE HUMAN SUPPORT GROUP.
Dedicated Schools Grant,DSG High Needs Block,Transfer Payments,510034,School Children,10/12/2018,3527147-LACPP1819AUTUMN,"5,400.00",HOPE WOOD ACADEMY.
Regeneration and Local Services,Direct Services,Third Party Payments 4THIRD,430100,Rendered by Private Contractors,10/12/2018,3527156-6897,885.00,JAMES INGLEFORD SCAFFOLDING LTD.
Regeneration and Local Services,Direct Services,Third Party Payments 4THIRD,430100,Rendered by Private Contractors,10/12/2018,3527156-7029,"4,533.50",JAMES INGLEFORD SCAFFOLDING LTD.
Children and Young Peoples Services,Head of Education and Skills,Transport,230006,Contract Hire,10/12/2018,3527166-F759/NOV,"1,113.00",JMR TAXIS.
Regeneration and Local Services,Technical Services,Premises,150015,Apportioned Exps of Operational Blds,10/12/2018,3527167-2230781,838.42,JOHN NIXON LTD.
Children and Young Peoples Services,Head of Education and Skills,Transport,230009,Contract Hire,10/12/2018,3527168-723123,"1,870.00",JOVIAL PRIVATE HIRE.
Children and Young Peoples Services,Head of Education and Skills,Transport,230008,Contract Hire,10/12/2018,3527168-M00915,"1,365.00",JOVIAL PRIVATE HIRE.
Children and Young Peoples Services,Head of Education and Skills,Transport,230008,Contract Hire,10/12/2018,3527168-M01514,"1,239.00",JOVIAL PRIVATE HIRE.
Children and Young Peoples Services,Head of Education and Skills,Transport,230008,Contract Hire,10/12/2018,3527168-M01714,924.00,JOVIAL PRIVATE HIRE.
Children and Young Peoples Services,Head of Education and Skills,Transport,230008,Contract Hire,10/12/2018,3527168-N30103,"1,576.05",JOVIAL PRIVATE HIRE.
Children and Young Peoples Services,Head of Education and Skills,Transport,230003,Contract Hire,10/12/2018,3527179-6156-4017,"3,179.00",LEE`S COACHES LTD.
Children and Young Peoples Services,Head of Education and Skills,Transport,230003,Contract Hire,10/12/2018,3527179-6156-4020,"2,772.00",LEE`S COACHES LTD.
Children and Young Peoples Services,Head of Education and Skills,Transport,230007,Contract Hire,10/12/2018,3527180-241,770.00,LEE`S TAXIS (SACRISTON).
Children and Young Peoples Services,Head of Education and Skills,Transport,230008,Contract Hire,10/12/2018,3527180-243,880.00,LEE`S TAXIS (SACRISTON).
Children and Young Peoples Services,Head of Education and Skills,Transport,230008,Contract Hire,10/12/2018,3527180-244,"2,957.50",LEE`S TAXIS (SACRISTON).
Children and Young Peoples Services,Head of Education and Skills,Transport,230008,Contract Hire,10/12/2018,3527182-4226,"2,048.00",LOCAL TRANSPORT LTD.
Children and Young Peoples Services,Head of Education and Skills,Transport,230008,Contract Hire,10/12/2018,3527185-135,"1,500.00",M BUTCHER T/A M & M`S TAXIS.
Children and Young Peoples Services,Head of Education and Skills,Transport,230008,Contract Hire,10/12/2018,3527186-24,711.00,M&C`S CABS LTD.
Children and Young Peoples Services,Head of Education and Skills,Transport,230008,Contract Hire,10/12/2018,3527186-24-NOV,"1,443.00",M&C`S CABS LTD.
Regeneration and Local Services,Culture & Sport,Supplies and Services,338047,Services,10/12/2018,3527194-INV-0546,"5,037.67",MICK PERRIN WORLDWIDE LTD (THEATRE CONTRACTOR).
Children and Young Peoples Services,Head of Education and Skills,Transport,230007,Contract Hire,10/12/2018,3527195-0173,704.00,MICKS TAXIS - MURTON.
Children and Young Peoples Services,Head of Education and Skills,Transport,230007,Contract Hire,10/12/2018,3527195-0179,"1,560.00",MICKS TAXIS - MURTON.
Children and Young Peoples Services,Head of Education and Skills,Transport,230006,Contract Hire,10/12/2018,3527195-0175,974.40,MICKS TAXIS - MURTON.
Children and Young Peoples Services,Head of Education and Skills,Transport,230006,Contract Hire,10/12/2018,3527195-0176,832.00,MICKS TAXIS - MURTON.
Children and Young Peoples Services,Head of Education and Skills,Transport,230006,Contract Hire,10/12/2018,3527195-0177,"1,360.00",MICKS TAXIS - MURTON.
Children and Young Peoples Services,Head of Education and Skills,Transport,230008,Contract Hire,10/12/2018,3527195-0172,"1,980.00",MICKS TAXIS - MURTON.
Regeneration and Local Services,Direct Services,Third Party Payments 4THIRD,430100,Rendered by Private Contractors,10/12/2018,3527196-7970055643,852.92,MITCHELL POWERSYSTEMS.
Children and Young Peoples Services,Head of Education and Skills,Transport,230008,Contract Hire,10/12/2018,3527199-68,"1,870.00",MR JOHN KNIGHTON T/A JK TAXIS.
Adult and Health Services,Head of Adults,Transport,230005,Contract Hire,10/12/2018,3527199-86,"1,680.00",MR JOHN KNIGHTON T/A JK TAXIS.
Dedicated Schools Grant,DSG High Needs Block,Transport,230010,Contract Hire,10/12/2018,3527200-3-NOV18,"1,298.00",MR M FARREY T/A TK TAXIS.
Children and Young Peoples Services,Head of Education and Skills,Transport,230009,Contract Hire,10/12/2018,3527202-00029,588.70,MR RICHARD STANDLEY T/A RS TAXI SERVICES.
Children and Young Peoples Services,Head of Education and Skills,Transport,230007,Contract Hire,10/12/2018,3527208-1NOVEMBER2018,840.00,NC TAXI`S.
Children and Young Peoples Services,Head of Education and Skills,Transport,230007,Contract Hire,10/12/2018,3527208-3NOVEMBER2018,880.00,NC TAXI`S.
Children and Young Peoples Services,Head of Education and Skills,Transport,230007,Contract Hire,10/12/2018,3527208-4NOVEMBER2018,660.00,NC TAXI`S.
Adult and Health Services,Head of Adults,Transport,230005,Contract Hire,10/12/2018,3527208-2NOVEMBER2018,560.00,NC TAXI`S.
Adult and Health Services,Head of Adults,Transport,230005,Contract Hire,10/12/2018,3527209-004,700.00,ND TAXIS.
Regeneration and Local Services,Direct Services,Stock A926,926004,Stock,10/12/2018,3527210-INVHE39786,563.14,NE TRUCK SPARES LTD (NETS).
Resources,Digital and Customer Services,Supplies and Services,344033,Telephones,10/12/2018,3527212-202621,"1,082.55",NETWORKS 2 BUSINESS LTD.
Dedicated Schools Grant,DSG High Needs Block,Transfer Payments,510034,School Children,10/12/2018,3527214-LACPP1819AUTUMN,"6,600.00",NEW COLLEGE ACADEMIES TRUST - CONSETT ACADEMY.
Dedicated Schools Grant,DSG High Needs Block,Transfer Payments,510034,School Children,10/12/2018,3527218-LACPP1819AUTUMN,"3,000.00",NORTH DURHAM ACADEMY.
Dedicated Schools Grant,DSG High Needs Block,Transfer Payments,510034,School Children,10/12/2018,3527219-LACPP1819AUTUMN-EAS,"3,000.00",NORTH EAST LEARNING TRUST (NELT).
Dedicated Schools Grant,DSG High Needs Block,Transfer Payments,510034,School Children,10/12/2018,3527219-LACPP1819AUTUMN-SACR,600.00,NORTH EAST LEARNING TRUST (NELT).
Dedicated Schools Grant,DSG High Needs Block,Transfer Payments,510034,School Children,10/12/2018,3527219-LACPP1819AUTUMN-SHOT,"9,000.00",NORTH EAST LEARNING TRUST (NELT).
Dedicated Schools Grant,DSG High Needs Block,Transfer Payments,510034,School Children,10/12/2018,3527219-LACPP1819AUTUMN-TEES,"2,400.00",NORTH EAST LEARNING TRUST (NELT).
Regeneration and Local Services,Direct Services,Third Party Payments 4THIRD,430100,Rendered by Private Contractors,10/12/2018,3527220-21814667,"2,809.39",NORTH EAST TRUCK & VAN LTD.
Regeneration and Local Services,Technical Services,Construction work A908,908112,Capital - Drainage,10/12/2018,3527222-914407015,"6,271.00",NORTHUMBRIAN WATER LTD.
Regeneration and Local Services,Direct Services,Transport,215005,Running Costs of Vehicles,10/12/2018,3527226-375394,"36,675.94",OIL NRG LTD.
Dedicated Schools Grant,DSG High Needs Block,Transfer Payments,510034,School Children,10/12/2018,3527231-LACPP1819AUTUMN,"3,000.00",PARK VIEW ACADEMY.
Children and Young Peoples Services,Head of Education and Skills,Transport,230008,Contract Hire,10/12/2018,3527232-DCC215,"1,760.00",PAUL`S TAXIS..
Children and Young Peoples Services,Head of Education and Skills,Transport,230008,Contract Hire,10/12/2018,3527232-DCC217,"1,222.10",PAUL`S TAXIS..
Children and Young Peoples Services,Head of Education and Skills,Transport,230008,Contract Hire,10/12/2018,3527232-DCC218,"2,984.52",PAUL`S TAXIS..
Children and Young Peoples Services,Head of Education and Skills,Transport,230008,Contract Hire,10/12/2018,3527232-DCC219,"1,498.00",PAUL`S TAXIS..
Children and Young Peoples Services,Head of Education and Skills,Transport,230009,Contract Hire,10/12/2018,3527233-DCC/7345/11/2018,"1,760.00",PB PRIVATE HIRE.
Dedicated Schools Grant,DSG High Needs Block,Third Party Payments 4THIRD,425005,Rendered by Voluntary Organisations,10/12/2018,3527238-37677,"66,708.43",PERCY HEDLEY FOUNDATION.
Children and Young Peoples Services,Head of Education and Skills,Transport,230009,Contract Hire,10/12/2018,3527242-7360-NOV,800.00,PETER`S TAXIS.
Children and Young Peoples Services,Head of Education and Skills,Transport,230006,Contract Hire,10/12/2018,3527242-F721-NOVA,"1,700.00",PETER`S TAXIS.
Children and Young Peoples Services,Head of Education and Skills,Transport,230007,Contract Hire,10/12/2018,3527262-014A,"4,444.00",RAYNERS COACHES.
Children and Young Peoples Services,Head of Education and Skills,Transport,230007,Contract Hire,10/12/2018,3527262-6YA,"1,408.00",RAYNERS COACHES.
Children and Young Peoples Services,Head of Education and Skills,Transport,230007,Contract Hire,10/12/2018,3527262-6YC,"2,552.00",RAYNERS COACHES.
Children and Young Peoples Services,Head of Education and Skills,Transport,230008,Contract Hire,10/12/2018,3527262-014A-M008,"2,520.00",RAYNERS COACHES.
Dedicated Schools Grant,DSG High Needs Block,Transfer Payments,510034,School Children,10/12/2018,3527264-LACPP1819AUTUMN,"2,400.00",RIBBON ACADEMY TRUST.
Children and Young Peoples Services,Head of Education and Skills,Transport,230007,Contract Hire,10/12/2018,3527267-1026,"2,524.50",ROBERTS TOURS.
Children and Young Peoples Services,Head of Education and Skills,Transport,230007,Contract Hire,10/12/2018,3527267-1027,"3,190.00",ROBERTS TOURS.
Children and Young Peoples Services,Head of Education and Skills,Transport,230007,Contract Hire,10/12/2018,3527267-1028,"3,905.00",ROBERTS TOURS.
Children and Young Peoples Services,Head of Education and Skills,Transport,230007,Contract Hire,10/12/2018,3527268-1764,"1,320.00",RON`S TAXIS (FISHBURN).
Children and Young Peoples Services,Head of Education and Skills,Transport,230008,Contract Hire,10/12/2018,3527268-1766,"3,620.00",RON`S TAXIS (FISHBURN).
Adult and Health Services,Head of Adults,Transport,230005,Contract Hire,10/12/2018,3527268-1765,"1,320.00",RON`S TAXIS (FISHBURN).
Children and Young Peoples Services,Head of Education and Skills,Transport,230008,Contract Hire,10/12/2018,3527269-3-NOV18,"1,794.76",ROUTE 1.
Regeneration and Local Services,Culture & Sport,Supplies and Services,338047,Services,10/12/2018,3527270-9056934213,658.77,ROYAL MAIL GROUP PLC.
Children and Young Peoples Services,Head of Education and Skills,Transport,230007,Contract Hire,10/12/2018,3527273-3377/01,"1,800.00",S & S TRAVEL LTD.
Children and Young Peoples Services,Head of Education and Skills,Transport,230006,Contract Hire,10/12/2018,3527273-F725/15,"1,920.00",S & S TRAVEL LTD.
Children and Young Peoples Services,Head of Education and Skills,Transport,230008,Contract Hire,10/12/2018,3527273-S020/14,"2,090.00",S & S TRAVEL LTD.
Children and Young Peoples Services,Head of Education and Skills,Transport,230008,Contract Hire,10/12/2018,3527273-W047/03,"2,420.00",S & S TRAVEL LTD.
Children and Young Peoples Services,Head of Education and Skills,Transport,230008,Contract Hire,10/12/2018,3527273-W052/25,"2,090.00",S & S TRAVEL LTD.
Adult and Health Services,Head of Adults,Transport,230005,Contract Hire,10/12/2018,3527273-SED022/02,"4,400.00",S & S TRAVEL LTD.
Adult and Health Services,Head of Adults,Transport,230005,Contract Hire,10/12/2018,3527273-SED112/03,"1,360.00",S & S TRAVEL LTD.
Adult and Health Services,Head of Adults,Transport,230005,Contract Hire,10/12/2018,3527273-SED122/02,"1,080.00",S & S TRAVEL LTD.
Dedicated Schools Grant,DSG High Needs Block,Transfer Payments,510034,School Children,10/12/2018,3527281-LACPP1819AUTUMN,600.00,SHIELD ROW ACADEMY.
Children and Young Peoples Services,Head of Education and Skills,Transport,230008,Contract Hire,10/12/2018,3527282-74383,"2,280.00",SHOTTON PRIVATE HIRE.
Children and Young Peoples Services,Head of Education and Skills,Transport,230012,Contract Hire,10/12/2018,3527285-1011,"1,210.00",SIMONS TAXIS.
Children and Young Peoples Services,Head of Education and Skills,Transport,230008,Contract Hire,10/12/2018,3527285-1012,"2,024.00",SIMONS TAXIS.
Children and Young Peoples Services,Head of Education and Skills,Transport,230008,Contract Hire,10/12/2018,3527285-1013,"1,474.00",SIMONS TAXIS.
Children and Young Peoples Services,Head of Education and Skills,Transport,230012,Contract Hire,10/12/2018,3527288-683A,"2,640.00",SJ MACKENZIE T/A SCOTTS TAXIS.
Children and Young Peoples Services,Head of Education and Skills,Transport,230008,Contract Hire,10/12/2018,3527288-684A,"1,650.00",SJ MACKENZIE T/A SCOTTS TAXIS.
Children and Young Peoples Services,Head of Education and Skills,Transport,230008,Contract Hire,10/12/2018,3527288-687A,"2,200.00",SJ MACKENZIE T/A SCOTTS TAXIS.
Children and Young Peoples Services,Head of Education and Skills,Transport,230008,Contract Hire,10/12/2018,3527288-688A,"2,175.00",SJ MACKENZIE T/A SCOTTS TAXIS.
Regeneration and Local Services,Direct Services,Third Party Payments 4THIRD,430100,Rendered by Private Contractors,10/12/2018,3527291-105/18/27700,"1,050.00",SOCIETE GENERALE EQUIPMENT FINANCE LTD.
Dedicated Schools Grant,DSG High Needs Block,Transfer Payments,510034,School Children,10/12/2018,3527293-LACPP1819AUTUMN,"1,200.00",SOUTH HETTON PRIMARY SCHOOL.
Children and Young Peoples Services,Head of Education and Skills,Transport,230008,Contract Hire,10/12/2018,3527295-201804,"2,205.00",SPENNYMOOR TAXIS.
Children and Young Peoples Services,Head of Education and Skills,Transport,230008,Contract Hire,10/12/2018,3527295-201805,"1,760.00",SPENNYMOOR TAXIS.
Regeneration and Local Services,Direct Services,Third Party Payments 4THIRD,430100,Rendered by Private Contractors,10/12/2018,3527299-6467,"12,210.00",ST ASTIER LTD.
Dedicated Schools Grant,DSG High Needs Block,Transfer Payments,510034,School Children,10/12/2018,3527300-LACPP1819AUTUMN,"4,200.00",ST BEDES CATHOLIC ACADEMY (LANCHESTER).
Dedicated Schools Grant,DSG High Needs Block,Transfer Payments,510034,School Children,10/12/2018,3527302-LACPP1819AUTUMN,"2,400.00",ST JOHN`S SCHOOL & SIXTH FORM COLLEGE A CATHOLIC ACADEMY.
Regeneration and Local Services,Culture & Sport,Supplies and Services,304259,Equipment and Materials,10/12/2018,3527303-00351759A,899.25,STAGE ELECTRICS.
Dedicated Schools Grant,DSG High Needs Block,Transfer Payments,510034,School Children,10/12/2018,3527304-LACPP1819AUTUMN,600.00,STAINDROP ACADEMY.
Dedicated Schools Grant,DSG High Needs Block,Transfer Payments,510034,School Children,10/12/2018,3527305-LACPP1819AUTUMN-GREEN,600.00,STANLEY LEARNING PARTNERSHIP.
Dedicated Schools Grant,DSG High Needs Block,Transfer Payments,510034,School Children,10/12/2018,3527305-LACPP1819AUTUMN-SOUTH,"1,200.00",STANLEY LEARNING PARTNERSHIP.
Children and Young Peoples Services,Head of Education and Skills,Transport,230008,Contract Hire,10/12/2018,3527308-1001,"1,380.00",STEPHEN REED T/A STEVE`S TAXIS.
Dedicated Schools Grant,DSG High Needs Block,Transfer Payments,510034,School Children,10/12/2018,3527309-LACPP1819AUTUMN,"3,000.00",STEPHENSON WAY ACADEMY & NURSERY SCHOOL.
Children and Young Peoples Services,Head of Childrens Social Care,Transport,240045,Car allowances E240,10/12/2018,3527313-8991,"44,643.15",SUPPORTIVE SRC LTD.
Regeneration and Local Services,Direct Services,Supplies and Services,304221,Equipment and Materials,10/12/2018,3527316-35784,947.94,T CROSSLING & CO LTD.
Regeneration and Local Services,Direct Services,Third Party Payments 4THIRD,430100,Rendered by Private Contractors,10/12/2018,3527333-1790092461,"4,090.00",TUV SUD UK LTD T/A TUV SUD DUNBAR & BOARDMAN.
Adult and Health Services,Public Health,Third Party Payments 4THIRD,460803,Contract Payments,10/12/2018,3527338-10632220,"7,500.00",UNIVERSITY OF TEESSIDE.
Dedicated Schools Grant,DSG High Needs Block,Transfer Payments,510034,School Children,10/12/2018,3527341-LACPP1819AUTUMN,"2,400.00",VICTORIA LANE ACADEMY.
Regeneration and Local Services,Direct Services,Transport,215995,Running Costs of Vehicles,10/12/2018,3527344-96730,"2,289.35",VISION TECHNIQUES (UK) LTD.
Regeneration and Local Services,Direct Services,Premises,150015,Apportioned Exps of Operational Blds,10/12/2018,3527349-824506,735.54,WERNICK HIRE LTD.
Regeneration and Local Services,Technical Services,Premises,150015,Apportioned Exps of Operational Blds,10/12/2018,3527349-834174,732.60,WERNICK HIRE LTD.
Regeneration and Local Services,Technical Services,Premises,150015,Apportioned Exps of Operational Blds,10/12/2018,3527349-834176,667.48,WERNICK HIRE LTD.
Regeneration and Local Services,Direct Services,Premises,150015,Apportioned Exps of Operational Blds,10/12/2018,3527349-834267,772.20,WERNICK HIRE LTD.
Dedicated Schools Grant,DSG High Needs Block,Transfer Payments,510034,School Children,10/12/2018,3527350-LACPP1819AUTUMN,"4,200.00",WHITWORTH PARK SCHOOL.
Dedicated Schools Grant,DSG High Needs Block,Transfer Payments,510034,School Children,10/12/2018,3527350-LACPP1819COURSE,"5,000.00",WHITWORTH PARK SCHOOL.
Resources - C A C,Centrally Administered costs,Supplies and Services,338066,Services,10/12/2018,3527352-3340382,795.00,WOMBLE BOND DICKINSON (UK) LLP.
Regeneration and Local Services,Technical Services,Supplies and Services,304221,Equipment and Materials,11/12/2018,3527369-27472398,890.88,AGGREGATE INDUSTRIES UK LTD.
Regeneration and Local Services,Technical Services,Supplies and Services,304221,Equipment and Materials,11/12/2018,3527369-27472399,927.78,AGGREGATE INDUSTRIES UK LTD.
Regeneration and Local Services,Technical Services,Supplies and Services,304221,Equipment and Materials,11/12/2018,3527369-27472401,903.34,AGGREGATE INDUSTRIES UK LTD.
Regeneration and Local Services,Technical Services,Supplies and Services,304221,Equipment and Materials,11/12/2018,3527369-27472403,942.82,AGGREGATE INDUSTRIES UK LTD.
Regeneration and Local Services,Spatial Policy Planning Assets & Environment,Supplies and Services,336005,Advertising E336,11/12/2018,3527380-454793,"3,000.00",BAUER RADIO LTD.
Regeneration and Local Services,Direct Services,Transport,210057,Repair and Maintenance of Vehicles,11/12/2018,3527383-35157671,727.09,BELL TRUCK SALES LTD T/A BELL TRUCK & VAN.
Regeneration and Local Services,Direct Services,Transport,210057,Repair and Maintenance of Vehicles,11/12/2018,3527383-35157886,815.31,BELL TRUCK SALES LTD T/A BELL TRUCK & VAN.
Children and Young Peoples Services,Head of Childrens Social Care,Third Party Payments 4THIRD,425020,Rendered by Voluntary Organisations,11/12/2018,3527398-198/19,"1,110.00",BUTTERWICK LTD..
Children and Young Peoples Services,Head of Childrens Social Care,Third Party Payments 4THIRD,425020,Rendered by Voluntary Organisations,11/12/2018,3527398-201/19,"1,110.00",BUTTERWICK LTD..
Children and Young Peoples Services,Head of Childrens Social Care,Third Party Payments 4THIRD,425020,Rendered by Voluntary Organisations,11/12/2018,3527398-202/19,"1,110.00",BUTTERWICK LTD..
Children and Young Peoples Services,Head of Childrens Social Care,Third Party Payments 4THIRD,425020,Rendered by Voluntary Organisations,11/12/2018,3527398-203/19,740.00,BUTTERWICK LTD..
Children and Young Peoples Services,Head of Childrens Social Care,Third Party Payments 4THIRD,425020,Rendered by Voluntary Organisations,11/12/2018,3527398-207/19,740.00,BUTTERWICK LTD..
Children and Young Peoples Services,Head of Childrens Social Care,Third Party Payments 4THIRD,425020,Rendered by Voluntary Organisations,11/12/2018,3527398-208/19,"1,480.00",BUTTERWICK LTD..
Adult and Health Services,Head of Adults,Supplies and Services,304516,Equipment and Materials,11/12/2018,3527399-1848/11,975.50,CABLES TAXI CONTRACTS.
Regeneration and Local Services,Technical Services,Premises,150015,Apportioned Exps of Operational Blds,11/12/2018,3527417-108169,857.96,CLEE HILL PLANT LTD.
Regeneration and Local Services,Technical Services,Premises,150015,Apportioned Exps of Operational Blds,11/12/2018,3527417-108170,857.96,CLEE HILL PLANT LTD.
Regeneration and Local Services,Culture & Sport,Third Party Payments 4THIRD,430100,Rendered by Private Contractors,11/12/2018,3527420-PSINV03628,"125,681.25",COMPETITION LINE UK LTD T/A LIFESTYLE FITNESS.
Regeneration and Local Services,Culture & Sport,Third Party Payments 4THIRD,430100,Rendered by Private Contractors,11/12/2018,3527420-PSINV03629,"10,176.37",COMPETITION LINE UK LTD T/A LIFESTYLE FITNESS.
Regeneration and Local Services,Culture & Sport,Third Party Payments 4THIRD,430100,Rendered by Private Contractors,11/12/2018,3527420-PSINV03632,"25,293.22",COMPETITION LINE UK LTD T/A LIFESTYLE FITNESS.
Regeneration and Local Services,Culture & Sport,Third Party Payments 4THIRD,430100,Rendered by Private Contractors,11/12/2018,3527420-PSINV03633,"23,288.17",COMPETITION LINE UK LTD T/A LIFESTYLE FITNESS.
Regeneration and Local Services,Direct Services,Transport,210057,Repair and Maintenance of Vehicles,11/12/2018,3527438-96366154,505.24,DENNIS EAGLE LTD T/A TERBERG MATEC (UK) LTD.
Regeneration and Local Services,Direct Services,Third Party Payments 4THIRD,430101,Rendered by Private Contractors,11/12/2018,3527440-IV1057829,"1,611.57",DIRECT TYRE MANAGEMENT LTD (DTM).
Regeneration and Local Services,Technical Services,Premises,150015,Apportioned Exps of Operational Blds,11/12/2018,3527464-408809533,943.00,GAP GROUP LTD.
Regeneration and Local Services,Technical Services,Premises,150015,Apportioned Exps of Operational Blds,11/12/2018,3527464-408994511,"1,162.00",GAP GROUP LTD.
Regeneration and Local Services,Technical Services,Premises,150015,Apportioned Exps of Operational Blds,11/12/2018,3527464-408994513,943.00,GAP GROUP LTD.
Children and Young Peoples Services,Head of Childrens Social Care,Supplies and Services,338043,Services,11/12/2018,3527475-CAS-12-2018-084,"2,215.00",HEWITTS SOLICITORS.
Regeneration and Local Services,Direct Services,Transport,210057,Repair and Maintenance of Vehicles,11/12/2018,3527476-103609,"1,319.49",HEXHAM MACHINERY CENTRE LTD.
Children and Young Peoples Services,Head of Childrens Social Care,Supplies and Services,304999,Equipment and Materials,11/12/2018,3527484-CAS-12-2018-093,550.00,IAN THOMAS (CONSULTANT).
Children and Young Peoples Services,Head of Education and Skills,Supplies and Services,375001,Private Finance Initiative,11/12/2018,3527486-ISD0257,"655,455.90",INSPIREDSPACES DURHAM (PROJECTCO1) LTD.
Children and Young Peoples Services,Head of Education and Skills,Supplies and Services,375001,Private Finance Initiative,11/12/2018,3527486-ISD0258,"2,897.48",INSPIREDSPACES DURHAM (PROJECTCO1) LTD.
Regeneration and Local Services,Culture & Sport,Supplies and Services,384199,Miscellaneous Expenses,11/12/2018,3527493-4100639793,"1,125.00",JAMES ODENE (THEATRE CONTRACTOR).
Children and Young Peoples Services,Head of Education and Skills,Third Party Payments 4THIRD,440999,Other third party payments E440,11/12/2018,3527518-AW1018,"10,559.85",MBC ARTS WELLBEING CIC.
Transformation and Partnerships,Partnerships & Community Engagement Div.,Supplies and Services,384086,Miscellaneous Expenses,11/12/2018,3527519-VOUCHER18NB-STAN013/18NB-CHES027/18NB-DVLY017,"4,602.00",MENTAL HEALTH NORTH EAST.
Regeneration and Local Services,Technical Services,Third Party Payments 4THIRD,430100,Rendered by Private Contractors,11/12/2018,3527553-DI20299805,"1,002.83",NORTHERN POWERGRID (NORTHEAST) LTD.
Regeneration and Local Services,Technical Services,Construction work A908,908203,Capital - Public Utilities - Water Services,11/12/2018,3527554-914412477,"1,065.00",NORTHUMBRIAN WATER LTD.
Regeneration and Local Services,Spatial Policy Planning Assets & Environment,Construction work A908,908105,Construction work,11/12/2018,3527554-914416049,"57,889.00",NORTHUMBRIAN WATER LTD.
Regeneration and Local Services,Spatial Policy Planning Assets & Environment,Construction work A908,908105,Construction work,11/12/2018,3527554-914416332,632.00,NORTHUMBRIAN WATER LTD.
Dedicated Schools Grant,DSG High Needs Block,Third Party Payments 4THIRD,425005,Rendered by Voluntary Organisations,11/12/2018,3527563-BFAUT/2019,"10,945.76",PARKSIDE HOUSE SCHOOL.
Regeneration and Local Services,Culture & Sport,Supplies and Services,338047,Services,11/12/2018,3527573-INV08055,833.33,PICTUREHOUSE CINEMAS LTD.
Regeneration and Local Services,Direct Services,Transport,210057,Repair and Maintenance of Vehicles,11/12/2018,3527596-499043,772.74,S JENNINGS LTD.
Regeneration and Local Services,Direct Services,Transport,210057,Repair and Maintenance of Vehicles,11/12/2018,3527596-499203,543.11,S JENNINGS LTD.
Regeneration and Local Services,Direct Services,Transport,210057,Repair and Maintenance of Vehicles,11/12/2018,3527601-2019.1000003156,504.62,SCARAB SWEEPERS LTD.
Transformation and Partnerships,Partnerships & Community Engagement Div.,Cap Exp on Grants & Other Financial Assistance (REFCUS),918004,Contributions to other bodies 918004,11/12/2018,3527605-VOUCHER18AB-GAMP004,"7,629.00",SEDGEFIELD DISTRICT 75 SWIMMING CLUB.
Adult and Health Services,Head of Adults,Supplies and Services,338365,Services,11/12/2018,3527606-0618018,"8,090.25",SENSORY GURU LTD.
Regeneration and Local Services,Technical Services,Third Party Payments 4THIRD,430100,Rendered by Private Contractors,11/12/2018,3527624-112322,"4,461.00",STONEGRAVE AGGREGATES LTD.
Regeneration and Local Services,Economic Development and Housing,Supplies and Services,377015,County Durham Development,11/12/2018,3527625-261225,"2,320.00",STORM AV LTD.
Regeneration and Local Services,Economic Development and Housing,Supplies and Services,377015,County Durham Development,11/12/2018,3527625-261226,"2,320.00",STORM AV LTD.
Regeneration and Local Services,Direct Services,Transport,210057,Repair and Maintenance of Vehicles,11/12/2018,3527629-25165538,503.85,TC HARRISON JCB.
Regeneration and Local Services,Direct Services,Transport,210057,Repair and Maintenance of Vehicles,11/12/2018,3527629-25165557,"2,114.11",TC HARRISON JCB.
Regeneration and Local Services,Direct Services,Transport,230005,Contract Hire,11/12/2018,3527657-77936,644.30,WARREN ACCESS LTD.
Regeneration and Local Services,Direct Services,Transport,230005,Contract Hire,11/12/2018,3527657-78326,900.00,WARREN ACCESS LTD.
Regeneration and Local Services,Technical Services,Premises,150015,Apportioned Exps of Operational Blds,11/12/2018,3527661-834160,732.60,WERNICK HIRE LTD.
Regeneration and Local Services,Technical Services,Premises,150015,Apportioned Exps of Operational Blds,11/12/2018,3527661-834177,626.78,WERNICK HIRE LTD.
Regeneration and Local Services,Technical Services,Premises,150015,Apportioned Exps of Operational Blds,11/12/2018,3527661-834179,732.60,WERNICK HIRE LTD.
Regeneration and Local Services,Spatial Policy Planning Assets & Environment,Supplies and Services,338027,Services,11/12/2018,3527663-3342328,895.00,WOMBLE BOND DICKINSON (UK) LLP.
Children and Young Peoples Services,Head of Education and Skills,Transport,230006,Contract Hire,12/12/2018,3528421-9,754.60,A & C TAXIS.
Children and Young Peoples Services,Head of Childrens Social Care,Transport,230005,Contract Hire,12/12/2018,3528426-D46/ZC,"2,960.00",AABAT TAXIS.
Children and Young Peoples Services,Head of Childrens Social Care,Transport,230005,Contract Hire,12/12/2018,3528426-D47/ZD,"4,500.00",AABAT TAXIS.
Children and Young Peoples Services,Head of Childrens Social Care,Transport,230005,Contract Hire,12/12/2018,3528426-D48/ZE,"2,200.00",AABAT TAXIS.
Children and Young Peoples Services,Head of Childrens Social Care,Transport,230005,Contract Hire,12/12/2018,3528426-D52/ZK,600.00,AABAT TAXIS.
Children and Young Peoples Services,Head of Childrens Social Care,Transport,230005,Contract Hire,12/12/2018,3528426-D53/ZL,"1,210.00",AABAT TAXIS.
Children and Young Peoples Services,Head of Childrens Social Care,Transport,230005,Contract Hire,12/12/2018,3528426-D58/ZV,900.00,AABAT TAXIS.
Regeneration and Local Services,Technical Services,Supplies and Services,304221,Equipment and Materials,12/12/2018,3528430-27474000,741.76,AGGREGATE INDUSTRIES UK LTD.
Regeneration and Local Services,Technical Services,Supplies and Services,304221,Equipment and Materials,12/12/2018,3528430-27474002,743.54,AGGREGATE INDUSTRIES UK LTD.
Regeneration and Local Services,Technical Services,Supplies and Services,304221,Equipment and Materials,12/12/2018,3528430-27474003,887.36,AGGREGATE INDUSTRIES UK LTD.
Regeneration and Local Services,Technical Services,Supplies and Services,304221,Equipment and Materials,12/12/2018,3528430-27474005,"1,139.12",AGGREGATE INDUSTRIES UK LTD.
Regeneration and Local Services,EnvironmentHealth & Consumer Protection,Supplies and Services,304259,Equipment and Materials,12/12/2018,26-3003958270,779.00,AGILENT TECHNOLOGIES UK LTD.
Non-Service Specific,Non Service Specific-Financing,Central Support and Other Recharges,690900,Unclassified E690,12/12/2018,26-NCB-12-2018-001,941.40,AGILENT TECHNOLOGIES UK LTD.
Regeneration and Local Services,Direct Services,Supplies and Services,336005,Advertising E336,12/12/2018,27-3848,"1,700.00",AGRIPA SOLUTIONS LTD.
Non-Service Specific,Non Service Specific-Financing,Central Support and Other Recharges,690900,Unclassified E690,12/12/2018,27-NCB-12-2018-002,"5,100.00",AGRIPA SOLUTIONS LTD.
Regeneration and Local Services,Culture & Sport,Supplies and Services,312010,Newspapers books and periodicals E312,12/12/2018,3528424-3071,525.00,A-HA! DISTRIBUTION LTD.
Regeneration and Local Services,Economic Development and Housing,Supplies and Services,384437,Miscellaneous Expenses,12/12/2018,3528433-2018-345-141-000355,998.77,AMERICAN EXPRESS SERVICES EUROPE LTD.
Regeneration and Local Services,Economic Development and Housing,Supplies and Services,384999,Miscellaneous Expenses,12/12/2018,3528433-2018-345-141-000387,576.07,AMERICAN EXPRESS SERVICES EUROPE LTD.
Adult and Health Services,Public Health,Supplies and Services,338066,Services,12/12/2018,3528433-2018-345-141-000390,"1,030.00",AMERICAN EXPRESS SERVICES EUROPE LTD.
Resources,Legal & Democratic Services,Premises,120021,Energy Costs,12/12/2018,3528459-11889,840.44,BRADLEY HALL LTD.
Regeneration and Local Services,Culture & Sport,Premises,145023,Cleaning and Domestic Supplies,12/12/2018,3528463-22SI2242743,"1,265.30",BRENNTAG UK LTD.
Regeneration and Local Services,Transport and Contracted Services,Supplies and Services,304245,Equipment and Materials,12/12/2018,3528466-54519,"3,060.00",BUDDI.
Children and Young Peoples Services,Head of Education and Skills,Transport,230008,Contract Hire,12/12/2018,311423-N010/14,"1,540.00",C STEWART.
Non-Service Specific,Non Service Specific-Financing,Central Support and Other Recharges,690900,Unclassified E690,12/12/2018,28-NCB-12-2018-003,"16,404.55",CASTLEBECK CARE (TEESDALE) LTD.
Regeneration and Local Services,Technical Services,Supplies and Services,304358,Equipment and Materials,12/12/2018,3528479-151203,762.00,CG ROBINSON LTD.
Children and Young Peoples Services,Head of Education and Skills,Supplies and Services,304335,Equipment and Materials,12/12/2018,3528480-20259,"5,330.00",CHARANGA LTD.
Regeneration and Local Services,Technical Services,Supplies and Services,372009,Subscriptions E372,12/12/2018,3528486-3138478,"1,795.00",CIPFA LTD.
Regeneration and Local Services,Economic Development and Housing,Supplies and Services,342053,Computers and Communications,12/12/2018,3528490-M/HB055705,"4,870.33",CIVICA UK LTD.
Regeneration and Local Services,Technical Services,Stock A926,926004,Stock,12/12/2018,3528494-400013648,"15,278.76",CLEVELAND POTASH LTD T/A ICL FERTILIZERS.
Dedicated Schools Grant,DSG High Needs Block,Central Support and Other Recharges,689996,Unclassified E690,12/12/2018,3528495-CAS-12-2018-098,"3,675.23",CLEVES CROSS LEARNING TRUST T/A ROSA STREET PRIMARY SCHOOL.
Children and Young Peoples Services,Head of Childrens Social Care,Transport,230005,Contract Hire,12/12/2018,3528496-CLUB1847B,556.00,CLUBMAN CABS.
Children and Young Peoples Services,Head of Childrens Social Care,Transport,230005,Contract Hire,12/12/2018,3528496-CLUB1847G,580.00,CLUBMAN CABS.
Children and Young Peoples Services,Head of Childrens Social Care,Transport,230005,Contract Hire,12/12/2018,3528496-CLUB1848D,556.00,CLUBMAN CABS.
Regeneration and Local Services,Economic Development and Housing,Premises,120021,Energy Costs,12/12/2018,3528504-13515189,852.00,CORONA ENERGY RETAIL 2 LTD.
Regeneration and Local Services,Economic Development and Housing,Premises,120021,Energy Costs,12/12/2018,3528504-13515190,852.00,CORONA ENERGY RETAIL 2 LTD.
Regeneration and Local Services,Economic Development and Housing,Premises,120021,Energy Costs,12/12/2018,3528504-13580313,717.58,CORONA ENERGY RETAIL 2 LTD.
Regeneration and Local Services,Economic Development and Housing,Premises,120021,Energy Costs,12/12/2018,3528504-13580349,730.62,CORONA ENERGY RETAIL 2 LTD.
Regeneration and Local Services,Economic Development and Housing,Premises,120021,Energy Costs,12/12/2018,3528504-13580375,"1,226.93",CORONA ENERGY RETAIL 2 LTD.
Children and Young Peoples Services,Head of Education and Skills,Transport,230007,Contract Hire,12/12/2018,3528508-1,880.00,CRAIG MASSEY`S TAXIS.
Children and Young Peoples Services,Head of Education and Skills,Transport,230009,Contract Hire,12/12/2018,3528510-108531,976.50,CROFT BUSINESS SERVICES (UK) LTD T/A CROFT TAXIS.
Children and Young Peoples Services,Head of Education and Skills,Transport,230008,Contract Hire,12/12/2018,3528515-0053,"3,740.00",DAVID WALKER TAXIS.
Resources,Legal & Democratic Services,Supplies and Services,338042,Services,12/12/2018,3528516-337663/INVLW208,900.00,DERE STREET BARRISTERS.
Resources,Legal & Democratic Services,Supplies and Services,338042,Services,12/12/2018,3528516-339501-19/11/18,"4,500.00",DERE STREET BARRISTERS.
Resources,Legal & Democratic Services,Supplies and Services,338042,Services,12/12/2018,3528516-339837/INVLW210,"1,200.00",DERE STREET BARRISTERS.
Children and Young Peoples Services,Head of Education and Skills,Transport,230012,Contract Hire,12/12/2018,3528518-005-E013OCT18,"1,147.50",DEXTERS PRIVATE HIRE.
Children and Young Peoples Services,Head of Education and Skills,Transport,230012,Contract Hire,12/12/2018,3528518-006-E013NOV18,"1,911.14",DEXTERS PRIVATE HIRE.
Regeneration and Local Services,Technical Services,Supplies and Services,338027,Services,12/12/2018,3528524-9013,"2,680.00",DUNELM GEOTECHNICAL & ENVIRONMENTAL LTD.
Children and Young Peoples Services,Head of Childrens Social Care,Third Party Payments 4THIRD,425021,Rendered by Voluntary Organisations,12/12/2018,3528530-AM002,"13,928.58",DUTY OF CARE LTD.
Children and Young Peoples Services,Head of Childrens Social Care,Third Party Payments 4THIRD,425021,Rendered by Voluntary Organisations,12/12/2018,3528530-CD016,"20,357.14",DUTY OF CARE LTD.
Children and Young Peoples Services,Head of Childrens Social Care,Third Party Payments 4THIRD,425021,Rendered by Voluntary Organisations,12/12/2018,3528530-MP019,"15,428.57",DUTY OF CARE LTD.
Regeneration and Local Services,Direct Services,Supplies and Services,304221,Equipment and Materials,12/12/2018,3528535-059-235131,"1,025.89",EDMUNDSON ELECTRICAL LTD.
Dedicated Schools Grant,DSG High Needs Block,Third Party Payments 4THIRD,440080,Other third party payments E440,12/12/2018,3528536-9401,"2,929.01",EDUCATION & SERVICES FOR PEOPLE WITH AUTISM (ESPA) LTD.
Regeneration and Local Services,Culture & Sport,Supplies and Services,338047,Services,12/12/2018,3528544-2018BF40107,"30,000.00",ENTERTAINMENT UNLIMITED.
Transformation and Partnerships,Partnerships & Community Engagement Div.,Cap Exp on Grants & Other Financial Assistance (REFCUS),918004,Contributions to other bodies 918004,12/12/2018,3528553-VOUCHER18AB-EDRC005PB07,"3,406.00",FISHBURN ACADEMY BAND.
Transformation and Partnerships,Partnerships & Community Engagement Div.,Cap Exp on Grants & Other Financial Assistance (REFCUS),918004,Contributions to other bodies 918004,12/12/2018,3528554-VOUCHER18AB-EDRC005PB10,"3,022.00",FISHBURN YOUTH & COMMUNITY CENTRE.
Regeneration and Local Services,Direct Services,Supplies and Services,304221,Equipment and Materials,12/12/2018,3528555-1811-121582,"1,136.72",FLAME HEATING SPARES LTD.
Regeneration and Local Services,Direct Services,Third Party Payments 4THIRD,430100,Rendered by Private Contractors,12/12/2018,3528558-10800,"7,800.00",FROSTREE LTD.
Transformation and Partnerships,Partnerships & Community Engagement Div.,Cap Exp on Grants & Other Financial Assistance (REFCUS),918004,Contributions to other bodies 918004,12/12/2018,3528560-VOUCHER18AB-EDRC005PB11,"6,491.00",FUTURE LEISURE IN COXHOE (FLIC).
Children and Young Peoples Services,Head of Education and Skills,Transport,230008,Contract Hire,12/12/2018,3528561-101064,"1,741.00",G & P JOHNSON LTD T/A NIGHTINGALE COACHES.
Children and Young Peoples Services,Head of Education and Skills,Transport,230007,Contract Hire,12/12/2018,3528562-12,"1,518.00",G ANGHEL T/A A TAXI.
Children and Young Peoples Services,Head of Education and Skills,Employees,080025,Agency Staff,12/12/2018,3528565-41753,"3,596.00",GATENBY SANDERSON LTD.
Children and Young Peoples Services,Head of Childrens Social Care,Employees,080025,Agency Staff,12/12/2018,3528568-1245620,"107,613.76",GEOMETRIC RESULTS INTERNATIONAL.
Regeneration and Local Services,Technical Services,Supplies and Services,304358,Equipment and Materials,12/12/2018,3528570-74563,"3,580.50",GEORGE VARDY HAULAGE.
Regeneration and Local Services,Technical Services,Supplies and Services,304358,Equipment and Materials,12/12/2018,3528570-74564,950.64,GEORGE VARDY HAULAGE.
Regeneration and Local Services,Technical Services,Supplies and Services,304358,Equipment and Materials,12/12/2018,3528570-74565,950.64,GEORGE VARDY HAULAGE.
Children and Young Peoples Services,Head of Education and Skills,Transport,230008,Contract Hire,12/12/2018,3528573-000049,"1,755.00",GP TAXIS.
Children and Young Peoples Services,Head of Childrens Social Care,Supplies and Services,338043,Services,12/12/2018,3528584-CAS-12-2018-083,"2,215.00",HEWITTS SOLICITORS.
Regeneration and Local Services,Technical Services,Third Party Payments 4THIRD,430100,Rendered by Private Contractors,12/12/2018,3528585-2852,"5,744.46",HIGHWAY CONSTRUCTION SERVICES LTD.
Regeneration and Local Services,Technical Services,Third Party Payments 4THIRD,430100,Rendered by Private Contractors,12/12/2018,3528585-2853,"5,744.46",HIGHWAY CONSTRUCTION SERVICES LTD.
Regeneration and Local Services,Direct Services,Supplies and Services,304221,Equipment and Materials,12/12/2018,3528589-A38/0099443,611.34,HOWDENS JOINERY LTD.
Non-Service Specific,Non Service Specific-Financing,Central Support and Other Recharges,690900,Unclassified E690,12/12/2018,29-NCB-12-2018-004,"2,288.25",ING CAR LEASE UK LTD.
Resources,Digital and Customer Services,Stock A926,926900,Stock in hand-Inventory system,12/12/2018,3528594-4145208,511.09,INSIGHT DIRECT (UK) LTD.
Regeneration and Local Services,Culture & Sport,Supplies and Services,312010,Newspapers books and periodicals E312,12/12/2018,3528597-13182,"4,760.00",ISAPPHIRE LTD.
Children and Young Peoples Services,Head of Education and Skills,Transport,230007,Contract Hire,12/12/2018,3528602-5173,572.00,J YOUNG T/A VIP TAXIS.
Children and Young Peoples Services,Head of Education and Skills,Transport,230007,Contract Hire,12/12/2018,3528602-5176,724.00,J YOUNG T/A VIP TAXIS.
Children and Young Peoples Services,Head of Education and Skills,Transport,230007,Contract Hire,12/12/2018,3528602-5177,"1,122.00",J YOUNG T/A VIP TAXIS.
Children and Young Peoples Services,Head of Education and Skills,Transport,230006,Contract Hire,12/12/2018,3528602-5178,992.00,J YOUNG T/A VIP TAXIS.
Children and Young Peoples Services,Head of Education and Skills,Transport,230008,Contract Hire,12/12/2018,3528602-5172,"1,760.00",J YOUNG T/A VIP TAXIS.
Children and Young Peoples Services,Head of Education and Skills,Transport,230008,Contract Hire,12/12/2018,3528602-5174,"1,176.00",J YOUNG T/A VIP TAXIS.
Children and Young Peoples Services,Head of Education and Skills,Transport,230008,Contract Hire,12/12/2018,3528602-5175,880.00,J YOUNG T/A VIP TAXIS.
Children and Young Peoples Services,Head of Education and Skills,Transport,230008,Contract Hire,12/12/2018,3528602-5179,"1,320.00",J YOUNG T/A VIP TAXIS.
Regeneration and Local Services,Technical Services,Supplies and Services,304358,Equipment and Materials,12/12/2018,3528603-5305601,"1,605.00",JA GILSON (AGRICULTURAL CONTRACTORS) LTD.
Regeneration and Local Services,Technical Services,Supplies and Services,304358,Equipment and Materials,12/12/2018,3528603-5305602,525.00,JA GILSON (AGRICULTURAL CONTRACTORS) LTD.
Regeneration and Local Services,Technical Services,Construction work A908,908105,Construction work,12/12/2018,3528604-22410,"1,891.60",JACK COUPE & SONS LTD T/A COUPE LINE.
Regeneration and Local Services,Technical Services,Supplies and Services,304358,Equipment and Materials,12/12/2018,3528614-28301,"2,087.00",JOHN R BUTTERFIELD LTD.
Regeneration and Local Services,Technical Services,Supplies and Services,304358,Equipment and Materials,12/12/2018,3528614-28847,"1,494.00",JOHN R BUTTERFIELD LTD.
Regeneration and Local Services,Technical Services,Supplies and Services,304358,Equipment and Materials,12/12/2018,3528614-28852,630.00,JOHN R BUTTERFIELD LTD.
Regeneration and Local Services,Technical Services,Supplies and Services,304358,Equipment and Materials,12/12/2018,3528614-28856,"1,093.00",JOHN R BUTTERFIELD LTD.
Regeneration and Local Services,Technical Services,Supplies and Services,304358,Equipment and Materials,12/12/2018,3528614-28857,546.00,JOHN R BUTTERFIELD LTD.
Regeneration and Local Services,Technical Services,Supplies and Services,304358,Equipment and Materials,12/12/2018,3528614-28897,741.00,JOHN R BUTTERFIELD LTD.
Regeneration and Local Services,Technical Services,Supplies and Services,304358,Equipment and Materials,12/12/2018,3528614-28977,"1,826.50",JOHN R BUTTERFIELD LTD.
Regeneration and Local Services,Technical Services,Supplies and Services,304358,Equipment and Materials,12/12/2018,3528614-28978,"1,291.50",JOHN R BUTTERFIELD LTD.
Regeneration and Local Services,Technical Services,Supplies and Services,304358,Equipment and Materials,12/12/2018,3528614-28979,"1,326.00",JOHN R BUTTERFIELD LTD.
Regeneration and Local Services,Technical Services,Supplies and Services,304358,Equipment and Materials,12/12/2018,3528614-28981,704.00,JOHN R BUTTERFIELD LTD.
Regeneration and Local Services,Technical Services,Supplies and Services,304358,Equipment and Materials,12/12/2018,3528614-28983,924.00,JOHN R BUTTERFIELD LTD.
Regeneration and Local Services,Technical Services,Supplies and Services,304358,Equipment and Materials,12/12/2018,3528614-28985,700.00,JOHN R BUTTERFIELD LTD.
Regeneration and Local Services,Technical Services,Supplies and Services,304358,Equipment and Materials,12/12/2018,3528614-28986,"1,617.00",JOHN R BUTTERFIELD LTD.
Regeneration and Local Services,Technical Services,Supplies and Services,304358,Equipment and Materials,12/12/2018,3528614-28999,"1,826.50",JOHN R BUTTERFIELD LTD.
Regeneration and Local Services,Technical Services,Supplies and Services,304358,Equipment and Materials,12/12/2018,3528614-29000,"1,291.50",JOHN R BUTTERFIELD LTD.
Regeneration and Local Services,Technical Services,Supplies and Services,304358,Equipment and Materials,12/12/2018,3528614-29003,858.00,JOHN R BUTTERFIELD LTD.
Regeneration and Local Services,Technical Services,Supplies and Services,304358,Equipment and Materials,12/12/2018,3528614-29006,"1,487.00",JOHN R BUTTERFIELD LTD.
Regeneration and Local Services,Technical Services,Supplies and Services,304358,Equipment and Materials,12/12/2018,3528614-29007,905.00,JOHN R BUTTERFIELD LTD.
Regeneration and Local Services,Technical Services,Supplies and Services,304358,Equipment and Materials,12/12/2018,3528615-0000081767,"2,981.50",JOHN WADE (HAULAGE) LTD.
Regeneration and Local Services,Culture & Sport,Supplies and Services,304259,Equipment and Materials,12/12/2018,3528617-240374,"4,389.56",JORDAN FITNESS.
Regeneration and Local Services,Direct Services,Supplies and Services,304245,Equipment and Materials,12/12/2018,3528619-GOI1314/D,"3,993.86",JT DOVE LTD.
Children and Young Peoples Services,Head of Education and Skills,Transport,230008,Contract Hire,12/12/2018,3528620-M053-NOV18,"3,443.15",K & R TAXIS (STANLEY).
Regeneration and Local Services,Direct Services,Supplies and Services,352001,Conference Expenses,12/12/2018,3528622-INV-S003958,550.00,KEEP BRITAIN TIDY.
Children and Young Peoples Services,Head of Education and Skills,Transport,230008,Contract Hire,12/12/2018,3528623-011118,"2,100.00",KEVIN EDMUNDSON.
Regeneration and Local Services,Technical Services,Supplies and Services,304358,Equipment and Materials,12/12/2018,3528624-2506,"1,145.00",KEVIN SNOWDON GROUNDWORKS LTD.
Regeneration and Local Services,Technical Services,Supplies and Services,304358,Equipment and Materials,12/12/2018,3528624-2507,"1,145.00",KEVIN SNOWDON GROUNDWORKS LTD.
Regeneration and Local Services,Technical Services,Supplies and Services,304358,Equipment and Materials,12/12/2018,3528624-2508,"1,145.00",KEVIN SNOWDON GROUNDWORKS LTD.
Regeneration and Local Services,Technical Services,Supplies and Services,304358,Equipment and Materials,12/12/2018,3528624-2509,961.00,KEVIN SNOWDON GROUNDWORKS LTD.
Regeneration and Local Services,Technical Services,Supplies and Services,304358,Equipment and Materials,12/12/2018,3528624-2510,"1,145.00",KEVIN SNOWDON GROUNDWORKS LTD.
Regeneration and Local Services,Technical Services,Supplies and Services,304358,Equipment and Materials,12/12/2018,3528624-2514,819.00,KEVIN SNOWDON GROUNDWORKS LTD.
Regeneration and Local Services,Technical Services,Supplies and Services,304358,Equipment and Materials,12/12/2018,3528624-2515,897.00,KEVIN SNOWDON GROUNDWORKS LTD.
Regeneration and Local Services,Technical Services,Supplies and Services,304358,Equipment and Materials,12/12/2018,3528624-2516,885.50,KEVIN SNOWDON GROUNDWORKS LTD.
Regeneration and Local Services,Technical Services,Supplies and Services,304358,Equipment and Materials,12/12/2018,3528624-2520,676.25,KEVIN SNOWDON GROUNDWORKS LTD.
Regeneration and Local Services,Technical Services,Supplies and Services,304358,Equipment and Materials,12/12/2018,3528624-2521,819.00,KEVIN SNOWDON GROUNDWORKS LTD.
Regeneration and Local Services,Technical Services,Supplies and Services,304358,Equipment and Materials,12/12/2018,3528624-2526,"1,145.00",KEVIN SNOWDON GROUNDWORKS LTD.
Regeneration and Local Services,Technical Services,Supplies and Services,304358,Equipment and Materials,12/12/2018,3528624-2527,"1,145.00",KEVIN SNOWDON GROUNDWORKS LTD.
Regeneration and Local Services,Technical Services,Supplies and Services,304358,Equipment and Materials,12/12/2018,3528624-2529,"1,001.00",KEVIN SNOWDON GROUNDWORKS LTD.
Regeneration and Local Services,Technical Services,Supplies and Services,304358,Equipment and Materials,12/12/2018,3528624-2530,"1,145.00",KEVIN SNOWDON GROUNDWORKS LTD.
Regeneration and Local Services,Technical Services,Supplies and Services,304358,Equipment and Materials,12/12/2018,3528624-2531,"1,145.00",KEVIN SNOWDON GROUNDWORKS LTD.
Regeneration and Local Services,Technical Services,Supplies and Services,304358,Equipment and Materials,12/12/2018,3528624-2533,"1,145.00",KEVIN SNOWDON GROUNDWORKS LTD.
Regeneration and Local Services,Technical Services,Supplies and Services,304358,Equipment and Materials,12/12/2018,3528624-2534,"1,145.00",KEVIN SNOWDON GROUNDWORKS LTD.
Regeneration and Local Services,Technical Services,Supplies and Services,304358,Equipment and Materials,12/12/2018,3528624-2535,"1,145.00",KEVIN SNOWDON GROUNDWORKS LTD.
Regeneration and Local Services,Technical Services,Supplies and Services,304358,Equipment and Materials,12/12/2018,3528624-2538,884.00,KEVIN SNOWDON GROUNDWORKS LTD.
Regeneration and Local Services,Technical Services,Supplies and Services,304358,Equipment and Materials,12/12/2018,3528624-2544,819.00,KEVIN SNOWDON GROUNDWORKS LTD.
Adult and Health Services,Head of Adults,Transport,230005,Contract Hire,12/12/2018,311440-PEACO003-SED114,"1,280.00",LETS TRAVEL.
Regeneration and Local Services,Technical Services,Supplies and Services,304358,Equipment and Materials,12/12/2018,3528644-MS1300,835.20,M SPENCE SURFACING LTD.
Regeneration and Local Services,Technical Services,Supplies and Services,304358,Equipment and Materials,12/12/2018,3528644-MS1302,583.20,M SPENCE SURFACING LTD.
Regeneration and Local Services,Technical Services,Supplies and Services,304358,Equipment and Materials,12/12/2018,3528644-MS1303,835.20,M SPENCE SURFACING LTD.
Regeneration and Local Services,Technical Services,Supplies and Services,304358,Equipment and Materials,12/12/2018,3528644-MS1306,513.00,M SPENCE SURFACING LTD.
Resources,Digital and Customer Services,Supplies and Services,344137,Telephones,12/12/2018,3528645-712721,"59,538.96",MAINTEL EUROPE LTD.
Regeneration and Local Services,Technical Services,Stock A926,926900,Stock in hand-Inventory system,12/12/2018,3528646-138320,"34,822.00",MALLATITE LTD T/A MALLATITE PLASTICS LTD.
Children and Young Peoples Services,Head of Education and Skills,Transport,230012,Contract Hire,12/12/2018,3528648-000028,"1,760.00",MARK HUSBAND T/A TEAK`S TAXIS.
Children and Young Peoples Services,Head of Education and Skills,Transport,230008,Contract Hire,12/12/2018,3528653-0001,800.00,MGD TAXIS.
Children and Young Peoples Services,Head of Education and Skills,Transport,230007,Contract Hire,12/12/2018,3528659-931,"1,827.00",MR AD HOWARD T/A TOFT HILL TAXIS.
Children and Young Peoples Services,Head of Childrens Social Care,Transport,230005,Contract Hire,12/12/2018,3528663-037,840.00,MR S BALL T/A ABBIE`S TAXIS..
Regeneration and Local Services,Direct Services,Supplies and Services,336005,Advertising E336,12/12/2018,311455-06,600.00,MS RACHEL MARKHAM.
Transformation and Partnerships,Partnerships & Community Engagement Div.,Supplies and Services,336005,Advertising E336,12/12/2018,3528670-349409,627.94,NATIONAL LEAFLET CO LTD.
Transformation and Partnerships,Partnerships & Community Engagement Div.,Supplies and Services,336005,Advertising E336,12/12/2018,3528671-350354/0,"1,082.10",NATIONAL LEAFLET CO LTD.
Regeneration and Local Services,Direct Services,Third Party Payments 4THIRD,430105,Rendered by Private Contractors,12/12/2018,3528672-491,"1,666.17",NE GREEN WASTE RECYCLING LTD.
Regeneration and Local Services,Direct Services,Third Party Payments 4THIRD,430105,Rendered by Private Contractors,12/12/2018,3528672-492,"2,088.99",NE GREEN WASTE RECYCLING LTD.
Regeneration and Local Services,Technical Services,Supplies and Services,304358,Equipment and Materials,12/12/2018,3528673-NC/056/BW,"2,035.00",NEDCO CONTRACTS (NE) LTD.
